Workbook

Sheet Лист1
A1: ОПКР 23.12.2013 № 1354 | B1: ОПКР 30.06.2014 № 540 | C1: ОПКР 09.02.2015 № 86 | D1: ОПКР 30.11.2015 № 1014 | E1: ОПКР 20.06.2016 № 537 | F1: ОПКР 28.11.2016 № 1067 | G1: 2016-12-01 | H1: 2017-01-01 | I1: 2017-02-01 | J1: 2017-03-01 | K1: 2017-04-01 | L1: 2017-05-01 | M1: 2017-06-01 | N1: ОПКР 10.07.2017 № 618 | O1: 2017-08-01 | P1: 2017-09-01 | Q1: 2017-10-01 | R1: 2017-11-01 | S1: 2017-12-01 | T1: 2018-01-01 | U1: 2018-02-01 | V1: 2018-03-01 | W1: 2018-04-01 | X1: 2018-05-01 | Y1: 2018-06-01 | Z1: 2018-07-01 | AA1: 2018-08-01 | AB1: 2018-09-01 | AC1: 2018-10-01 | AD1: 2018-11-01 | AE1: ОПКР 30.11.2018 № 1057 | AF1: 2018-12-01 | AG1: 2019-01-01 | AH1: 2019-02-01 | AI1: 2019-03-01 | AJ1: ОПКР 01.04.2019 № 328 | AK1: 2019-04-01 | AL1: 2019-05-01 | AM1: 2019-06-01 | AN1: 2019-07-01 | AO1: 2019-08-01 | AP1: 2019-09-01 | AQ1: 2019-10-01 | AR1: 2019-11-01 | AS1: 2019-12-01 | AT1: 2020-01-01 | AU1: ОПКР 20.01.2020 № 26 | AV1: 2020-02-01 | AW1: 2020-03-01 | AX1: 2020-04-01 | AY1: 2020-05-01 | AZ1: 2020-06-01 | BA1: 2020-07-01 | BB1: ОПКР 27.07.2020 № 811 | BC1: 2020-08-01 | BD1: 2020-09-01 | BE1: 2020-10-01 | BF1: 2020-11-01 | BG1: 2020-12-01 | BH1: ОПКР 28.12.2020 № 1555 | BI1: 2021-01-01 | BJ1: 2021-02-01 | BK1: 2021-03-01 | BL1: 2021-04-01 | BM1: 2021-05-01 | BN1: 2021-06-01 | BO1: 2021-07-01 | BP1: 2021-08-01 | BQ1: ОПКР 06.09.2021 № 1064 | BR1: 2021-09-01 | BS1: 2021-10-01 | BT1: 2021-11-01 | BU1: 2021-12-01 | BV1: 2022-01-01 | BW1: ОПКР 07.02.2022 № 153 | BX1: 2022-02-01 | BY1: 2022-03-01 | BZ1: 2022-04-01 | CA1: 2022-05-01 | CB1: 2022-06-01 | CC1: 2022-07-01 | CD1: 2022-08-01 | CE1: ОПКР 19.09.2022 № 1146 | CF1: 2022-09-01 | CG1: 2022-10-01 | CH1: 2022-11-01 | CI1: 2022-12-01 | CJ1: 2023-01-01 | CK1: 2023-02-01 | CL1: ОПКР 06.03.2023 № 32 | CM1: 2023-03-01 | CN1: 2023-04-01 | CO1: 2023-05-01 | CP1: 2023-06-01 | CQ1: 2023-07-01 | CR1: 2023-08-01 | CS1: 2023-09-01 | CT1: 2023-10-01 | CU1: ОПКР 30.10.2023 № 1224 | CV1: 2023-11-01 | CW1: 2023-12-01 | CX1: 2024-01-01 | CY1: 2024-02-01 | CZ1: ОПКР 05.03.2024 № 253 | DA1: 2024-03-01 | DB1: 2024-04-01 | DC1: 2024-05-01 | DD1: 2024-06-01 | DE1: 2024-07-01 | DF1: 2024-08-01 | DG1: 2024-09-01 | DH1: 2024-10-01 | DI1: ОПКР 07.11.2024 № 1279 | DJ1: 2024-12-01 | DK1: 2025-01-01 | DL1: 2025-02-01 | DM1: 2025-03-01 | DN1: ОПКР 02.04.2025 № 487 | DO1: 2025-05-01 | DP1: 2025-06-01 | DQ1: 2025-07-01 | DR1: 2025-08-01 | DS1: ОПКР 18.09.2025 № 1311 | DT1: 2025-10-01 | DU1: 2025-11-01 | DV1: ОПКР 03.12.2025 № 1642 | DW1: 2026-01-01 | DX1: 2026-02-01 | DY1: 2026-03-01 | DZ1: 2026-04-01 | EA1: 2026-05-01 | EB1: 2026-06-01 | EC1: 2026-07-01 | ED1: 2026-08-01 | EE1: 2026-09-01 | EF1: 2026-10-01 | EG1: 2026-11-01 | EH1: 2026-12-01 | EI1: Площадь | EJ1: Кол-во пом-й | EK1: Кол-во жильцов | EL1: способ формирования | EM1: Владелец | EN1: смена способа
A2: Абаканово с, Весенняя ул , д.2 | EN2: Исключен
A3: Абаканово с, Весенняя ул , д.3 | EN3: Исключен
A4: Абаканово с, Весенняя ул , д.4 | EN4: Исключен
A5: Абаканово с, Весенняя ул , д.5 | EN5: Исключен
A6: Абаканово с, Весенняя ул , д.7 | B6: ="Абаканово с, Весенняя ул , д.7" -> Абаканово с, Весенняя ул , д.7 | EN6: Исключен
A7: Абаканово с, Весенняя ул , д.9 | B7: ="Абаканово с, Весенняя ул , д.9" -> Абаканово с, Весенняя ул , д.9 | EN7: Исключен
A8: Абаканово с, Костромцова ул, д.11 | B8: ="Абаканово с, Костромцова ул, д.11" -> Абаканово с, Костромцова ул, д.11 | C8: Абаканово с, Костромцова ул, д.11 | D8: ="Абаканово с, Костромцова ул, д.11" -> Абаканово с, Костромцова ул, д.11 | E8: ="Абаканово с, Костромцова ул, д.11" -> Абаканово с, Костромцова ул, д.11 | F8: Абаканово с, Костромцова ул, д.11 | N8: ="Абаканово с, Костромцова ул, д.11" -> Абаканово с, Костромцова ул, д.11 | AE8: Абаканово с, Костромцова ул, д. 11 | AJ8: Абаканово с, Костромцова ул, д. 11 | AU8: Абаканово с, Костромцова ул, д. 11 | BB8: Абаканово с, Костромцова ул, д. 11 | BH8: Абаканово с, Костромцова ул, д. 11 | BQ8: Абаканово с, Костромцова ул, д. 11 | BW8: Абаканово с, Костромцова ул, д. 11 | CE8: Абаканово с, Костромцова ул, д. 11 | CL8: Абаканово с, Костромцова ул, д. 11 | CU8: Абаканово с, Костромцова ул, д. 11 | CZ8: Абаканово с, Костромцова ул, д. 11 | DI8: Абаканово с, Костромцова ул, д. 11 | DN8: Абаканово с, Костромцова ул, д. 11 | DS8: Абаканово с, Костромцова ул, д. 11 | DV8: Абаканово с, Костромцова ул, д. 11 | EI8: 2280 | EJ8: 40 | EK8: =EJ8*1.3 -> 52 | EL8: Общий счет РО+
A9: Абаканово с, Костромцова ул, д.17 | B9: ="Абаканово с, Костромцова ул, д.17" -> Абаканово с, Костромцова ул, д.17 | C9: Абаканово с, Костромцова ул, д.17 | D9: ="Абаканово с, Костромцова ул, д.17" -> Абаканово с, Костромцова ул, д.17 | E9: ="Абаканово с, Костромцова ул, д.17" -> Абаканово с, Костромцова ул, д.17 | F9: Абаканово с, Костромцова ул, д.17 | N9: ="Абаканово с, Костромцова ул, д.17" -> Абаканово с, Костромцова ул, д.17 | AE9: Абаканово с, Костромцова ул, д. 17 | AJ9: Абаканово с, Костромцова ул, д. 17 | AU9: Абаканово с, Костромцова ул, д. 17 | BB9: Абаканово с, Костромцова ул, д. 17 | BH9: Абаканово с, Костромцова ул, д. 17 | BQ9: Абаканово с, Костромцова ул, д. 17 | BW9: Абаканово с, Костромцова ул, д. 17 | CE9: Абаканово с, Костромцова ул, д. 17 | CL9: Абаканово с, Костромцова ул, д. 17 | CU9: Абаканово с, Костромцова ул, д. 17 | CZ9: Абаканово с, Костромцова ул, д. 17 | DI9: Абаканово с, Костромцова ул, д. 17 | DN9: Абаканово с, Костромцова ул, д. 17 | DS9: Абаканово с, Костромцова ул, д. 17 | DV9: Абаканово с, Костромцова ул, д. 17 | EI9: 2268.1 | EJ9: 43 | EK9: 55.9 | EL9: Общий счет РО+
A10: Абаканово с, Костромцова ул, д.29 | B10: ="Абаканово с, Костромцова ул, д.29" -> Абаканово с, Костромцова ул, д.29 | C10: Абаканово с, Костромцова ул, д.29 | D10: ="Абаканово с, Костромцова ул, д.29" -> Абаканово с, Костромцова ул, д.29 | E10: ="Абаканово с, Костромцова ул, д.29" -> Абаканово с, Костромцова ул, д.29 | F10: Абаканово с, Костромцова ул, д.29 | N10: ="Абаканово с, Костромцова ул, д.29" -> Абаканово с, Костромцова ул, д.29 | AE10: Абаканово с, Костромцова ул, д. 29 | AJ10: Абаканово с, Костромцова ул, д. 29 | AU10: Абаканово с, Костромцова ул, д. 29 | BB10: Абаканово с, Костромцова ул, д. 29 | BH10: Абаканово с, Костромцова ул, д. 29 | BQ10: Абаканово с, Костромцова ул, д. 29 | BW10: Абаканово с, Костромцова ул, д. 29 | CE10: Абаканово с, Костромцова ул, д. 29 | CL10: Абаканово с, Костромцова ул, д. 29 | CU10: Абаканово с, Костромцова ул, д. 29 | CZ10: Абаканово с, Костромцова ул, д. 29 | DI10: Абаканово с, Костромцова ул, д. 29 | DN10: Абаканово с, Костромцова ул, д. 29 | DS10: Абаканово с, Костромцова ул, д. 29 | DV10: Абаканово с, Костромцова ул, д. 29 | EI10: 525.8 | EJ10: 13 | EK10: 16.9 | EL10: Общий счет РО+
A11: Абаканово с, Костромцова ул, д.31 | B11: ="Абаканово с, Костромцова ул, д.31" -> Абаканово с, Костромцова ул, д.31 | C11: Абаканово с, Костромцова ул, д.31 | D11: ="Абаканово с, Костромцова ул, д.31" -> Абаканово с, Костромцова ул, д.31 | E11: ="Абаканово с, Костромцова ул, д.31" -> Абаканово с, Костромцова ул, д.31 | F11: Абаканово с, Костромцова ул, д.31 | N11: ="Абаканово с, Костромцова ул, д.31" -> Абаканово с, Костромцова ул, д.31 | AE11: Абаканово с, Костромцова ул, д. 31 | AJ11: Абаканово с, Костромцова ул, д. 31 | AU11: Абаканово с, Костромцова ул, д. 31 | BB11: Абаканово с, Костромцова ул, д. 31 | BH11: Абаканово с, Костромцова ул, д. 31 | BQ11: Абаканово с, Костромцова ул, д. 31 | BW11: Абаканово с, Костромцова ул, д. 31 | CE11: Абаканово с, Костромцова ул, д. 31 | CL11: Абаканово с, Костромцова ул, д. 31 | CU11: Абаканово с, Костромцова ул, д. 31 | CZ11: Абаканово с, Костромцова ул, д. 31 | DI11: Абаканово с, Костромцова ул, д. 31 | DN11: Абаканово с, Костромцова ул, д. 31 | DS11: Абаканово с, Костромцова ул, д. 31 | DV11: Абаканово с, Костромцова ул, д. 31 | EI11: 1298.9 | EJ11: 27 | EK11: 35.1 | EL11: Общий счет РО+
A12: Абаканово с, Костромцова ул, д.33 | B12: ="Абаканово с, Костромцова ул, д.33" -> Абаканово с, Костромцова ул, д.33 | C12: Абаканово с, Костромцова ул, д.33 | D12: ="Абаканово с, Костромцова ул, д.33" -> Абаканово с, Костромцова ул, д.33 | E12: ="Абаканово с, Костромцова ул, д.33" -> Абаканово с, Костромцова ул, д.33 | F12: Абаканово с, Костромцова ул, д.33 | N12: ="Абаканово с, Костромцова ул, д.33" -> Абаканово с, Костромцова ул, д.33 | AE12: Абаканово с, Костромцова ул, д. 33 | AJ12: Абаканово с, Костромцова ул, д. 33 | AU12: Абаканово с, Костромцова ул, д. 33 | BB12: Абаканово с, Костромцова ул, д. 33 | BH12: Абаканово с, Костромцова ул, д. 33 | BQ12: Абаканово с, Костромцова ул, д. 33 | BW12: Абаканово с, Костромцова ул, д. 33 | CE12: Абаканово с, Костромцова ул, д. 33 | CL12: Абаканово с, Костромцова ул, д. 33 | CU12: Абаканово с, Костромцова ул, д. 33 | CZ12: Абаканово с, Костромцова ул, д. 33 | DI12: Абаканово с, Костромцова ул, д. 33 | DN12: Абаканово с, Костромцова ул, д. 33 | DS12: Абаканово с, Костромцова ул, д. 33 | DV12: Абаканово с, Костромцова ул, д. 33 | EI12: 1309.9 | EJ12: 28 | EK12: 36.4 | EL12: Общий счет РО+
A13: Абаканово с, Костромцова ул, д.35 | B13: ="Абаканово с, Костромцова ул, д.35" -> Абаканово с, Костромцова ул, д.35 | C13: Абаканово с, Костромцова ул, д.35 | D13: ="Абаканово с, Костромцова ул, д.35" -> Абаканово с, Костромцова ул, д.35 | E13: ="Абаканово с, Костромцова ул, д.35" -> Абаканово с, Костромцова ул, д.35 | F13: Абаканово с, Костромцова ул, д.35 | N13: ="Абаканово с, Костромцова ул, д.35" -> Абаканово с, Костромцова ул, д.35 | AE13: Абаканово с, Костромцова ул, д. 35 | AJ13: Абаканово с, Костромцова ул, д. 35 | AU13: Абаканово с, Костромцова ул, д. 35 | BB13: Абаканово с, Костромцова ул, д. 35 | BH13: Абаканово с, Костромцова ул, д. 35 | BQ13: Абаканово с, Костромцова ул, д. 35 | BW13: Абаканово с, Костромцова ул, д. 35 | CE13: Абаканово с, Костромцова ул, д. 35 | CL13: Абаканово с, Костромцова ул, д. 35 | CU13: Абаканово с, Костромцова ул, д. 35 | CZ13: Абаканово с, Костромцова ул, д. 35 | DI13: Абаканово с, Костромцова ул, д. 35 | DN13: Абаканово с, Костромцова ул, д. 35 | DS13: Абаканово с, Костромцова ул, д. 35 | DV13: Абаканово с, Костромцова ул, д. 35 | EI13: 1460.8 | EJ13: 28 | EK13: 36.4 | EL13: Общий счет РО+
A14: Абаканово с, Костромцова ул, д.37 | B14: ="Абаканово с, Костромцова ул, д.37" -> Абаканово с, Костромцова ул, д.37 | C14: Абаканово с, Костромцова ул, д.37 | D14: ="Абаканово с, Костромцова ул, д.37" -> Абаканово с, Костромцова ул, д.37 | E14: ="Абаканово с, Костромцова ул, д.37" -> Абаканово с, Костромцова ул, д.37 | F14: Абаканово с, Костромцова ул, д.37 | N14: ="Абаканово с, Костромцова ул, д.37" -> Абаканово с, Костромцова ул, д.37 | AE14: Абаканово с, Костромцова ул, д. 37 | AJ14: Абаканово с, Костромцова ул, д. 37 | AU14: Абаканово с, Костромцова ул, д. 37 | BB14: Абаканово с, Костромцова ул, д. 37 | BH14: Абаканово с, Костромцова ул, д. 37 | BQ14: Абаканово с, Костромцова ул, д. 37 | BW14: Абаканово с, Костромцова ул, д. 37 | CE14: Абаканово с, Костромцова ул, д. 37 | CL14: Абаканово с, Костромцова ул, д. 37 | CU14: Абаканово с, Костромцова ул, д. 37 | CZ14: Абаканово с, Костромцова ул, д. 37 | DI14: Абаканово с, Костромцова ул, д. 37 | DN14: Абаканово с, Костромцова ул, д. 37 | DS14: Абаканово с, Костромцова ул, д. 37 | DV14: Абаканово с, Костромцова ул, д. 37 | EI14: 1241 | EJ14: 28 | EK14: 36.4 | EL14: Общий счет РО+
A15: Абаканово с, Октябрьская ул, д.2 | B15: ="Абаканово с, Октябрьская ул, д.2" -> Абаканово с, Октябрьская ул, д.2 | C15: Абаканово с, Октябрьская ул, д.2 | D15: ="Абаканово с, Октябрьская ул, д.2" -> Абаканово с, Октябрьская ул, д.2 | E15: ="Абаканово с, Октябрьская ул, д.2" -> Абаканово с, Октябрьская ул, д.2 | F15: Абаканово с, Октябрьская ул, д.2 | N15: ="Абаканово с, Октябрьская ул, д.2" -> Абаканово с, Октябрьская ул, д.2 | AE15: Абаканово с, Октябрьская ул, д. 2 | EK15: =EJ15*1.3 -> 0 | EL15: Общий счет РО - 291,00 | EM15: 4-х квартирный | EN15: Исключен 01.04.2019
A16: Абаканово с, Октябрьская ул, д.4 | B16: ="Абаканово с, Октябрьская ул, д.4" -> Абаканово с, Октябрьская ул, д.4 | C16: Абаканово с, Октябрьская ул, д.4 | D16: ="Абаканово с, Октябрьская ул, д.4" -> Абаканово с, Октябрьская ул, д.4 | E16: ="Абаканово с, Октябрьская ул, д.4" -> Абаканово с, Октябрьская ул, д.4 | F16: Абаканово с, Октябрьская ул, д.4 | N16: ="Абаканово с, Октябрьская ул, д.4" -> Абаканово с, Октябрьская ул, д.4 | AE16: Абаканово с, Октябрьская ул, д. 4 | EK16: 0 | EL16: Общий счет РО - 323,30 | EM16: 4-х квартирный | EN16: Исключен 01.04.2019
A17: Абаканово с, Октябрьская ул, д.6 | B17: ="Абаканово с, Октябрьская ул, д.6" -> Абаканово с, Октябрьская ул, д.6 | C17: Абаканово с, Октябрьская ул, д.6 | D17: ="Абаканово с, Октябрьская ул, д.6" -> Абаканово с, Октябрьская ул, д.6 | E17: ="Абаканово с, Октябрьская ул, д.6" -> Абаканово с, Октябрьская ул, д.6 | F17: Абаканово с, Октябрьская ул, д.6 | N17: ="Абаканово с, Октябрьская ул, д.6" -> Абаканово с, Октябрьская ул, д.6 | AE17: Абаканово с, Октябрьская ул, д. 6 | EK17: 0 | EL17: Общий счет РО - 322,30 | EM17: 4-х квартирный | EN17: Исключен 01.04.2019
A18: Абаканово с, Октябрьская ул, д.8 | B18: ="Абаканово с, Октябрьская ул, д.8" -> Абаканово с, Октябрьская ул, д.8 | C18: Абаканово с, Октябрьская ул, д.8 | D18: ="Абаканово с, Октябрьская ул, д.8" -> Абаканово с, Октябрьская ул, д.8 | E18: ="Абаканово с, Октябрьская ул, д.8" -> Абаканово с, Октябрьская ул, д.8 | F18: Абаканово с, Октябрьская ул, д.8 | N18: ="Абаканово с, Октябрьская ул, д.8" -> Абаканово с, Октябрьская ул, д.8 | AE18: Абаканово с, Октябрьская ул, д. 8 | EK18: 0 | EL18: Общий счет РО - 320,90 | EM18: 4-х квартирный | EN18: Исключен 01.04.2019
A19: Абаканово с, Октябрьская ул, д.10 | B19: ="Абаканово с, Октябрьская ул, д.10" -> Абаканово с, Октябрьская ул, д.10 | C19: Абаканово с, Октябрьская ул, д.10 | D19: ="Абаканово с, Октябрьская ул, д.10" -> Абаканово с, Октябрьская ул, д.10 | E19: ="Абаканово с, Октябрьская ул, д.10" -> Абаканово с, Октябрьская ул, д.10 | F19: Абаканово с, Октябрьская ул, д.10 | N19: ="Абаканово с, Октябрьская ул, д.10" -> Абаканово с, Октябрьская ул, д.10 | AE19: Абаканово с, Октябрьская ул, д. 10 | EK19: 0 | EL19: Общий счет РО - 303,40 | EM19: 4-х квартирный | EN19: Исключен 01.04.2019
A20: Абаканово с, Октябрьская ул, д.12 | B20: ="Абаканово с, Октябрьская ул, д.12" -> Абаканово с, Октябрьская ул, д.12 | C20: Абаканово с, Октябрьская ул, д.12 | D20: ="Абаканово с, Октябрьская ул, д.12" -> Абаканово с, Октябрьская ул, д.12 | E20: ="Абаканово с, Октябрьская ул, д.12" -> Абаканово с, Октябрьская ул, д.12 | F20: Абаканово с, Октябрьская ул, д.12 | N20: ="Абаканово с, Октябрьская ул, д.12" -> Абаканово с, Октябрьская ул, д.12 | AE20: Абаканово с, Октябрьская ул, д. 12 | EK20: 0 | EL20: Общий счет РО - 305,50 | EM20: 4-х квартирный | EN20: Исключен 01.04.2019
A21: Абаканово с, Октябрьская ул, д.14 | B21: ="Абаканово с, Октябрьская ул, д.14" -> Абаканово с, Октябрьская ул, д.14 | C21: Абаканово с, Октябрьская ул, д.14 | D21: ="Абаканово с, Октябрьская ул, д.14" -> Абаканово с, Октябрьская ул, д.14 | E21: ="Абаканово с, Октябрьская ул, д.14" -> Абаканово с, Октябрьская ул, д.14 | F21: Абаканово с, Октябрьская ул, д.14 | N21: ="Абаканово с, Октябрьская ул, д.14" -> Абаканово с, Октябрьская ул, д.14 | AE21: Абаканово с, Октябрьская ул, д. 14 | EK21: 0 | EL21: Общий счет РО - 322,20 | EM21: 4-х квартирный | EN21: Исключен 01.04.2019
A22: Абаканово с, Октябрьская ул, д.16 | B22: ="Абаканово с, Октябрьская ул, д.16" -> Абаканово с, Октябрьская ул, д.16 | C22: Абаканово с, Октябрьская ул, д.16 | D22: ="Абаканово с, Октябрьская ул, д.16" -> Абаканово с, Октябрьская ул, д.16 | E22: ="Абаканово с, Октябрьская ул, д.16" -> Абаканово с, Октябрьская ул, д.16 | F22: Абаканово с, Октябрьская ул, д.16 | N22: ="Абаканово с, Октябрьская ул, д.16" -> Абаканово с, Октябрьская ул, д.16 | AE22: Абаканово с, Октябрьская ул, д. 16 | EK22: 0 | EL22: Общий счет РО - 321,90 | EM22: 4-х квартирный | EN22: Исключен 01.04.2019
A23: Абаканово с, Школьная ул, д.3 | B23: ="Абаканово с, Школьная ул, д.3" -> Абаканово с, Школьная ул, д.3 | C23: Абаканово с, Школьная ул, д.3 | D23: ="Абаканово с, Школьная ул, д.3" -> Абаканово с, Школьная ул, д.3 | E23: ="Абаканово с, Школьная ул, д.3" -> Абаканово с, Школьная ул, д.3 | F23: Абаканово с, Школьная ул, д.3 | N23: ="Абаканово с, Школьная ул, д.3" -> Абаканово с, Школьная ул, д.3 | AE23: Абаканово с, Школьная ул, д. 3 | EK23: 0 | EL23: Общий счет РО - 132,10 | EM23: 4-х квартирный | EN23: Исключен 01.04.2019
A24: Абаканово с, Юбилейная ул, д.2 | EK24: 0 | EN24: Исключен
A25: Андогский п, Бумажников ул, д.11 | B25: ="Андогский п, Бумажников ул, д.11" -> Андогский п, Бумажников ул, д.11 | C25: Андогский п, Бумажников ул, д.11 | D25: ="Андогский п, Бумажников ул, д.11" -> Андогский п, Бумажников ул, д.11 | E25: ="Андогский п, Бумажников ул, д.11" -> Андогский п, Бумажников ул, д.11 | F25: Андогский п, Бумажников ул, д.11 | N25: ="Андогский п, Бумажников ул, д.11" -> Андогский п, Бумажников ул, д.11 | AE25: Андогский п, Бумажников ул, д. 11 | AJ25: Андогский п, Бумажников ул, д. 11 | AU25: Андогский п, Бумажников ул, д. 11 | BB25: Андогский п, Бумажников ул, д. 11 | BH25: Андогский п, Бумажников ул, д. 11 | BQ25: Андогский п, Бумажников ул, д. 11 | EK25: 0 | EL25: Общий счет РО - 162,90 | EM25: дом блокированной застройки. Справка БТИ 416 от 26.09.2018 | EN25: Исключен
A26: Андогский п, Бумажников ул, д.3 | B26: ="Андогский п, Бумажников ул, д.3" -> Андогский п, Бумажников ул, д.3 | EK26: 0 | EN26: Исключен
A27: Андогский п, Бумажников ул, д.9 | B27: ="Андогский п, Бумажников ул, д.9" -> Андогский п, Бумажников ул, д.9 | C27: Андогский п, Бумажников ул, д.9 | D27: ="Андогский п, Бумажников ул, д.9" -> Андогский п, Бумажников ул, д.9 | E27: ="Андогский п, Бумажников ул, д.9" -> Андогский п, Бумажников ул, д.9 | F27: Андогский п, Бумажников ул, д.9 | N27: ="Андогский п, Бумажников ул, д.9" -> Андогский п, Бумажников ул, д.9 | AE27: Андогский п, Бумажников ул, д. 9 | EK27: 0 | EL27: Общий счет РО - 95,30 | EM27: 4-х квартирный | EN27: Исключен 01.04.2019
A28: Андогский п, Дачная ул, д.1А | B28: ="Андогский п, Дачная ул, д.1А" -> Андогский п, Дачная ул, д.1А | EK28: 0 | EN28: Исключен
A29: Андогский п, Дзержинского ул, д.8а | B29: ="Андогский п, Дзержинского ул, д.8а" -> Андогский п, Дзержинского ул, д.8а | C29: Андогский п, Дзержинского ул, д.8А | D29: ="Андогский п, Дзержинского ул, д.8А" -> Андогский п, Дзержинского ул, д.8А | E29: ="Андогский п, Дзержинского ул, д.8А" -> Андогский п, Дзержинского ул, д.8А | F29: Андогский п, Дзержинского ул, д.8А | N29: ="Андогский п, Дзержинского ул, д.8А" -> Андогский п, Дзержинского ул, д.8А | AE29: Андогский п, Дзержинского ул, д. 8А | EK29: 0 | EL29: Общий счет РО 133,20 | EM29: Дом блокированной застройки. Справка от 16.11.2018 № 92 | EN29: Исключен 01.04.2019
A30: Андогский п, Дзержинского ул, д.9А | B30: ="Андогский п, Дзержинского ул, д.9А" -> Андогский п, Дзержинского ул, д.9А | C30: Андогский п, Дзержинского ул, д.9А | D30: ="Андогский п, Дзержинского ул, д.9А" -> Андогский п, Дзержинского ул, д.9А | E30: ="Андогский п, Дзержинского ул, д.9А" -> Андогский п, Дзержинского ул, д.9А | F30: Андогский п, Дзержинского ул, д.9А | N30: ="Андогский п, Дзержинского ул, д.9А" -> Андогский п, Дзержинского ул, д.9А | AE30: Андогский п, Дзержинского ул, д. 9А | AJ30: Андогский п, Дзержинского ул, д. 9А | AU30: Андогский п, Дзержинского ул, д. 9А | BB30: Андогский п, Дзержинского ул, д. 9А | BH30: Андогский п, Дзержинского ул, д. 9А | BQ30: Андогский п, Дзержинского ул, д. 9А | BW30: Андогский п, Дзержинского ул, д. 9А | CE30: Андогский п, Дзержинского ул, д. 9А | CL30: Андогский п, Дзержинского ул, д. 9А | CU30: Андогский п, Дзержинского ул, д. 9А | CZ30: Андогский п, Дзержинского ул, д. 9А | DI30: Андогский п, Дзержинского ул, д. 9А | DN30: Андогский п, Дзержинского ул, д. 9А | DS30: Андогский п, Дзержинского ул, д. 9А | DV30: Андогский п, Дзержинского ул, д. 9А | EI30: 464.4 | EJ30: 12 | EK30: =EJ30*1.3 -> 15.6 | EL30: Общий счет РО+
A31: Андогский п, Дзержинского ул, д.10 | B31: ="Андогский п, Дзержинского ул, д.10" -> Андогский п, Дзержинского ул, д.10 | C31: Андогский п, Дзержинского ул, д.10 | D31: ="Андогский п, Дзержинского ул, д.10" -> Андогский п, Дзержинского ул, д.10 | E31: ="Андогский п, Дзержинского ул, д.10" -> Андогский п, Дзержинского ул, д.10 | F31: Андогский п, Дзержинского ул, д.10 | N31: ="Андогский п, Дзержинского ул, д.10" -> Андогский п, Дзержинского ул, д.10 | AE31: Андогский п, Дзержинского ул, д. 10 | AJ31: Андогский п, Дзержинского ул, д. 10 | AU31: Андогский п, Дзержинского ул, д. 10 | BB31: Андогский п, Дзержинского ул, д. 10 | BH31: Андогский п, Дзержинского ул, д. 10 | BQ31: Андогский п, Дзержинского ул, д. 10 | BW31: Андогский п, Дзержинского ул, д. 10 | CE31: Андогский п, Дзержинского ул, д. 10 | CL31: Андогский п, Дзержинского ул, д. 10 | CU31: Андогский п, Дзержинского ул, д. 10 | CZ31: Андогский п, Дзержинского ул, д. 10 | DI31: Андогский п, Дзержинского ул, д. 10 | DN31: Андогский п, Дзержинского ул, д. 10 | DS31: Андогский п, Дзержинского ул, д. 10 | DV31: Андогский п, Дзержинского ул, д. 10 | EI31: 293.2 | EJ31: 8 | EK31: =EJ31*1.3 -> 10.4 | EL31: Общий счет РО+
A32: Андогский п, Дзержинского ул, д.11А | B32: ="Андогский п, Дзержинского ул, д.11А" -> Андогский п, Дзержинского ул, д.11А | C32: Андогский п, Дзержинского ул, д.11А | D32: ="Андогский п, Дзержинского ул, д.11А" -> Андогский п, Дзержинского ул, д.11А | E32: ="Андогский п, Дзержинского ул, д.11А" -> Андогский п, Дзержинского ул, д.11А | F32: Андогский п, Дзержинского ул, д.11А | N32: ="Андогский п, Дзержинского ул, д.11А" -> Андогский п, Дзержинского ул, д.11А | AE32: Андогский п, Дзержинского ул, д. 11 | AJ32: Андогский п, Дзержинского ул, д. 11 | AU32: Андогский п, Дзержинского ул, д. 11 | BB32: Андогский п, Дзержинского ул, д. 11 | BH32: Андогский п, Дзержинского ул, д. 11 | BQ32: Андогский п, Дзержинского ул, д. 11 | BW32: Андогский п, Дзержинского ул, д. 11 | CE32: Андогский п, Дзержинского ул, д. 11А | CL32: Андогский п, Дзержинского ул, д. 11А | CU32: Андогский п, Дзержинского ул, д. 11А | CZ32: Андогский п, Дзержинского ул, д. 11А | DI32: Андогский п, Дзержинского ул, д. 11А | DN32: Андогский п, Дзержинского ул, д. 11А | DS32: Андогский п, Дзержинского ул, д. 11А | DV32: Андогский п, Дзержинского ул, д. 11А | EI32: 562.1 | EJ32: 12 | EK32: =EJ32*1.3 -> 15.6 | EL32: Общий счет РО+
A33: Андогский п, Дзержинского ул, д.11 | B33: ="Андогский п, Дзержинского ул, д.11" -> Андогский п, Дзержинского ул, д.11 | C33: Андогский п, Дзержинского ул, д.11 | D33: ="Андогский п, Дзержинского ул, д.11" -> Андогский п, Дзержинского ул, д.11 | E33: ="Андогский п, Дзержинского ул, д.11" -> Андогский п, Дзержинского ул, д.11 | F33: Андогский п, Дзержинского ул, д.11 | N33: ="Андогский п, Дзержинского ул, д.11" -> Андогский п, Дзержинского ул, д.11 | AE33: Андогский п, Дзержинского ул, д. 11А | AJ33: Андогский п, Дзержинского ул, д. 11А | AU33: Андогский п, Дзержинского ул, д. 11А | BB33: Андогский п, Дзержинского ул, д. 11А | BH33: Андогский п, Дзержинского ул, д. 11А | BQ33: Андогский п, Дзержинского ул, д. 11А | BW33: Андогский п, Дзержинского ул, д. 11А | CE33: Андогский п, Дзержинского ул, д. 11 | CL33: Андогский п, Дзержинского ул, д. 11 | CU33: Андогский п, Дзержинского ул, д. 11 | CZ33: Андогский п, Дзержинского ул, д. 11 | DI33: Андогский п, Дзержинского ул, д. 11 | DN33: Андогский п, Дзержинского ул, д. 11 | DS33: Андогский п, Дзержинского ул, д. 11 | DV33: Андогский п, Дзержинского ул, д. 11 | EI33: 298.2 | EJ33: 8 | EK33: 10.4 | EL33: Общий счет РО+
A34: Андогский п, Дзержинского ул, д.12 | B34: ="Андогский п, Дзержинского ул, д.12" -> Андогский п, Дзержинского ул, д.12 | C34: Андогский п, Дзержинского ул, д.12 | D34: ="Андогский п, Дзержинского ул, д.12" -> Андогский п, Дзержинского ул, д.12 | E34: ="Андогский п, Дзержинского ул, д.12" -> Андогский п, Дзержинского ул, д.12 | F34: Андогский п, Дзержинского ул, д.12 | N34: ="Андогский п, Дзержинского ул, д.12" -> Андогский п, Дзержинского ул, д.12 | AE34: Андогский п, Дзержинского ул, д. 12 | AJ34: Андогский п, Дзержинского ул, д. 12 | AU34: Андогский п, Дзержинского ул, д. 12 | BB34: Андогский п, Дзержинского ул, д. 12 | BH34: Андогский п, Дзержинского ул, д. 12 | BQ34: Андогский п, Дзержинского ул, д. 12 | BW34: Андогский п, Дзержинского ул, д. 12 | CE34: Андогский п, Дзержинского ул, д. 12 | CL34: Андогский п, Дзержинского ул, д. 12 | CU34: Андогский п, Дзержинского ул, д. 12 | CZ34: Андогский п, Дзержинского ул, д. 12 | DI34: Андогский п, Дзержинского ул, д. 12 | DN34: Андогский п, Дзержинского ул, д. 12 | DS34: Андогский п, Дзержинского ул, д. 12 | DV34: Андогский п, Дзержинского ул, д. 12 | EI34: 502.2 | EJ34: 12 | EK34: =EJ34*1.3 -> 15.6 | EL34: Общий счет РО+
A35: Андогский п, Дзержинского ул, д.14 | B35: ="Андогский п, Дзержинского ул, д.14" -> Андогский п, Дзержинского ул, д.14 | C35: Андогский п, Дзержинского ул, д.14 | D35: ="Андогский п, Дзержинского ул, д.14" -> Андогский п, Дзержинского ул, д.14 | E35: ="Андогский п, Дзержинского ул, д.14" -> Андогский п, Дзержинского ул, д.14 | F35: Андогский п, Дзержинского ул, д.14 | N35: ="Андогский п, Дзержинского ул, д.14" -> Андогский п, Дзержинского ул, д.14 | AE35: Андогский п, Дзержинского ул, д. 14 | AJ35: Андогский п, Дзержинского ул, д. 14 | AU35: Андогский п, Дзержинского ул, д. 14 | BB35: Андогский п, Дзержинского ул, д. 14 | BH35: Андогский п, Дзержинского ул, д. 14 | BQ35: Андогский п, Дзержинского ул, д. 14 | BW35: Андогский п, Дзержинского ул, д. 14 | CE35: Андогский п, Дзержинского ул, д. 14 | CL35: Андогский п, Дзержинского ул, д. 14 | CU35: Андогский п, Дзержинского ул, д. 14 | CZ35: Андогский п, Дзержинского ул, д. 14 | DI35: Андогский п, Дзержинского ул, д. 14 | DN35: Андогский п, Дзержинского ул, д. 14 | DS35: Андогский п, Дзержинского ул, д. 14 | DV35: Андогский п, Дзержинского ул, д. 14 | EI35: 505 | EJ35: 14 | EK35: =EJ35*1.3 -> 18.2 | EL35: Общий счет РО+
A36: Андогский п, Карла Маркса ул, д.1 | B36: ="Андогский п, Карла Маркса ул, д.1" -> Андогский п, Карла Маркса ул, д.1 | C36: Андогский п, Карла Маркса ул, д.1 | D36: ="Андогский п, Карла Маркса ул, д.1" -> Андогский п, Карла Маркса ул, д.1 | E36: ="Андогский п, Карла Маркса ул, д.1" -> Андогский п, Карла Маркса ул, д.1 | F36: Андогский п, Карла Маркса ул, д.1 | N36: ="Андогский п, Карла Маркса ул, д.1" -> Андогский п, Карла Маркса ул, д.1 | AE36: Андогский п, Карла Маркса ул, д. 1 | AJ36: Андогский п, Карла Маркса ул, д. 1 | AU36: Андогский п, Карла Маркса ул, д. 1 | BB36: Андогский п, Карла Маркса ул, д. 1 | BH36: Андогский п, Карла Маркса ул, д. 1 | BQ36: Андогский п, Карла Маркса ул, д. 1 | BW36: Андогский п, Карла Маркса ул, д. 1 | CE36: Андогский п, Карла Маркса ул, д. 1 | CL36: Андогский п, Карла Маркса ул, д. 1 | CU36: Андогский п, Карла Маркса ул, д. 1 | CZ36: Андогский п, Карла Маркса ул, д. 1 | DI36: Андогский п, Карла Маркса ул, д. 1 | DN36: Андогский п, Карла Маркса ул, д. 1 | DS36: Андогский п, Карла Маркса ул, д. 1 | DV36: Андогский п, Карла Маркса ул, д. 1 | EI36: 419.7 | EJ36: 9 | EK36: =EJ36*1.3 -> 11.7 | EL36: Общий счет РО+
A37: Андогский п, Карла Маркса ул, д.9А | B37: ="Андогский п, Карла Маркса ул, д.9А" -> Андогский п, Карла Маркса ул, д.9А | C37: Андогский п, Карла Маркса ул, д.9А | D37: ="Андогский п, Карла Маркса ул, д.9А" -> Андогский п, Карла Маркса ул, д.9А | E37: ="Андогский п, Карла Маркса ул, д.9А" -> Андогский п, Карла Маркса ул, д.9А | F37: Андогский п, Карла Маркса ул, д.9А | N37: ="Андогский п, Карла Маркса ул, д.9А" -> Андогский п, Карла Маркса ул, д.9А | AE37: Андогский п, Карла Маркса ул, д. 9А | EK37: =EJ37*1.3 -> 0 | EL37: Общий счет РО - 139,60 | EM37: 4-х квартирный | EN37: Исключен 01.04.2019
A38: Андогский п, Лесная ул, д.1 | B38: ="Андогский п, Лесная ул, д.1" -> Андогский п, Лесная ул, д.1 | EK38: 0 | EN38: Исключен
A39: Андогский п, Лесная ул, д.12 | B39: ="Андогский п, Лесная ул, д.12" -> Андогский п, Лесная ул, д.12 | C39: Андогский п, Лесная ул, д.12 | D39: ="Андогский п, Лесная ул, д.12" -> Андогский п, Лесная ул, д.12 | E39: ="Андогский п, Лесная ул, д.12" -> Андогский п, Лесная ул, д.12 | F39: Андогский п, Лесная ул, д.12 | N39: ="Андогский п, Лесная ул, д.12" -> Андогский п, Лесная ул, д.12 | AE39: Андогский п, Лесная ул, д. 12 | EK39: 0 | EL39: Общий счет РО - 155,60 | EM39: 4-х квартирный | EN39: Исключен 01.04.2019
A40: Андогский п, Лесная ул, д.12А | B40: ="Андогский п, Лесная ул, д.12А" -> Андогский п, Лесная ул, д.12А | EK40: 0 | EN40: Исключен
A41: Андогский п, Мира ул, д.1 | B41: ="Андогский п, Мира ул, д.1" -> Андогский п, Мира ул, д.1 | EK41: 0 | EN41: Исключен
A42: Андогский п, Мира ул, д.3 | B42: ="Андогский п, Мира ул, д.3" -> Андогский п, Мира ул, д.3 | C42: Андогский п, Мира ул, д.3 | D42: ="Андогский п, Мира ул, д.3" -> Андогский п, Мира ул, д.3 | E42: ="Андогский п, Мира ул, д.3" -> Андогский п, Мира ул, д.3 | F42: Андогский п, Мира ул, д.3 | N42: ="Андогский п, Мира ул, д.3" -> Андогский п, Мира ул, д.3 | EK42: 0 | EL42: Общий счет РО 165,30 | EM42: Дом блокированной застройки. Справка от 13.09.2018 № 73. поступила в Фонд 16.10.2018 | EN42: Исключен 30.11.2018
A43: Андогский п, Мира ул, д.4 | B43: ="Андогский п, Мира ул, д.4" -> Андогский п, Мира ул, д.4 | C43: Андогский п, Мира ул, д.4 | D43: ="Андогский п, Мира ул, д.4" -> Андогский п, Мира ул, д.4 | E43: ="Андогский п, Мира ул, д.4" -> Андогский п, Мира ул, д.4 | F43: Андогский п, Мира ул, д.4 | N43: ="Андогский п, Мира ул, д.4" -> Андогский п, Мира ул, д.4 | AE43: Андогский п, Мира ул, д. 4 | EK43: 0 | EL43: Общий счет РО 197,70 | EM43: Дом блокированной застройки. Справка от 20.09.2018. поступила в Фонд 25.09.2018 | EN43: Исключен 01.04.2019
A44: Андогский п, Мира ул, д.6 | B44: ="Андогский п, Мира ул, д.6" -> Андогский п, Мира ул, д.6 | EK44: 0 | EN44: Исключен
A45: Андогский п, Мира ул, д.10 | B45: ="Андогский п, Мира ул, д.10" -> Андогский п, Мира ул, д.10 | C45: Андогский п, Мира ул, д.10 | D45: ="Андогский п, Мира ул, д.10" -> Андогский п, Мира ул, д.10 | E45: ="Андогский п, Мира ул, д.10" -> Андогский п, Мира ул, д.10 | F45: Андогский п, Мира ул, д.10 | N45: ="Андогский п, Мира ул, д.10" -> Андогский п, Мира ул, д.10 | AE45: Андогский п, Мира ул, д. 10 | EK45: 0 | EL45: Общий счет РО - 107,10 | EM45: 4-х квартирный | EN45: Исключен 01.04.2019
A46: Андогский п, Мира ул, д.12 | B46: ="Андогский п, Мира ул, д.12" -> Андогский п, Мира ул, д.12 | C46: Андогский п, Мира ул, д.12 | D46: ="Андогский п, Мира ул, д.12" -> Андогский п, Мира ул, д.12 | E46: ="Андогский п, Мира ул, д.12" -> Андогский п, Мира ул, д.12 | F46: Андогский п, Мира ул, д.12 | N46: ="Андогский п, Мира ул, д.12" -> Андогский п, Мира ул, д.12 | AE46: Андогский п, Мира ул, д. 12 | EK46: 0 | EL46: Общий счет РО - 160,10 | EM46: 4-х квартирный | EN46: Исключен 01.04.2019
A47: Андогский п, Мира ул, д.14 | B47: ="Андогский п, Мира ул, д.14" -> Андогский п, Мира ул, д.14 | C47: Андогский п, Мира ул, д.14 | D47: ="Андогский п, Мира ул, д.14" -> Андогский п, Мира ул, д.14 | E47: ="Андогский п, Мира ул, д.14" -> Андогский п, Мира ул, д.14 | F47: Андогский п, Мира ул, д.14 | N47: ="Андогский п, Мира ул, д.14" -> Андогский п, Мира ул, д.14 | AE47: Андогский п, Мира ул, д. 14 | EK47: 0 | EL47: Общий счет РО - 160,20 | EM47: 4-х квартирный | EN47: Исключен 01.04.2019
A48: Андогский п, Профсоюзная ул, д.5 | B48: ="Андогский п, Профсоюзная ул, д.5" -> Андогский п, Профсоюзная ул, д.5 | EK48: 0 | EN48: Исключен
A49: Андогский п, Профсоюзная ул, д.7а | B49: ="Андогский п, Профсоюзная ул, д.7а" -> Андогский п, Профсоюзная ул, д.7а | C49: Андогский п, Профсоюзная ул, д.7А | D49: ="Андогский п, Профсоюзная ул, д.7А" -> Андогский п, Профсоюзная ул, д.7А | E49: ="Андогский п, Профсоюзная ул, д.7А" -> Андогский п, Профсоюзная ул, д.7А | F49: Андогский п, Профсоюзная ул, д.7А | N49: ="Андогский п, Профсоюзная ул, д.7А" -> Андогский п, Профсоюзная ул, д.7А | AE49: Андогский п, Профсоюзная ул, д. 7А | EK49: 0 | EL49: Общий счет РО - 134,10 | EM49: 4-х квартирный | EN49: Исключен 01.04.2019
A50: Андогский п, Социалистическая ул, д.2 | B50: ="Андогский п, Социалистическая ул, д.2" -> Андогский п, Социалистическая ул, д.2 | C50: Андогский п, Социалистическая ул, д.2 | D50: ="Андогский п, Социалистическая ул, д.2" -> Андогский п, Социалистическая ул, д.2 | E50: ="Андогский п, Социалистическая ул, д.2" -> Андогский п, Социалистическая ул, д.2 | F50: Андогский п, Социалистическая ул, д.2 | N50: ="Андогский п, Социалистическая ул, д.2" -> Андогский п, Социалистическая ул, д.2 | AE50: Андогский п, Социалистическая ул, д. 2 | AJ50: Андогский п, Социалистическая ул, д. 2 | AU50: Андогский п, Социалистическая ул, д. 2 | BB50: Андогский п, Социалистическая ул, д. 2 | BH50: Андогский п, Социалистическая ул, д. 2 | BQ50: Андогский п, Социалистическая ул, д. 2 | BW50: Андогский п, Социалистическая ул, д. 2 | CE50: Андогский п, Социалистическая ул, д. 2 | CL50: Андогский п, Социалистическая ул, д. 2 | CU50: Андогский п, Социалистическая ул, д. 2 | CZ50: Андогский п, Социалистическая ул, д. 2 | DI50: Андогский п, Социалистическая ул, д. 2 | DN50: Андогский п, Социалистическая ул, д. 2 | DS50: Андогский п, Социалистическая ул, д. 2 | DV50: Андогский п, Социалистическая ул, д. 2 | EI50: 340.1 | EJ50: 13 | EK50: =EJ50*1.3 -> 16.9 | EL50: Общий счет РО+
A51: Андогский п, Социалистическая ул, д.4 | B51: ="Андогский п, Социалистическая ул, д.4" -> Андогский п, Социалистическая ул, д.4 | C51: Андогский п, Социалистическая ул, д.4 | D51: ="Андогский п, Социалистическая ул, д.4" -> Андогский п, Социалистическая ул, д.4 | E51: ="Андогский п, Социалистическая ул, д.4" -> Андогский п, Социалистическая ул, д.4 | F51: Андогский п, Социалистическая ул, д.4 | N51: ="Андогский п, Социалистическая ул, д.4" -> Андогский п, Социалистическая ул, д.4 | AE51: Андогский п, Социалистическая ул, д. 4 | EK51: 0 | EL51: Общий счет РО - 145,20 | EM51: 4-х квартирный | EN51: Исключен 01.04.2019
A52: Андогский п, Социалистическая ул, д.6 | B52: ="Андогский п, Социалистическая ул, д.6" -> Андогский п, Социалистическая ул, д.6 | EK52: 0 | EN52: Исключен
A53: Андогский п, Социалистическая ул, д.9 | B53: ="Андогский п, Социалистическая ул, д.9" -> Андогский п, Социалистическая ул, д.9 | C53: Андогский п, Социалистическая ул, д.9 | D53: ="Андогский п, Социалистическая ул, д.9" -> Андогский п, Социалистическая ул, д.9 | E53: ="Андогский п, Социалистическая ул, д.9" -> Андогский п, Социалистическая ул, д.9 | F53: Андогский п, Социалистическая ул, д.9 | N53: ="Андогский п, Социалистическая ул, д.9" -> Андогский п, Социалистическая ул, д.9 | AE53: Андогский п, Социалистическая ул, д. 9 | EK53: 0 | EL53: Общий счет РО - 112,80 | EM53: 4-х квартирный | EN53: Исключен 01.04.2019
A54: Андогский п, Фабричная ул, д.2 | B54: ="Андогский п, Фабричная ул, д.2" -> Андогский п, Фабричная ул, д.2 | C54: Андогский п, Фабричная ул, д.2 | D54: ="Андогский п, Фабричная ул, д.2" -> Андогский п, Фабричная ул, д.2 | E54: ="Андогский п, Фабричная ул, д.2" -> Андогский п, Фабричная ул, д.2 | F54: Андогский п, Фабричная ул, д.2 | N54: ="Андогский п, Фабричная ул, д.2" -> Андогский п, Фабричная ул, д.2 | AE54: Андогский п, Фабричная ул, д. 2 | EK54: 0 | EL54: Общий счет РО 113,30 | EM54: Дом блокированной застройки. Справка БТИ № 424 от 04.10.2018 г. | EN54: Исключен 01.04.2019
A55: Андогский п, Фабричная ул, д.29 | B55: ="Андогский п, Фабричная ул, д.29" -> Андогский п, Фабричная ул, д.29 | EK55: 0 | EN55: Исключен
A56: Андогский п, Фабричная ул, д.3 | B56: ="Андогский п, Фабричная ул, д.3" -> Андогский п, Фабричная ул, д.3 | EK56: 0 | EN56: Исключен
A57: Андогский п, Фабричная ул, д.4 | B57: ="Андогский п, Фабричная ул, д.4" -> Андогский п, Фабричная ул, д.4 | C57: Андогский п, Фабричная ул, д.4 | D57: ="Андогский п, Фабричная ул, д.4" -> Андогский п, Фабричная ул, д.4 | E57: ="Андогский п, Фабричная ул, д.4" -> Андогский п, Фабричная ул, д.4 | F57: Андогский п, Фабричная ул, д.4 | N57: ="Андогский п, Фабричная ул, д.4" -> Андогский п, Фабричная ул, д.4 | EK57: 0 | EL57: Общий счет РО 177,50 | EM57: Дом блокированной застройки. Письмо адм. От 10.07.2018 № 1-47/1474 + справка БТИ | EN57: Исключен 30.11.2018
A58: Андогский п, Фабричная ул, д.6 | B58: ="Андогский п, Фабричная ул, д.6" -> Андогский п, Фабричная ул, д.6 | EK58: 0 | EN58: Исключен
A59: Андогский п, Школьная ул, д.1 | B59: ="Андогский п, Школьная ул, д.1" -> Андогский п, Школьная ул, д.1 | C59: Андогский п, Школьная ул, д.1 | D59: ="Андогский п, Школьная ул, д.1" -> Андогский п, Школьная ул, д.1 | E59: ="Андогский п, Школьная ул, д.1" -> Андогский п, Школьная ул, д.1 | F59: Андогский п, Школьная ул, д.1 | N59: ="Андогский п, Школьная ул, д.1" -> Андогский п, Школьная ул, д.1 | AE59: Андогский п, Школьная ул, д. 1 | AJ59: Андогский п, Школьная ул, д. 1 | AU59: Андогский п, Школьная ул, д. 1 | BB59: Андогский п, Школьная ул, д. 1 | BH59: Андогский п, Школьная ул, д. 1 | BQ59: Андогский п, Школьная ул, д. 1 | BW59: Андогский п, Школьная ул, д. 1 | CE59: Андогский п, Школьная ул, д. 1 | CL59: Андогский п, Школьная ул, д. 1 | CU59: Андогский п, Школьная ул, д. 1 | CZ59: Андогский п, Школьная ул, д. 1 | DI59: Андогский п, Школьная ул, д. 1 | DN59: Андогский п, Школьная ул, д. 1 | DS59: Андогский п, Школьная ул, д. 1 | DV59: Андогский п, Школьная ул, д. 1 | EI59: 185.1 | EJ59: 7 | EK59: =EJ59*1.3 -> 9.1 | EL59: Общий счет РО+
A60: Андогский п, Школьная ул, д.2 | B60: ="Андогский п, Школьная ул, д.2" -> Андогский п, Школьная ул, д.2 | EK60: 0 | EN60: Исключен
A61: Андогский п, Школьная ул, д.3 | B61: ="Андогский п, Школьная ул, д.3" -> Андогский п, Школьная ул, д.3 | EK61: 0 | EN61: Исключен
A62: Андогский п, Школьная ул, д.4 | B62: ="Андогский п, Школьная ул, д.4" -> Андогский п, Школьная ул, д.4 | EK62: 0 | EN62: Исключен
A63: Андогский п, Школьная ул, д.5 | B63: ="Андогский п, Школьная ул, д.5" -> Андогский п, Школьная ул, д.5 | EK63: 0 | EN63: Исключен
A64: Андогский п, Школьная ул, д.6 | B64: ="Андогский п, Школьная ул, д.6" -> Андогский п, Школьная ул, д.6 | EK64: 0 | EN64: Исключен
A65: Батран д, д.6 | B65: ="Батран д, д.6" -> Батран д, д.6 | C65: Батран д, д.6 | D65: ="Батран д, д.6" -> Батран д, д.6 | E65: ="Батран д, д.6" -> Батран д, д.6 | F65: Батран д, д.6 | N65: ="Батран д, д.6" -> Батран д, д.6 | AE65: Батран д, д. 6 | AJ65: Батран д, д. 6 | AU65: Батран д, д. 6 | BB65: Батран д, д. 6 | BH65: Батран д, д. 6 | BQ65: Батран д, д. 6 | BW65: Батран д, д. 6 | CE65: Батран д, д. 6 | CL65: Батран д, д. 6 | CU65: Батран д, д. 6 | CZ65: Батран д, д. 6 | DI65: Батран д, д. 6 | DN65: Батран д, д. 6 | DS65: Батран д, д. 6 | DV65: Батран д, д. 6 | EI65: 576.5 | EJ65: 12 | EK65: =EJ65*1.3 -> 15.6 | EL65: Общий счет РО+
A66: Большое Ново д, Большеновская ул, д.2 | B66: ="Большое Ново д, Большеновская ул, д.2" -> Большое Ново д, Большеновская ул, д.2 | C66: Большое Ново д, Большеновская ул, д.2 | EK66: 0 | EN66: Исключен
A67: Ботово д, Ленина ул, д.2 | B67: ="Ботово д, Ленина ул, д.2" -> Ботово д, Ленина ул, д.2 | C67: Ботово д, Ленина ул, д.2 | D67: ="Ботово д, Ленина ул, д.2" -> Ботово д, Ленина ул, д.2 | E67: ="Ботово д, Ленина ул, д.2" -> Ботово д, Ленина ул, д.2 | F67: Ботово д, Ленина ул, д.2 | N67: ="Ботово д, Ленина ул, д.2" -> Ботово д, Ленина ул, д.2 | AE67: Ботово д, Ленина ул, д. 2 | AJ67: Ботово д, Ленина ул, д. 2 | AU67: Ботово д, Ленина ул, д. 2 | BB67: Ботово д, Ленина ул, д. 2 | BH67: Ботово д, Ленина ул, д. 2 | BQ67: Ботово д, Ленина ул, д. 2 | BW67: Ботово д, Ленина ул, д. 2 | CE67: Ботово д, Ленина ул, д. 2 | CL67: Ботово д, Ленина ул, д. 2 | CU67: Ботово д, Ленина ул, д. 2 | CZ67: Ботово д, Ленина ул, д. 2 | DI67: Ботово д, Ленина ул, д. 2 | DN67: Ботово д, Ленина ул, д. 2 | DS67: Ботово д, Ленина ул, д. 2 | DV67: Ботово д, Ленина ул, д. 2 | EI67: 1287.7 | EJ67: 29 | EK67: =EJ67*1.3 -> 37.7 | EL67: Общий счет РО+
A68: Ботово д, Ленина ул, д.3 | B68: ="Ботово д, Ленина ул, д.3" -> Ботово д, Ленина ул, д.3 | C68: Ботово д, Ленина ул, д.3 | D68: ="Ботово д, Ленина ул, д.3" -> Ботово д, Ленина ул, д.3 | E68: ="Ботово д, Ленина ул, д.3" -> Ботово д, Ленина ул, д.3 | F68: Ботово д, Ленина ул, д.3 | N68: ="Ботово д, Ленина ул, д.3" -> Ботово д, Ленина ул, д.3 | AE68: Ботово д, Ленина ул, д. 3 | AJ68: Ботово д, Ленина ул, д. 3 | AU68: Ботово д, Ленина ул, д. 3 | BB68: Ботово д, Ленина ул, д. 3 | BH68: Ботово д, Ленина ул, д. 3 | BQ68: Ботово д, Ленина ул, д. 3 | BW68: Ботово д, Ленина ул, д. 3 | CE68: Ботово д, Ленина ул, д. 3 | CL68: Ботово д, Ленина ул, д. 3 | CU68: Ботово д, Ленина ул, д. 3 | CZ68: Ботово д, Ленина ул, д. 3 | DI68: Ботово д, Ленина ул, д. 3 | DN68: Ботово д, Ленина ул, д. 3 | DS68: Ботово д, Ленина ул, д. 3 | DV68: Ботово д, Ленина ул, д. 3 | EI68: 1294.4 | EJ68: 28 | EK68: 36.4 | EL68: Общий счет РО+
A69: Ботово д, Ленина ул, д.4 | B69: ="Ботово д, Ленина ул, д.4" -> Ботово д, Ленина ул, д.4 | C69: Ботово д, Ленина ул, д.4 | D69: ="Ботово д, Ленина ул, д.4" -> Ботово д, Ленина ул, д.4 | E69: ="Ботово д, Ленина ул, д.4" -> Ботово д, Ленина ул, д.4 | F69: Ботово д, Ленина ул, д.4 | N69: ="Ботово д, Ленина ул, д.4" -> Ботово д, Ленина ул, д.4 | AE69: Ботово д, Ленина ул, д. 4 | AJ69: Ботово д, Ленина ул, д. 4 | AU69: Ботово д, Ленина ул, д. 4 | BB69: Ботово д, Ленина ул, д. 4 | BH69: Ботово д, Ленина ул, д. 4 | BQ69: Ботово д, Ленина ул, д. 4 | BW69: Ботово д, Ленина ул, д. 4 | CE69: Ботово д, Ленина ул, д. 4 | CL69: Ботово д, Ленина ул, д. 4 | CU69: Ботово д, Ленина ул, д. 4 | CZ69: Ботово д, Ленина ул, д. 4 | DI69: Ботово д, Ленина ул, д. 4 | DN69: Ботово д, Ленина ул, д. 4 | DS69: Ботово д, Ленина ул, д. 4 | DV69: Ботово д, Ленина ул, д. 4 | EI69: 1309.3 | EJ69: 27 | EK69: 35.1 | EL69: Общий счет РО+
A70: Ботово д, Ленина ул, д.5 | B70: ="Ботово д, Ленина ул, д.5" -> Ботово д, Ленина ул, д.5 | C70: Ботово д, Ленина ул, д.5 | D70: ="Ботово д, Ленина ул, д.5" -> Ботово д, Ленина ул, д.5 | E70: ="Ботово д, Ленина ул, д.5" -> Ботово д, Ленина ул, д.5 | F70: Ботово д, Ленина ул, д.5 | N70: ="Ботово д, Ленина ул, д.5" -> Ботово д, Ленина ул, д.5 | AE70: Ботово д, Ленина ул, д. 5 | AJ70: Ботово д, Ленина ул, д. 5 | AU70: Ботово д, Ленина ул, д. 5 | BB70: Ботово д, Ленина ул, д. 5 | BH70: Ботово д, Ленина ул, д. 5 | BQ70: Ботово д, Ленина ул, д. 5 | BW70: Ботово д, Ленина ул, д. 5 | CE70: Ботово д, Ленина ул, д. 5 | CL70: Ботово д, Ленина ул, д. 5 | CU70: Ботово д, Ленина ул, д. 5 | CZ70: Ботово д, Ленина ул, д. 5 | DI70: Ботово д, Ленина ул, д. 5 | DN70: Ботово д, Ленина ул, д. 5 | DS70: Ботово д, Ленина ул, д. 5 | DV70: Ботово д, Ленина ул, д. 5 | EI70: 1588 | EJ70: 27 | EK70: 35.1 | EL70: Общий счет РО+
A71: Ботово д, Ленина ул, д.6 | B71: ="Ботово д, Ленина ул, д.6" -> Ботово д, Ленина ул, д.6 | C71: Ботово д, Ленина ул, д.6 | D71: ="Ботово д, Ленина ул, д.6" -> Ботово д, Ленина ул, д.6 | E71: ="Ботово д, Ленина ул, д.6" -> Ботово д, Ленина ул, д.6 | F71: Ботово д, Ленина ул, д.6 | N71: ="Ботово д, Ленина ул, д.6" -> Ботово д, Ленина ул, д.6 | AE71: Ботово д, Ленина ул, д. 6 | AJ71: Ботово д, Ленина ул, д. 6 | AU71: Ботово д, Ленина ул, д. 6 | BB71: Ботово д, Ленина ул, д. 6 | BH71: Ботово д, Ленина ул, д. 6 | BQ71: Ботово д, Ленина ул, д. 6 | BW71: Ботово д, Ленина ул, д. 6 | CE71: Ботово д, Ленина ул, д. 6 | CL71: Ботово д, Ленина ул, д. 6 | CU71: Ботово д, Ленина ул, д. 6 | CZ71: Ботово д, Ленина ул, д. 6 | DI71: Ботово д, Ленина ул, д. 6 | DN71: Ботово д, Ленина ул, д. 6 | DS71: Ботово д, Ленина ул, д. 6 | DV71: Ботово д, Ленина ул, д. 6 | EI71: 1319.6 | EJ71: 27 | EK71: 35.1 | EL71: Специальный счет ТСЖ | EM71: ТСН "ТСЖ Ленина 6" | EN71: ОС-ССТСЖ с 22.10.2016
A72: Ботово д, Ленина ул, д.6А | B72: ="Ботово д, Ленина ул, д.6А" -> Ботово д, Ленина ул, д.6А | C72: Ботово д, Ленина ул, д.6А | D72: ="Ботово д, Ленина ул, д.6А" -> Ботово д, Ленина ул, д.6А | E72: ="Ботово д, Ленина ул, д.6А" -> Ботово д, Ленина ул, д.6А | F72: Ботово д, Ленина ул, д.6А | N72: ="Ботово д, Ленина ул, д.6А" -> Ботово д, Ленина ул, д.6А | AE72: Ботово д, Ленина ул, д. 6А | AJ72: Ботово д, Ленина ул, д. 6А | AU72: Ботово д, Ленина ул, д. 6А | BB72: Ботово д, Ленина ул, д. 6А | BH72: Ботово д, Ленина ул, д. 6А | BQ72: Ботово д, Ленина ул, д. 6А | BW72: Ботово д, Ленина ул, д. 6А | CE72: Ботово д, Ленина ул, д. 6А | CL72: Ботово д, Ленина ул, д. 6А | CU72: Ботово д, Ленина ул, д. 6А | CZ72: Ботово д, Ленина ул, д. 6А | DI72: Ботово д, Ленина ул, д. 6А | DN72: Ботово д, Ленина ул, д. 6А | DS72: Ботово д, Ленина ул, д. 6А | DV72: Ботово д, Ленина ул, д. 6А | EI72: 1272.5 | EJ72: 27 | EK72: 35.1 | EL72: Специальный счет ТСЖ | EM72: ТСЖ "Комфорт" | EN72: ОС-ССТСЖ с 11.01.2015
A73: Ботово д, Ленина ул, д.7 | B73: ="Ботово д, Ленина ул, д.7" -> Ботово д, Ленина ул, д.7 | C73: Ботово д, Ленина ул, д.7 | D73: ="Ботово д, Ленина ул, д.7" -> Ботово д, Ленина ул, д.7 | E73: ="Ботово д, Ленина ул, д.7" -> Ботово д, Ленина ул, д.7 | F73: Ботово д, Ленина ул, д.7 | N73: ="Ботово д, Ленина ул, д.7" -> Ботово д, Ленина ул, д.7 | AE73: Ботово д, Ленина ул, д. 7 | AJ73: Ботово д, Ленина ул, д. 7 | AU73: Ботово д, Ленина ул, д. 7 | BB73: Ботово д, Ленина ул, д. 7 | BH73: Ботово д, Ленина ул, д. 7 | BQ73: Ботово д, Ленина ул, д. 7 | BW73: Ботово д, Ленина ул, д. 7 | CE73: Ботово д, Ленина ул, д. 7 | CL73: Ботово д, Ленина ул, д. 7 | CU73: Ботово д, Ленина ул, д. 7 | CZ73: Ботово д, Ленина ул, д. 7 | DI73: Ботово д, Ленина ул, д. 7 | DN73: Ботово д, Ленина ул, д. 7 | DS73: Ботово д, Ленина ул, д. 7 | DV73: Ботово д, Ленина ул, д. 7 | EI73: 1553.4 | EJ73: 27 | EK73: 35.1 | EL73: Общий счет РО+
A74: Ботово д, Ленина ул, д.8 | B74: ="Ботово д, Ленина ул, д.8" -> Ботово д, Ленина ул, д.8 | C74: Ботово д, Ленина ул, д.8 | D74: ="Ботово д, Ленина ул, д.8" -> Ботово д, Ленина ул, д.8 | E74: ="Ботово д, Ленина ул, д.8" -> Ботово д, Ленина ул, д.8 | F74: Ботово д, Ленина ул, д.8 | N74: ="Ботово д, Ленина ул, д.8" -> Ботово д, Ленина ул, д.8 | AE74: Ботово д, Ленина ул, д. 8 | AJ74: Ботово д, Ленина ул, д. 8 | AU74: Ботово д, Ленина ул, д. 8 | BB74: Ботово д, Ленина ул, д. 8 | BH74: Ботово д, Ленина ул, д. 8 | BQ74: Ботово д, Ленина ул, д. 8 | BW74: Ботово д, Ленина ул, д. 8 | CE74: Ботово д, Ленина ул, д. 8 | CL74: Ботово д, Ленина ул, д. 8 | CU74: Ботово д, Ленина ул, д. 8 | CZ74: Ботово д, Ленина ул, д. 8 | DI74: Ботово д, Ленина ул, д. 8 | DN74: Ботово д, Ленина ул, д. 8 | DS74: Ботово д, Ленина ул, д. 8 | DV74: Ботово д, Ленина ул, д. 8 | EI74: 764.5 | EJ74: 14 | EK74: 18.2 | EL74: Общий счет РО+
A75: Ботово д, Ленина ул, д.10 | B75: ="Ботово д, Ленина ул, д.10" -> Ботово д, Ленина ул, д.10 | C75: Ботово д, Ленина ул, д.10 | D75: ="Ботово д, Ленина ул, д.10" -> Ботово д, Ленина ул, д.10 | E75: ="Ботово д, Ленина ул, д.10" -> Ботово д, Ленина ул, д.10 | F75: Ботово д, Ленина ул, д.10 | N75: ="Ботово д, Ленина ул, д.10" -> Ботово д, Ленина ул, д.10 | AE75: Ботово д, Ленина ул, д. 10 | AJ75: Ботово д, Ленина ул, д. 10 | AU75: Ботово д, Ленина ул, д. 10 | BB75: Ботово д, Ленина ул, д. 10 | BH75: Ботово д, Ленина ул, д. 10 | BQ75: Ботово д, Ленина ул, д. 10 | BW75: Ботово д, Ленина ул, д. 10 | CE75: Ботово д, Ленина ул, д. 10 | CL75: Ботово д, Ленина ул, д. 10 | CU75: Ботово д, Ленина ул, д. 10 | CZ75: Ботово д, Ленина ул, д. 10 | DI75: Ботово д, Ленина ул, д. 10 | DN75: Ботово д, Ленина ул, д. 10 | DS75: Ботово д, Ленина ул, д. 10 | DV75: Ботово д, Ленина ул, д. 10 | EI75: 466.9 | EJ75: 6 | EK75: 7.8 | EL75: Общий счет РО+
A76: Ботово д, Ленина ул, д.12 | B76: ="Ботово д, Ленина ул, д.12" -> Ботово д, Ленина ул, д.12 | C76: Ботово д, Ленина ул, д.12 | D76: ="Ботово д, Ленина ул, д.12" -> Ботово д, Ленина ул, д.12 | E76: ="Ботово д, Ленина ул, д.12" -> Ботово д, Ленина ул, д.12 | F76: Ботово д, Ленина ул, д.12 | N76: ="Ботово д, Ленина ул, д.12" -> Ботово д, Ленина ул, д.12 | AE76: Ботово д, Ленина ул, д. 12 | AJ76: Ботово д, Ленина ул, д. 12 | AU76: Ботово д, Ленина ул, д. 12 | BB76: Ботово д, Ленина ул, д. 12 | BH76: Ботово д, Ленина ул, д. 12 | BQ76: Ботово д, Ленина ул, д. 12 | BW76: Ботово д, Ленина ул, д. 12 | CE76: Ботово д, Ленина ул, д. 12 | CL76: Ботово д, Ленина ул, д. 12 | CU76: Ботово д, Ленина ул, д. 12 | CZ76: Ботово д, Ленина ул, д. 12 | DI76: Ботово д, Ленина ул, д. 12 | DN76: Ботово д, Ленина ул, д. 12 | DS76: Ботово д, Ленина ул, д. 12 | DV76: Ботово д, Ленина ул, д. 12 | EI76: 465.9 | EJ76: 19 | EK76: 24.7 | EL76: Общий счет РО+
A77: Ботово д, Ленина ул, д.14 | B77: ="Ботово д, Ленина ул, д.14" -> Ботово д, Ленина ул, д.14 | C77: Ботово д, Ленина ул, д.14 | D77: ="Ботово д, Ленина ул, д.14" -> Ботово д, Ленина ул, д.14 | E77: ="Ботово д, Ленина ул, д.14" -> Ботово д, Ленина ул, д.14 | F77: Ботово д, Ленина ул, д.14 | N77: ="Ботово д, Ленина ул, д.14" -> Ботово д, Ленина ул, д.14 | AE77: Ботово д, Ленина ул, д. 14 | AJ77: Ботово д, Ленина ул, д. 14 | AU77: Ботово д, Ленина ул, д. 14 | BB77: Ботово д, Ленина ул, д. 14 | BH77: Ботово д, Ленина ул, д. 14 | BQ77: Ботово д, Ленина ул, д. 14 | BW77: Ботово д, Ленина ул, д. 14 | CE77: Ботово д, Ленина ул, д. 14 | CL77: Ботово д, Ленина ул, д. 14 | CU77: Ботово д, Ленина ул, д. 14 | CZ77: Ботово д, Ленина ул, д. 14 | DI77: Ботово д, Ленина ул, д. 14 | DN77: Ботово д, Ленина ул, д. 14 | DS77: Ботово д, Ленина ул, д. 14 | DV77: Ботово д, Ленина ул, д. 14 | EI77: 461.4 | EJ77: 14 | EK77: 18.2 | EL77: Общий счет РО+
A78: Ботово д, Ленина ул, д.18 | B78: ="Ботово д, Ленина ул, д.18" -> Ботово д, Ленина ул, д.18 | C78: Ботово д, Ленина ул, д.18 | D78: ="Ботово д, Ленина ул, д.18" -> Ботово д, Ленина ул, д.18 | E78: ="Ботово д, Ленина ул, д.18" -> Ботово д, Ленина ул, д.18 | F78: Ботово д, Ленина ул, д.18 | N78: ="Ботово д, Ленина ул, д.18" -> Ботово д, Ленина ул, д.18 | AE78: Ботово д, Ленина ул, д. 18 | AJ78: Ботово д, Ленина ул, д. 18 | AU78: Ботово д, Ленина ул, д. 18 | BB78: Ботово д, Ленина ул, д. 18 | BH78: Ботово д, Ленина ул, д. 18 | BQ78: Ботово д, Ленина ул, д. 18 | BW78: Ботово д, Ленина ул, д. 18 | CE78: Ботово д, Ленина ул, д. 18 | CL78: Ботово д, Ленина ул, д. 18 | CU78: Ботово д, Ленина ул, д. 18 | CZ78: Ботово д, Ленина ул, д. 18 | DI78: Ботово д, Ленина ул, д. 18 | DN78: Ботово д, Ленина ул, д. 18 | DS78: Ботово д, Ленина ул, д. 18 | DV78: Ботово д, Ленина ул, д. 18 | EI78: 1359.1 | EJ78: 36 | EK78: 46.8 | EL78: Специальный счет РО + учет + взыскание | EN78: ОС-ССРО с 23.06.2020
A79: Ботово д, Ленина ул, д.19 | B79: ="Ботово д, Ленина ул, д.19" -> Ботово д, Ленина ул, д.19 | C79: Ботово д, Ленина ул, д.19 | D79: ="Ботово д, Ленина ул, д.19" -> Ботово д, Ленина ул, д.19 | E79: ="Ботово д, Ленина ул, д.19" -> Ботово д, Ленина ул, д.19 | F79: Ботово д, Ленина ул, д.19 | N79: ="Ботово д, Ленина ул, д.19" -> Ботово д, Ленина ул, д.19 | AE79: Ботово д, Ленина ул, д. 19 | AJ79: Ботово д, Ленина ул, д. 19 | AU79: Ботово д, Ленина ул, д. 19 | BB79: Ботово д, Ленина ул, д. 19 | BH79: Ботово д, Ленина ул, д. 19 | BQ79: Ботово д, Ленина ул, д. 19 | BW79: Ботово д, Ленина ул, д. 19 | CE79: Ботово д, Ленина ул, д. 19 | CL79: Ботово д, Ленина ул, д. 19 | CU79: Ботово д, Ленина ул, д. 19 | CZ79: Ботово д, Ленина ул, д. 19 | DI79: Ботово д, Ленина ул, д. 19 | DN79: Ботово д, Ленина ул, д. 19 | DS79: Ботово д, Ленина ул, д. 19 | DV79: Ботово д, Ленина ул, д. 19 | EI79: 1361.4 | EJ79: 35 | EK79: 45.5 | EL79: Специальный счет РО + учет + взыскание | EN79: ОС-ССРО с 20.08.2019
A80: Ботово д, Ленина ул, д.24 | B80: ="Ботово д, Ленина ул, д.24" -> Ботово д, Ленина ул, д.24 | C80: Ботово д, Ленина ул, д.24 | D80: ="Ботово д, Ленина ул, д.24" -> Ботово д, Ленина ул, д.24 | E80: ="Ботово д, Ленина ул, д.24" -> Ботово д, Ленина ул, д.24 | F80: Ботово д, Ленина ул, д.24 | N80: ="Ботово д, Ленина ул, д.24" -> Ботово д, Ленина ул, д.24 | AE80: Ботово д, Ленина ул, д. 24 | AJ80: Ботово д, Ленина ул, д. 24 | AU80: Ботово д, Ленина ул, д. 24 | BB80: Ботово д, Ленина ул, д. 24 | BH80: Ботово д, Ленина ул, д. 24 | BQ80: Ботово д, Ленина ул, д. 24 | BW80: Ботово д, Ленина ул, д. 24 | CE80: Ботово д, Ленина ул, д. 24 | CL80: Ботово д, Ленина ул, д. 24 | CU80: Ботово д, Ленина ул, д. 24 | CZ80: Ботово д, Ленина ул, д. 24 | DI80: Ботово д, Ленина ул, д. 24 | DN80: Ботово д, Ленина ул, д. 24 | DS80: Ботово д, Ленина ул, д. 24 | DV80: Ботово д, Ленина ул, д. 24 | EI80: 3072.9 | EJ80: 48 | EK80: 62.4 | EL80: Специальный счет ТСЖ | EM80: ТСЖ "Ленина 24" | EN80: ОС-ССТСЖ с 26.09.2021
A81: Ботово д, Ленина ул, д.26 | B81: ="Ботово д, Ленина ул, д.26" -> Ботово д, Ленина ул, д.26 | C81: Ботово д, Ленина ул, д.26 | D81: ="Ботово д, Ленина ул, д.26" -> Ботово д, Ленина ул, д.26 | E81: ="Ботово д, Ленина ул, д.26" -> Ботово д, Ленина ул, д.26 | F81: Ботово д, Ленина ул, д.26 | N81: ="Ботово д, Ленина ул, д.26" -> Ботово д, Ленина ул, д.26 | AE81: Ботово д, Ленина ул, д. 26 | AJ81: Ботово д, Ленина ул, д. 26 | AU81: Ботово д, Ленина ул, д. 26 | BB81: Ботово д, Ленина ул, д. 26 | BH81: Ботово д, Ленина ул, д. 26 | BQ81: Ботово д, Ленина ул, д. 26 | BW81: Ботово д, Ленина ул, д. 26 | CE81: Ботово д, Ленина ул, д. 26 | CL81: Ботово д, Ленина ул, д. 26 | CU81: Ботово д, Ленина ул, д. 26 | CZ81: Ботово д, Ленина ул, д. 26 | DI81: Ботово д, Ленина ул, д. 26 | DN81: Ботово д, Ленина ул, д. 26 | DS81: Ботово д, Ленина ул, д. 26 | DV81: Ботово д, Ленина ул, д. 26 | EI81: 2832.1 | EJ81: 50 | EK81: 65 | EL81: Специальный счет УК | EM81: ООО "ЖРЭУ" | EN81: ОС-ССУК с 03.07.2018
A82: Ботово д, Ленина ул, д.28 | B82: ="Ботово д, Ленина ул, д.28" -> Ботово д, Ленина ул, д.28 | C82: Ботово д, Ленина ул, д.28 | D82: ="Ботово д, Ленина ул, д.28" -> Ботово д, Ленина ул, д.28 | E82: ="Ботово д, Ленина ул, д.28" -> Ботово д, Ленина ул, д.28 | F82: Ботово д, Ленина ул, д.28 | N82: ="Ботово д, Ленина ул, д.28" -> Ботово д, Ленина ул, д.28 | AE82: Ботово д, Ленина ул, д. 28 | AJ82: Ботово д, Ленина ул, д. 28 | AU82: Ботово д, Ленина ул, д. 28 | BB82: Ботово д, Ленина ул, д. 28 | BH82: Ботово д, Ленина ул, д. 28 | BQ82: Ботово д, Ленина ул, д. 28 | BW82: Ботово д, Ленина ул, д. 28 | CE82: Ботово д, Ленина ул, д. 28 | CL82: Ботово д, Ленина ул, д. 28 | CU82: Ботово д, Ленина ул, д. 28 | CZ82: Ботово д, Ленина ул, д. 28 | DI82: Ботово д, Ленина ул, д. 28 | DN82: Ботово д, Ленина ул, д. 28 | DS82: Ботово д, Ленина ул, д. 28 | DV82: Ботово д, Ленина ул, д. 28 | EI82: 2868 | EJ82: 52 | EK82: 67.6 | EL82: Специальный счет УК | EM82: ООО УК "Городок" | EN82: ОС-ССРО с 10.11.2021 ССРО-ССУК с 24.05.2022
A83: Ботово д, Ленина ул, д.30 | B83: ="Ботово д, Ленина ул, д.30" -> Ботово д, Ленина ул, д.30 | C83: Ботово д, Ленина ул, д.30 | D83: ="Ботово д, Ленина ул, д.30" -> Ботово д, Ленина ул, д.30 | E83: ="Ботово д, Ленина ул, д.30" -> Ботово д, Ленина ул, д.30 | F83: Ботово д, Ленина ул, д.30 | N83: ="Ботово д, Ленина ул, д.30" -> Ботово д, Ленина ул, д.30 | AE83: Ботово д, Ленина ул, д. 30 | AJ83: Ботово д, Ленина ул, д. 30 | AU83: Ботово д, Ленина ул, д. 30 | BB83: Ботово д, Ленина ул, д. 30 | BH83: Ботово д, Ленина ул, д. 30 | BQ83: Ботово д, Ленина ул, д. 30 | BW83: Ботово д, Ленина ул, д. 30 | CE83: Ботово д, Ленина ул, д. 30 | CL83: Ботово д, Ленина ул, д. 30 | CU83: Ботово д, Ленина ул, д. 30 | CZ83: Ботово д, Ленина ул, д. 30 | DI83: Ботово д, Ленина ул, д. 30 | DN83: Ботово д, Ленина ул, д. 30 | DS83: Ботово д, Ленина ул, д. 30 | DV83: Ботово д, Ленина ул, д. 30 | EI83: 2825 | EJ83: 49 | EK83: 63.7 | EL83: Специальный счет ТСЖ | EM83: ТСН "ТСЖ Ленина30" | EN83: ОС-ССТСЖ с 01.11.2016
A84: Ботово д, Староботовская ул, д.46 | B84: ="Ботово д, Староботовская ул, д.46" -> Ботово д, Староботовская ул, д.46 | C84: Ботово д, Староботовская ул, д.46 | D84: ="Ботово д, Староботовская ул, д.46" -> Ботово д, Староботовская ул, д.46 | E84: ="Ботово д, Староботовская ул, д.46" -> Ботово д, Староботовская ул, д.46 | F84: Ботово д, Староботовская ул, д.46 | N84: ="Ботово д, Староботовская ул, д.46" -> Ботово д, Староботовская ул, д.46 | AE84: Ботово д, Староботовская ул, д. 46 | AJ84: Ботово д, Староботовская ул, д. 46 | AU84: Ботово д, Староботовская ул, д. 46 | EK84: 0 | EL84: Общий счет РО - 258,50 | EN84: Исключен 27.07.2020
A85: Ботово д, Школьная ул, д.19 | B85: ="Ботово д, Школьная ул, д.19" -> Ботово д, Школьная ул, д.19 | C85: Ботово д, Школьная ул, д.19 | D85: ="Ботово д, Школьная ул, д.19" -> Ботово д, Школьная ул, д.19 | E85: ="Ботово д, Школьная ул, д.19" -> Ботово д, Школьная ул, д.19 | F85: Ботово д, Школьная ул, д.19 | N85: ="Ботово д, Школьная ул, д.19" -> Ботово д, Школьная ул, д.19 | AE85: Ботово д, Школьная ул, д. 19 | AJ85: Ботово д, Школьная ул, д. 19 | AU85: Ботово д, Школьная ул, д. 19 | BB85: Ботово д, Школьная ул, д. 19 | BH85: Ботово д, Школьная ул, д. 19 | BQ85: Ботово д, Школьная ул, д. 19 | BW85: Ботово д, Школьная ул, д. 19 | CE85: Ботово д, Школьная ул, д. 19 | CL85: Ботово д, Школьная ул, д. 19 | CU85: Ботово д, Школьная ул, д. 19 | CZ85: Ботово д, Школьная ул, д. 19 | DI85: Ботово д, Школьная ул, д. 19 | DN85: Ботово д, Школьная ул, д. 19 | DS85: Ботово д, Школьная ул, д. 19 | DV85: Ботово д, Школьная ул, д. 19 | EI85: 1024.5 | EJ85: 16 | EK85: 20.8 | EL85: Общий счет РО+
A86: Ботово д, Школьная ул, д.20 | B86: ="Ботово д, Школьная ул, д.20" -> Ботово д, Школьная ул, д.20 | C86: Ботово д, Школьная ул, д.20 | D86: ="Ботово д, Школьная ул, д.20" -> Ботово д, Школьная ул, д.20 | E86: ="Ботово д, Школьная ул, д.20" -> Ботово д, Школьная ул, д.20 | F86: Ботово д, Школьная ул, д.20 | N86: ="Ботово д, Школьная ул, д.20" -> Ботово д, Школьная ул, д.20 | AE86: Ботово д, Школьная ул, д. 20 | AJ86: Ботово д, Школьная ул, д. 20 | AU86: Ботово д, Школьная ул, д. 20 | BB86: Ботово д, Школьная ул, д. 20 | BH86: Ботово д, Школьная ул, д. 20 | BQ86: Ботово д, Школьная ул, д. 20 | BW86: Ботово д, Школьная ул, д. 20 | CE86: Ботово д, Школьная ул, д. 20 | CL86: Ботово д, Школьная ул, д. 20 | CU86: Ботово д, Школьная ул, д. 20 | CZ86: Ботово д, Школьная ул, д. 20 | DI86: Ботово д, Школьная ул, д. 20 | DN86: Ботово д, Школьная ул, д. 20 | DS86: Ботово д, Школьная ул, д. 20 | DV86: Ботово д, Школьная ул, д. 20 | EI86: 3185.3 | EJ86: 74 | EK86: 96.2 | EL86: Специальный счет РО + учет + взыскание | EN86: ОС-ССРО с 10.2017
A87: Ботово д, Школьная ул, д.21 | B87: ="Ботово д, Школьная ул, д.21" -> Ботово д, Школьная ул, д.21 | C87: Ботово д, Школьная ул, д.21 | D87: ="Ботово д, Школьная ул, д.21" -> Ботово д, Школьная ул, д.21 | E87: ="Ботово д, Школьная ул, д.21" -> Ботово д, Школьная ул, д.21 | F87: Ботово д, Школьная ул, д.21 | N87: ="Ботово д, Школьная ул, д.21" -> Ботово д, Школьная ул, д.21 | AE87: Ботово д, Школьная ул, д. 21 | AJ87: Ботово д, Школьная ул, д. 21 | AU87: Ботово д, Школьная ул, д. 21 | BB87: Ботово д, Школьная ул, д. 21 | BH87: Ботово д, Школьная ул, д. 21 | BQ87: Ботово д, Школьная ул, д. 21 | BW87: Ботово д, Школьная ул, д. 21 | CE87: Ботово д, Школьная ул, д. 21 | CL87: Ботово д, Школьная ул, д. 21 | CU87: Ботово д, Школьная ул, д. 21 | CZ87: Ботово д, Школьная ул, д. 21 | DI87: Ботово д, Школьная ул, д. 21 | DN87: Ботово д, Школьная ул, д. 21 | DS87: Ботово д, Школьная ул, д. 21 | DV87: Ботово д, Школьная ул, д. 21 | EI87: 3168.8 | EJ87: 70 | EK87: 91 | EL87: Специальный счет УК | EM87: ООО "ЖРЭУ" | EN87: ОС-ССРО с 07.06.2016 ССРО-ССУК 18.05.2018 ССУК-ССРО с 23.03.2021 ССРО-ССУК с 30.08.2021
A88: Ботово д, Школьная ул, д.22 | B88: ="Ботово д, Школьная ул, д.22" -> Ботово д, Школьная ул, д.22 | C88: Ботово д, Школьная ул, д.22 | D88: ="Ботово д, Школьная ул, д.22" -> Ботово д, Школьная ул, д.22 | E88: ="Ботово д, Школьная ул, д.22" -> Ботово д, Школьная ул, д.22 | F88: Ботово д, Школьная ул, д.22 | N88: ="Ботово д, Школьная ул, д.22" -> Ботово д, Школьная ул, д.22 | AE88: Ботово д, Школьная ул, д. 22 | AJ88: Ботово д, Школьная ул, д. 22 | AU88: Ботово д, Школьная ул, д. 22 | BB88: Ботово д, Школьная ул, д. 22 | BH88: Ботово д, Школьная ул, д. 22 | BQ88: Ботово д, Школьная ул, д. 22 | BW88: Ботово д, Школьная ул, д. 22 | CE88: Ботово д, Школьная ул, д. 22 | CL88: Ботово д, Школьная ул, д. 22 | CU88: Ботово д, Школьная ул, д. 22 | CZ88: Ботово д, Школьная ул, д. 22 | DI88: Ботово д, Школьная ул, д. 22 | DN88: Ботово д, Школьная ул, д. 22 | DS88: Ботово д, Школьная ул, д. 22 | DV88: Ботово д, Школьная ул, д. 22 | EI88: 1391.4 | EJ88: 33 | EK88: 42.9 | EL88: Специальный счет УК | EM88: ООО "ЖРЭУ" | EN88: ОС-ССУК с 05.07.2018
A89: Ботово д, Школьная ул, д.23 | B89: ="Ботово д, Школьная ул, д.23" -> Ботово д, Школьная ул, д.23 | C89: Ботово д, Школьная ул, д.23 | D89: ="Ботово д, Школьная ул, д.23" -> Ботово д, Школьная ул, д.23 | E89: ="Ботово д, Школьная ул, д.23" -> Ботово д, Школьная ул, д.23 | F89: Ботово д, Школьная ул, д.23 | N89: ="Ботово д, Школьная ул, д.23" -> Ботово д, Школьная ул, д.23 | AE89: Ботово д, Школьная ул, д. 23 | AJ89: Ботово д, Школьная ул, д. 23 | AU89: Ботово д, Школьная ул, д. 23 | BB89: Ботово д, Школьная ул, д. 23 | BH89: Ботово д, Школьная ул, д. 23 | BQ89: Ботово д, Школьная ул, д. 23 | BW89: Ботово д, Школьная ул, д. 23 | CE89: Ботово д, Школьная ул, д. 23 | CL89: Ботово д, Школьная ул, д. 23 | CU89: Ботово д, Школьная ул, д. 23 | CZ89: Ботово д, Школьная ул, д. 23 | DI89: Ботово д, Школьная ул, д. 23 | DN89: Ботово д, Школьная ул, д. 23 | DS89: Ботово д, Школьная ул, д. 23 | DV89: Ботово д, Школьная ул, д. 23 | EI89: 1349.4 | EJ89: 37 | EK89: 48.1 | EL89: Общий счет РО+
A90: Ботово д, Школьная ул, д.24 | B90: ="Ботово д, Школьная ул, д.24" -> Ботово д, Школьная ул, д.24 | C90: Ботово д, Школьная ул, д.24 | D90: ="Ботово д, Школьная ул, д.24" -> Ботово д, Школьная ул, д.24 | E90: ="Ботово д, Школьная ул, д.24" -> Ботово д, Школьная ул, д.24 | F90: Ботово д, Школьная ул, д.24 | N90: ="Ботово д, Школьная ул, д.24" -> Ботово д, Школьная ул, д.24 | AE90: Ботово д, Школьная ул, д. 24 | AJ90: Ботово д, Школьная ул, д. 24 | AU90: Ботово д, Школьная ул, д. 24 | BB90: Ботово д, Школьная ул, д. 24 | BH90: Ботово д, Школьная ул, д. 24 | BQ90: Ботово д, Школьная ул, д. 24 | BW90: Ботово д, Школьная ул, д. 24 | CE90: Ботово д, Школьная ул, д. 24 | CL90: Ботово д, Школьная ул, д. 24 | CU90: Ботово д, Школьная ул, д. 24 | CZ90: Ботово д, Школьная ул, д. 24 | DI90: Ботово д, Школьная ул, д. 24 | DN90: Ботово д, Школьная ул, д. 24 | DS90: Ботово д, Школьная ул, д. 24 | DV90: Ботово д, Школьная ул, д. 24 | EI90: 4301.7 | EJ90: 85 | EK90: 110.5 | EL90: Специальный счет ТСЖ | EM90: ТСЖ "Школьная, 24" | EN90: ОС-ССРО с 10.2017 ССРО-ССТСЖ с 26.04.2023
A91: Воронино с, д.16 | B91: ="Воронино с, д.16" -> Воронино с, д.16 | C91: Воронино с, д.16 | D91: ="Воронино с, д.16" -> Воронино с, д.16 | E91: ="Воронино с, д.16" -> Воронино с, д.16 | F91: Воронино с, д.16 | N91: ="Воронино с, д.16" -> Воронино с, д.16 | AE91: Воронино с, д. 16 | AJ91: Воронино с, д. 16 | AU91: Воронино с, д. 16 | BB91: Воронино с, д. 16 | BH91: Воронино с, д. 16 | BQ91: Воронино с, д. 16 | BW91: Воронино с, д. 16 | CE91: Воронино с, д. 16 | CL91: Воронино с, д. 16 | CU91: Воронино с, д. 16 | CZ91: Воронино с, д. 16 | DI91: Воронино с, д. 16 | DN91: Воронино с, д. 16 | DS91: Воронино с, д. 16 | DV91: Воронино с, д. 16 | EI91: 457 | EJ91: 12 | EK91: 15.6 | EL91: Общий счет РО+
A92: Воскресенское с (Югское МО), д.175 | B92: ="Воскресенское с (Югское МО), д.175" -> Воскресенское с (Югское МО), д.175 | C92: Воскресенское с (Мусорское МО), д.175 | D92: ="Воскресенское с (Мусорское МО), д.175" -> Воскресенское с (Мусорское МО), д.175 | E92: ="Воскресенское с (Мусорское МО), д.175" -> Воскресенское с (Мусорское МО), д.175 | F92: Воскресенское с (Мусорское МО), д.175 | N92: ="Воскресенское с (Мусорское МО), д.175" -> Воскресенское с (Мусорское МО), д.175 | AE92: Воскресенское с, д. 175 | AJ92: Воскресенское с, д. 175 | AU92: Воскресенское с, д. 175 | BB92: Воскресенское с, д. 175 | BH92: Воскресенское с, д. 175 | BQ92: Воскресенское с, д. 175 | BW92: Воскресенское с, д. 175 | CE92: Воскресенское с, д. 175 | CL92: Воскресенское с, д. 175 | CU92: Воскресенское с, д. 175 | CZ92: Воскресенское с, д. 175 | DI92: Воскресенское с, д. 175 | DN92: Воскресенское с, д. 175 | DS92: Воскресенское с, д. 175 | DV92: Воскресенское с, д. 175 | EI92: 1700.5 | EJ92: 37 | EK92: 48.1 | EL92: Общий счет РО+
A93: Большой Двор д (Воскресенское МО), д.33 | B93: ="Большой Двор д (Воскресенское МО), д.33" -> Большой Двор д (Воскресенское МО), д.33 | C93: Большой Двор д (Воскресенское МО), д.33 | D93: ="Большой Двор д (Воскресенское МО), д.33" -> Большой Двор д (Воскресенское МО), д.33 | E93: ="Большой Двор д (Воскресенское МО), д.33" -> Большой Двор д (Воскресенское МО), д.33 | F93: Большой Двор д (Воскресенское МО), д.33 | N93: ="Большой Двор д (Воскресенское МО), д.33" -> Большой Двор д (Воскресенское МО), д.33 | AE93: Воскресенское с/п с/мо, Большой Двор д, д. 33 | AJ93: Воскресенское с/п с/мо, Большой Двор д, д. 33 | AU93: Воскресенское с/п с/мо, Большой Двор д, д. 33 | BB93: Воскресенское с/п с/мо, Большой Двор д, д. 33 | BH93: Воскресенское с/п с/мо, Большой Двор д, д. 33 | BQ93: Воскресенское с/п с/мо, Большой Двор д, д. 33 | BW93: Воскресенское с/п с/мо, Большой Двор д, д. 33 | CE93: Воскресенское с/п с/мо, Большой Двор д, д. 33 | CL93: Воскресенское с/п с/мо, Большой Двор д, д. 33 | CU93: Воскресенское с/п с/мо, Большой Двор д, д. 33 | CZ93: Воскресенское с/п с/мо, Большой Двор д, д. 33 | DI93: Воскресенское с/п с/мо, Большой Двор д, д. 33 | DN93: Воскресенское сельское поселение с/мо, Большой Двор д, д. 33 | DS93: Воскресенское сельское поселение с/мо, Большой Двор д, д. 33 | DV93: Воскресенское сельское поселение с/мо, Большой Двор д, д. 33 | EI93: 452.7 | EJ93: 12 | EK93: 15.6 | EL93: Общий счет РО+
A94: Воскресенское с (Воскресенское МО), Советская ул, д.3 | B94: ="Воскресенское с (Воскресенское МО), Советская ул, д.3" -> Воскресенское с (Воскресенское МО), Советская ул, д.3 | C94: Воскресенское с, Советская ул, д.3 | D94: ="Воскресенское с, Советская ул, д.3" -> Воскресенское с, Советская ул, д.3 | E94: ="Воскресенское с, Советская ул, д.3" -> Воскресенское с, Советская ул, д.3 | F94: Воскресенское с, Советская ул, д.3 | N94: ="Воскресенское с, Советская ул, д.3" -> Воскресенское с, Советская ул, д.3 | AE94: Воскресенское с/п с/мо, Воскресенское с, Советская ул, д. 3 | AJ94: Воскресенское с/п с/мо, Воскресенское с, Советская ул, д. 3 | AU94: Воскресенское с/п с/мо, Воскресенское с, Советская ул, д. 3 | BB94: Воскресенское с/п с/мо, Воскресенское с, Советская ул, д. 3 | BH94: Воскресенское с/п с/мо, Воскресенское с, Советская ул, д. 3 | BQ94: Воскресенское с/п с/мо, Воскресенское с, Советская ул, д. 3 | BW94: Воскресенское с/п с/мо, Воскресенское с, Советская ул, д. 3 | CE94: Воскресенское с/п с/мо, Воскресенское с, Советская ул, д. 3 | CL94: Воскресенское с/п с/мо, Воскресенское с, Советская ул, д. 3 | CU94: Воскресенское с/п с/мо, Воскресенское с, Советская ул, д. 3 | CZ94: Воскресенское с/п с/мо, Воскресенское с, Советская ул, д. 3 | DI94: Воскресенское с/п с/мо, Воскресенское с, Советская ул, д. 3 | DN94: Воскресенское сельское поселение с/мо, Воскресенское с, Советская ул, д. 3 | DS94: Воскресенское сельское поселение с/мо, Воскресенское с, Советская ул, д. 3 | DV94: Воскресенское сельское поселение с/мо, Воскресенское с, Советская ул, д. 3 | EI94: 276.8 | EJ94: 9 | EK94: 11.7 | EL94: Общий счет РО+
A95: Воскресенское с (Воскресенское МО), Советская ул, д.7 | B95: ="Воскресенское с (Воскресенское МО), Советская ул, д.7" -> Воскресенское с (Воскресенское МО), Советская ул, д.7 | C95: Воскресенское с, Советская ул, д.7 | D95: ="Воскресенское с, Советская ул, д.7" -> Воскресенское с, Советская ул, д.7 | E95: ="Воскресенское с, Советская ул, д.7" -> Воскресенское с, Советская ул, д.7 | F95: Воскресенское с, Советская ул, д.7 | N95: ="Воскресенское с, Советская ул, д.7" -> Воскресенское с, Советская ул, д.7 | AE95: Воскресенское с/п с/мо, Воскресенское с, Советская ул, д. 7 | AJ95: Воскресенское с/п с/мо, Воскресенское с, Советская ул, д. 7 | AU95: Воскресенское с/п с/мо, Воскресенское с, Советская ул, д. 7 | BB95: Воскресенское с/п с/мо, Воскресенское с, Советская ул, д. 7 | BH95: Воскресенское с/п с/мо, Воскресенское с, Советская ул, д. 7 | BQ95: Воскресенское с/п с/мо, Воскресенское с, Советская ул, д. 7 | BW95: Воскресенское с/п с/мо, Воскресенское с, Советская ул, д. 7 | CE95: Воскресенское с/п с/мо, Воскресенское с, Советская ул, д. 7 | CL95: Воскресенское с/п с/мо, Воскресенское с, Советская ул, д. 7 | CU95: Воскресенское с/п с/мо, Воскресенское с, Советская ул, д. 7 | CZ95: Воскресенское с/п с/мо, Воскресенское с, Советская ул, д. 7 | DI95: Воскресенское с/п с/мо, Воскресенское с, Советская ул, д. 7 | DN95: Воскресенское сельское поселение с/мо, Воскресенское с, Советская ул, д. 7 | DS95: Воскресенское сельское поселение с/мо, Воскресенское с, Советская ул, д. 7 | DV95: Воскресенское сельское поселение с/мо, Воскресенское с, Советская ул, д. 7 | EI95: 467.8 | EJ95: 13 | EK95: 16.9 | EL95: Общий счет РО+
A96: Воскресенское с (Воскресенское МО), Советская ул, д.9 | B96: ="Воскресенское с (Воскресенское МО), Советская ул, д.9" -> Воскресенское с (Воскресенское МО), Советская ул, д.9 | EK96: 0 | EN96: Исключен
A97: Воскресенское с (Воскресенское МО), Советская ул, д.13 | B97: ="Воскресенское с (Воскресенское МО), Советская ул, д.13" -> Воскресенское с (Воскресенское МО), Советская ул, д.13 | C97: Воскресенское с, Советская ул, д.13 | D97: ="Воскресенское с, Советская ул, д.13" -> Воскресенское с, Советская ул, д.13 | E97: ="Воскресенское с, Советская ул, д.13" -> Воскресенское с, Советская ул, д.13 | F97: Воскресенское с, Советская ул, д.13 | N97: ="Воскресенское с, Советская ул, д.13" -> Воскресенское с, Советская ул, д.13 | AE97: Воскресенское с/п с/мо, Воскресенское с, Советская ул, д. 13 | AJ97: Воскресенское с/п с/мо, Воскресенское с, Советская ул, д. 13 | AU97: Воскресенское с/п с/мо, Воскресенское с, Советская ул, д. 13 | BB97: Воскресенское с/п с/мо, Воскресенское с, Советская ул, д. 13 | BH97: Воскресенское с/п с/мо, Воскресенское с, Советская ул, д. 13 | BQ97: Воскресенское с/п с/мо, Воскресенское с, Советская ул, д. 13 | BW97: Воскресенское с/п с/мо, Воскресенское с, Советская ул, д. 13 | CE97: Воскресенское с/п с/мо, Воскресенское с, Советская ул, д. 13 | CL97: Воскресенское с/п с/мо, Воскресенское с, Советская ул, д. 13 | CU97: Воскресенское с/п с/мо, Воскресенское с, Советская ул, д. 13 | CZ97: Воскресенское с/п с/мо, Воскресенское с, Советская ул, д. 13 | DI97: Воскресенское с/п с/мо, Воскресенское с, Советская ул, д. 13 | DN97: Воскресенское сельское поселение с/мо, Воскресенское с, Советская ул, д. 13 | DS97: Воскресенское сельское поселение с/мо, Воскресенское с, Советская ул, д. 13 | DV97: Воскресенское сельское поселение с/мо, Воскресенское с, Советская ул, д. 13 | EI97: 537.3 | EJ97: 13 | EK97: 16.9 | EL97: Общий счет РО+
A98: Воскресенское с (Воскресенское МО), Советская ул, д.15 | B98: ="Воскресенское с (Воскресенское МО), Советская ул, д.15" -> Воскресенское с (Воскресенское МО), Советская ул, д.15 | C98: Воскресенское с, Советская ул, д.15 | D98: ="Воскресенское с (Воскресенское МО), Советская ул, д.15" -> Воскресенское с (Воскресенское МО), Советская ул, д.15 | E98: ="Воскресенское с (Воскресенское МО), Советская ул, д.15" -> Воскресенское с (Воскресенское МО), Советская ул, д.15 | F98: Воскресенское с (Воскресенское МО), Советская ул, д.15 | N98: ="Воскресенское с (Воскресенское МО), Советская ул, д.15" -> Воскресенское с (Воскресенское МО), Советская ул, д.15 | AE98: Воскресенское с/п с/мо, Воскресенское с, Советская ул, д. 15 | AJ98: Воскресенское с/п с/мо, Воскресенское с, Советская ул, д. 15 | AU98: Воскресенское с/п с/мо, Воскресенское с, Советская ул, д. 15 | BB98: Воскресенское с/п с/мо, Воскресенское с, Советская ул, д. 15 | BH98: Воскресенское с/п с/мо, Воскресенское с, Советская ул, д. 15 | BQ98: Воскресенское с/п с/мо, Воскресенское с, Советская ул, д. 15 | BW98: Воскресенское с/п с/мо, Воскресенское с, Советская ул, д. 15 | CE98: Воскресенское с/п с/мо, Воскресенское с, Советская ул, д. 15 | CL98: Воскресенское с/п с/мо, Воскресенское с, Советская ул, д. 15 | CU98: Воскресенское с/п с/мо, Воскресенское с, Советская ул, д. 15 | CZ98: Воскресенское с/п с/мо, Воскресенское с, Советская ул, д. 15 | DI98: Воскресенское с/п с/мо, Воскресенское с, Советская ул, д. 15 | DN98: Воскресенское сельское поселение с/мо, Воскресенское с, Советская ул, д. 15 | DS98: Воскресенское сельское поселение с/мо, Воскресенское с, Советская ул, д. 15 | DV98: Воскресенское сельское поселение с/мо, Воскресенское с, Советская ул, д. 15 | EI98: 1537.1 | EJ98: 30 | EK98: 39 | EL98: Специальный счет РО + учет + взыскание | EN98: ОС-ССРО с 28.07.2023
A99: Воскресенское с (Воскресенское МО), Советская ул, д.19 | B99: ="Воскресенское с (Воскресенское МО), Советская ул, д.19" -> Воскресенское с (Воскресенское МО), Советская ул, д.19 | C99: Воскресенское с, Советская ул, д.19 | D99: ="Воскресенское с, Советская ул, д.19" -> Воскресенское с, Советская ул, д.19 | E99: ="Воскресенское с, Советская ул, д.19" -> Воскресенское с, Советская ул, д.19 | F99: Воскресенское с, Советская ул, д.19 | N99: ="Воскресенское с, Советская ул, д.19" -> Воскресенское с, Советская ул, д.19 | AE99: Воскресенское с/п с/мо, Воскресенское с, Советская ул, д. 19 | AJ99: Воскресенское с/п с/мо, Воскресенское с, Советская ул, д. 19 | AU99: Воскресенское с/п с/мо, Воскресенское с, Советская ул, д. 19 | BB99: Воскресенское с/п с/мо, Воскресенское с, Советская ул, д. 19 | BH99: Воскресенское с/п с/мо, Воскресенское с, Советская ул, д. 19 | BQ99: Воскресенское с/п с/мо, Воскресенское с, Советская ул, д. 19 | BW99: Воскресенское с/п с/мо, Воскресенское с, Советская ул, д. 19 | CE99: Воскресенское с/п с/мо, Воскресенское с, Советская ул, д. 19 | CL99: Воскресенское с/п с/мо, Воскресенское с, Советская ул, д. 19 | CU99: Воскресенское с/п с/мо, Воскресенское с, Советская ул, д. 19 | CZ99: Воскресенское с/п с/мо, Воскресенское с, Советская ул, д. 19 | DI99: Воскресенское с/п с/мо, Воскресенское с, Советская ул, д. 19 | DN99: Воскресенское сельское поселение с/мо, Воскресенское с, Советская ул, д. 19 | DS99: Воскресенское сельское поселение с/мо, Воскресенское с, Советская ул, д. 19 | DV99: Воскресенское сельское поселение с/мо, Воскресенское с, Советская ул, д. 19 | EI99: 1273.2 | EJ99: 27 | EK99: =EJ99*1.3 -> 35.1 | EL99: Специальный счет РО + учет + взыскание | EN99: ОС-ССРО с 28.07.2023
A100: Воскресенское с (Воскресенское МО), Советская ул, д.20 | B100: ="Воскресенское с (Воскресенское МО), Советская ул, д.20" -> Воскресенское с (Воскресенское МО), Советская ул, д.20 | C100: Воскресенское с, Советская ул, д.20 | D100: ="Воскресенское с, Советская ул, д.20" -> Воскресенское с, Советская ул, д.20 | E100: ="Воскресенское с, Советская ул, д.20" -> Воскресенское с, Советская ул, д.20 | F100: Воскресенское с, Советская ул, д.20 | N100: ="Воскресенское с, Советская ул, д.20" -> Воскресенское с, Советская ул, д.20 | AE100: Воскресенское с/п с/мо, Воскресенское с, Советская ул, д. 20 | AJ100: Воскресенское с/п с/мо, Воскресенское с, Советская ул, д. 20 | AU100: Воскресенское с/п с/мо, Воскресенское с, Советская ул, д. 20 | BB100: Воскресенское с/п с/мо, Воскресенское с, Советская ул, д. 20 | BH100: Воскресенское с/п с/мо, Воскресенское с, Советская ул, д. 20 | BQ100: Воскресенское с/п с/мо, Воскресенское с, Советская ул, д. 20 | BW100: Воскресенское с/п с/мо, Воскресенское с, Советская ул, д. 20 | CE100: Воскресенское с/п с/мо, Воскресенское с, Советская ул, д. 20 | CL100: Воскресенское с/п с/мо, Воскресенское с, Советская ул, д. 20 | CU100: Воскресенское с/п с/мо, Воскресенское с, Советская ул, д. 20 | CZ100: Воскресенское с/п с/мо, Воскресенское с, Советская ул, д. 20 | DI100: Воскресенское с/п с/мо, Воскресенское с, Советская ул, д. 20 | DN100: Воскресенское сельское поселение с/мо, Воскресенское с, Советская ул, д. 20 | DS100: Воскресенское сельское поселение с/мо, Воскресенское с, Советская ул, д. 20 | DV100: Воскресенское сельское поселение с/мо, Воскресенское с, Советская ул, д. 20 | EI100: 936.2 | EJ100: 19 | EK100: 24.7 | EL100: Специальный счет РО + учет + взыскание | EN100: ОС-ССРО с 28.07.2023
A101: Воскресенское с (Воскресенское МО), Советская ул, д.21 | B101: ="Воскресенское с (Воскресенское МО), Советская ул, д.21" -> Воскресенское с (Воскресенское МО), Советская ул, д.21 | C101: Воскресенское с, Советская ул, д.21 | D101: ="Воскресенское с, Советская ул, д.21" -> Воскресенское с, Советская ул, д.21 | E101: ="Воскресенское с, Советская ул, д.21" -> Воскресенское с, Советская ул, д.21 | F101: Воскресенское с, Советская ул, д.21 | N101: ="Воскресенское с, Советская ул, д.21" -> Воскресенское с, Советская ул, д.21 | AE101: Воскресенское с/п с/мо, Воскресенское с, Советская ул, д. 21 | AJ101: Воскресенское с/п с/мо, Воскресенское с, Советская ул, д. 21 | AU101: Воскресенское с/п с/мо, Воскресенское с, Советская ул, д. 21 | BB101: Воскресенское с/п с/мо, Воскресенское с, Советская ул, д. 21 | BH101: Воскресенское с/п с/мо, Воскресенское с, Советская ул, д. 21 | BQ101: Воскресенское с/п с/мо, Воскресенское с, Советская ул, д. 21 | BW101: Воскресенское с/п с/мо, Воскресенское с, Советская ул, д. 21 | CE101: Воскресенское с/п с/мо, Воскресенское с, Советская ул, д. 21 | CL101: Воскресенское с/п с/мо, Воскресенское с, Советская ул, д. 21 | CU101: Воскресенское с/п с/мо, Воскресенское с, Советская ул, д. 21 | CZ101: Воскресенское с/п с/мо, Воскресенское с, Советская ул, д. 21 | DI101: Воскресенское с/п с/мо, Воскресенское с, Советская ул, д. 21 | DN101: Воскресенское сельское поселение с/мо, Воскресенское с, Советская ул, д. 21 | DS101: Воскресенское сельское поселение с/мо, Воскресенское с, Советская ул, д. 21 | DV101: Воскресенское сельское поселение с/мо, Воскресенское с, Советская ул, д. 21 | EI101: 1263.3 | EJ101: 28 | EK101: 36.4 | EL101: Общий счет РО+
A102: Воскресенское с (Воскресенское МО), Советская ул, д.22 | B102: ="Воскресенское с (Воскресенское МО), Советская ул, д.22" -> Воскресенское с (Воскресенское МО), Советская ул, д.22 | C102: Воскресенское с, Советская ул, д.22 | D102: ="Воскресенское с, Советская ул, д.22" -> Воскресенское с, Советская ул, д.22 | E102: ="Воскресенское с, Советская ул, д.22" -> Воскресенское с, Советская ул, д.22 | F102: Воскресенское с, Советская ул, д.22 | N102: ="Воскресенское с, Советская ул, д.22" -> Воскресенское с, Советская ул, д.22 | AE102: Воскресенское с/п с/мо, Воскресенское с, Советская ул, д. 22 | AJ102: Воскресенское с/п с/мо, Воскресенское с, Советская ул, д. 22 | AU102: Воскресенское с/п с/мо, Воскресенское с, Советская ул, д. 22 | BB102: Воскресенское с/п с/мо, Воскресенское с, Советская ул, д. 22 | BH102: Воскресенское с/п с/мо, Воскресенское с, Советская ул, д. 22 | BQ102: Воскресенское с/п с/мо, Воскресенское с, Советская ул, д. 22 | BW102: Воскресенское с/п с/мо, Воскресенское с, Советская ул, д. 22 | CE102: Воскресенское с/п с/мо, Воскресенское с, Советская ул, д. 22 | CL102: Воскресенское с/п с/мо, Воскресенское с, Советская ул, д. 22 | CU102: Воскресенское с/п с/мо, Воскресенское с, Советская ул, д. 22 | CZ102: Воскресенское с/п с/мо, Воскресенское с, Советская ул, д. 22 | DI102: Воскресенское с/п с/мо, Воскресенское с, Советская ул, д. 22 | DN102: Воскресенское сельское поселение с/мо, Воскресенское с, Советская ул, д. 22 | DS102: Воскресенское сельское поселение с/мо, Воскресенское с, Советская ул, д. 22 | DV102: Воскресенское сельское поселение с/мо, Воскресенское с, Советская ул, д. 22 | EI102: 939.5 | EJ102: 20 | EK102: 26 | EL102: Общий счет РО+
A103: Воскресенское с (Воскресенское МО), Советская ул, д.23 | B103: ="Воскресенское с (Воскресенское МО), Советская ул, д.23" -> Воскресенское с (Воскресенское МО), Советская ул, д.23 | C103: Воскресенское с, Советская ул, д.23 | D103: ="Воскресенское с, Советская ул, д.23" -> Воскресенское с, Советская ул, д.23 | E103: ="Воскресенское с, Советская ул, д.23" -> Воскресенское с, Советская ул, д.23 | F103: Воскресенское с, Советская ул, д.23 | N103: ="Воскресенское с, Советская ул, д.23" -> Воскресенское с, Советская ул, д.23 | AE103: Воскресенское с/п с/мо, Воскресенское с, Советская ул, д. 23 | AJ103: Воскресенское с/п с/мо, Воскресенское с, Советская ул, д. 23 | AU103: Воскресенское с/п с/мо, Воскресенское с, Советская ул, д. 23 | BB103: Воскресенское с/п с/мо, Воскресенское с, Советская ул, д. 23 | BH103: Воскресенское с/п с/мо, Воскресенское с, Советская ул, д. 23 | BQ103: Воскресенское с/п с/мо, Воскресенское с, Советская ул, д. 23 | BW103: Воскресенское с/п с/мо, Воскресенское с, Советская ул, д. 23 | CE103: Воскресенское с/п с/мо, Воскресенское с, Советская ул, д. 23 | CL103: Воскресенское с/п с/мо, Воскресенское с, Советская ул, д. 23 | CU103: Воскресенское с/п с/мо, Воскресенское с, Советская ул, д. 23 | CZ103: Воскресенское с/п с/мо, Воскресенское с, Советская ул, д. 23 | DI103: Воскресенское с/п с/мо, Воскресенское с, Советская ул, д. 23 | DN103: Воскресенское сельское поселение с/мо, Воскресенское с, Советская ул, д. 23 | DS103: Воскресенское сельское поселение с/мо, Воскресенское с, Советская ул, д. 23 | DV103: Воскресенское сельское поселение с/мо, Воскресенское с, Советская ул, д. 23 | EI103: 1259.8 | EJ103: 27 | EK103: 35.1 | EL103: Общий счет РО+
A104: Воскресенское с (Воскресенское МО), Советская ул, д.24 | B104: ="Воскресенское с (Воскресенское МО), Советская ул, д.24" -> Воскресенское с (Воскресенское МО), Советская ул, д.24 | C104: Воскресенское с, Советская ул, д.24 | D104: ="Воскресенское с, Советская ул, д.24" -> Воскресенское с, Советская ул, д.24 | E104: ="Воскресенское с, Советская ул, д.24" -> Воскресенское с, Советская ул, д.24 | F104: Воскресенское с, Советская ул, д.24 | N104: ="Воскресенское с, Советская ул, д.24" -> Воскресенское с, Советская ул, д.24 | AE104: Воскресенское с/п с/мо, Воскресенское с, Советская ул, д. 24 | AJ104: Воскресенское с/п с/мо, Воскресенское с, Советская ул, д. 24 | AU104: Воскресенское с/п с/мо, Воскресенское с, Советская ул, д. 24 | BB104: Воскресенское с/п с/мо, Воскресенское с, Советская ул, д. 24 | BH104: Воскресенское с/п с/мо, Воскресенское с, Советская ул, д. 24 | BQ104: Воскресенское с/п с/мо, Воскресенское с, Советская ул, д. 24 | BW104: Воскресенское с/п с/мо, Воскресенское с, Советская ул, д. 24 | CE104: Воскресенское с/п с/мо, Воскресенское с, Советская ул, д. 24 | CL104: Воскресенское с/п с/мо, Воскресенское с, Советская ул, д. 24 | CU104: Воскресенское с/п с/мо, Воскресенское с, Советская ул, д. 24 | CZ104: Воскресенское с/п с/мо, Воскресенское с, Советская ул, д. 24 | DI104: Воскресенское с/п с/мо, Воскресенское с, Советская ул, д. 24 | DN104: Воскресенское сельское поселение с/мо, Воскресенское с, Советская ул, д. 24 | DS104: Воскресенское сельское поселение с/мо, Воскресенское с, Советская ул, д. 24 | DV104: Воскресенское сельское поселение с/мо, Воскресенское с, Советская ул, д. 24 | EI104: 946.5 | EJ104: 18 | EK104: 23.4 | EL104: Общий счет РО+
A105: Воскресенское с (Воскресенское МО), Совхозная ул, д.49 | B105: ="Воскресенское с (Воскресенское МО), Совхозная ул, д.49" -> Воскресенское с (Воскресенское МО), Совхозная ул, д.49 | C105: Воскресенское с, Совхозная ул, д.49 | D105: ="Воскресенское с, Совхозная ул, д.49" -> Воскресенское с, Совхозная ул, д.49 | E105: ="Воскресенское с, Совхозная ул, д.49" -> Воскресенское с, Совхозная ул, д.49 | F105: Воскресенское с, Совхозная ул, д.49 | N105: ="Воскресенское с, Совхозная ул, д.49" -> Воскресенское с, Совхозная ул, д.49 | AE105: Воскресенское с/п с/мо, Воскресенское с, Совхозная ул, д. 49 | AJ105: Воскресенское с/п с/мо, Воскресенское с, Совхозная ул, д. 49 | AU105: Воскресенское с/п с/мо, Воскресенское с, Совхозная ул, д. 49 | BB105: Воскресенское с/п с/мо, Воскресенское с, Совхозная ул, д. 49 | BH105: Воскресенское с/п с/мо, Воскресенское с, Совхозная ул, д. 49 | BQ105: Воскресенское с/п с/мо, Воскресенское с, Совхозная ул, д. 49 | BW105: Воскресенское с/п с/мо, Воскресенское с, Совхозная ул, д. 49 | CE105: Воскресенское с/п с/мо, Воскресенское с, Совхозная ул, д. 49 | CL105: Воскресенское с/п с/мо, Воскресенское с, Совхозная ул, д. 49 | CU105: Воскресенское с/п с/мо, Воскресенское с, Совхозная ул, д. 49 | CZ105: Воскресенское с/п с/мо, Воскресенское с, Совхозная ул, д. 49 | DI105: Воскресенское с/п с/мо, Воскресенское с, Совхозная ул, д. 49 | DN105: Воскресенское сельское поселение с/мо, Воскресенское с, Совхозная ул, д. 49 | DS105: Воскресенское сельское поселение с/мо, Воскресенское с, Совхозная ул, д. 49 | DV105: Воскресенское сельское поселение с/мо, Воскресенское с, Совхозная ул, д. 49 | EI105: 758 | EJ105: 16 | EK105: 20.8 | EL105: Общий счет РО+
A106: Воскресенское с (Воскресенское МО), Советская ул, д.48 | B106: ="Воскресенское с (Воскресенское МО), Советская ул, д.48" -> Воскресенское с (Воскресенское МО), Советская ул, д.48 | C106: Воскресенское с, Советская ул, д.48 | D106: ="Воскресенское с, Советская ул, д.48" -> Воскресенское с, Советская ул, д.48 | E106: ="Воскресенское с, Советская ул, д.48" -> Воскресенское с, Советская ул, д.48 | F106: Воскресенское с, Советская ул, д.48 | N106: ="Воскресенское с (Воскресенское МО), Советская ул, д.48" -> Воскресенское с (Воскресенское МО), Советская ул, д.48 | EK106: 0 | EL106: Общий счет РО 535,40 | EM106: Признан аварийным. Приостановлены начисления с марта 2017 г. | EN106: Исключен 30.11.2018
A107: Романово д (Воскресенское МО), ул. Механизаторов, д.1 | B107: ="Романово д (Воскресенское МО), ул. Механизаторов, д.1" -> Романово д (Воскресенское МО), ул. Механизаторов, д.1 | C107: Романово д, Механизаторов ул, д.1 | D107: ="Романово д, Механизаторов ул, д.1" -> Романово д, Механизаторов ул, д.1 | E107: ="Романово д, Механизаторов ул, д.1" -> Романово д, Механизаторов ул, д.1 | F107: Романово д, Механизаторов ул, д.1 | N107: ="Романово д, Механизаторов ул, д.1" -> Романово д, Механизаторов ул, д.1 | AE107: Воскресенское с/п с/мо, Романово д, Механизаторов ул, д. 1 | AJ107: Воскресенское с/п с/мо, Романово д, Механизаторов ул, д. 1 | AU107: Воскресенское с/п с/мо, Романово д, Механизаторов ул, д. 1 | BB107: Воскресенское с/п с/мо, Романово д, Механизаторов ул, д. 1 | BH107: Воскресенское с/п с/мо, Романово д, Механизаторов ул, д. 1 | BQ107: Воскресенское с/п с/мо, Романово д, Механизаторов ул, д. 1 | BW107: Воскресенское с/п с/мо, Романово д, Механизаторов ул, д. 1 | CE107: Воскресенское с/п с/мо, Романово д, Механизаторов ул, д. 1 | CL107: Воскресенское с/п с/мо, Романово д, Механизаторов ул, д. 1 | CU107: Воскресенское с/п с/мо, Романово д, Механизаторов ул, д. 1 | CZ107: Воскресенское с/п с/мо, Романово д, Механизаторов ул, д. 1 | DI107: Воскресенское с/п с/мо, Романово д, Механизаторов ул, д. 1 | DN107: Воскресенское сельское поселение с/мо, Романово д, Механизаторов ул, д. 1 | DS107: Воскресенское сельское поселение с/мо, Романово д, Механизаторов ул, д. 1 | DV107: Воскресенское сельское поселение с/мо, Романово д, Механизаторов ул, д. 1 | EI107: 888.2 | EJ107: 29 | EK107: 37.7 | EL107: Общий счет РО+
A108: Романово д (Воскресенское МО), ул. Механизаторов, д.2 | B108: ="Романово д (Воскресенское МО), ул. Механизаторов, д.2" -> Романово д (Воскресенское МО), ул. Механизаторов, д.2 | C108: Романово д, Механизаторов ул, д.2 | D108: ="Романово д, Механизаторов ул, д.2" -> Романово д, Механизаторов ул, д.2 | E108: ="Романово д, Механизаторов ул, д.2" -> Романово д, Механизаторов ул, д.2 | F108: Романово д, Механизаторов ул, д.2 | N108: ="Романово д, Механизаторов ул, д.2" -> Романово д, Механизаторов ул, д.2 | AE108: Воскресенское с/п с/мо, Романово д, Механизаторов ул, д. 2 | AJ108: Воскресенское с/п с/мо, Романово д, Механизаторов ул, д. 2 | AU108: Воскресенское с/п с/мо, Романово д, Механизаторов ул, д. 2 | BB108: Воскресенское с/п с/мо, Романово д, Механизаторов ул, д. 2 | BH108: Воскресенское с/п с/мо, Романово д, Механизаторов ул, д. 2 | BQ108: Воскресенское с/п с/мо, Романово д, Механизаторов ул, д. 2 | BW108: Воскресенское с/п с/мо, Романово д, Механизаторов ул, д. 2 | CE108: Воскресенское с/п с/мо, Романово д, Механизаторов ул, д. 2 | CL108: Воскресенское с/п с/мо, Романово д, Механизаторов ул, д. 2 | CU108: Воскресенское с/п с/мо, Романово д, Механизаторов ул, д. 2 | CZ108: Воскресенское с/п с/мо, Романово д, Механизаторов ул, д. 2 | DI108: Воскресенское с/п с/мо, Романово д, Механизаторов ул, д. 2 | DN108: Воскресенское сельское поселение с/мо, Романово д, Механизаторов ул, д. 2 | DS108: Воскресенское сельское поселение с/мо, Романово д, Механизаторов ул, д. 2 | DV108: Воскресенское сельское поселение с/мо, Романово д, Механизаторов ул, д. 2 | EI108: 846.6 | EJ108: 24 | EK108: 31.2 | EL108: Общий счет РО+
AE109: Енюково д, д. 1 | AJ109: Енюково д, д. 1 | AU109: Енюково д, д. 1 | BB109: Енюково д, д. 1 | BH109: Енюково д, д. 1 | BQ109: Енюково д, д. 1 | BW109: Енюково д, д. 1 | CE109: Енюково д, д. 1 | CL109: Енюково д, д. 1 | CU109: Енюково д, д. 1 | CZ109: Енюково д, д. 1 | DI109: Енюково д, д. 1 | DN109: Енюково д, д. 1 | EK109: 0 | EL109: Общий счет РО+1220,40 | EM109: Акт о консервации объекта жилищного фонда от 2021 года | EN109: Исключен 18.09.2025
AE110: Енюково д, д. 2 | AJ110: Енюково д, д. 2 | AU110: Енюково д, д. 2 | BB110: Енюково д, д. 2 | BH110: Енюково д, д. 2 | BQ110: Енюково д, д. 2 | BW110: Енюково д, д. 2 | CE110: Енюково д, д. 2 | CL110: Енюково д, д. 2 | CU110: Енюково д, д. 2 | CZ110: Енюково д, д. 2 | DI110: Енюково д, д. 2 | DN110: Енюково д, д. 2 | EK110: 0 | EL110: Общий счет РО+385,89 | EM110: Акт о консервации объекта жилищного фонда от 2021 года | EN110: Исключен 18.09.2025
A111: Ивановское с, Весенняя ул, д.1 | B111: ="Ивановское с, Весенняя ул, д.1" -> Ивановское с, Весенняя ул, д.1 | C111: Ивановское с, Весенняя ул, д.1 | D111: ="Ивановское с, Весенняя ул, д.1" -> Ивановское с, Весенняя ул, д.1 | E111: ="Ивановское с, Весенняя ул, д.1" -> Ивановское с, Весенняя ул, д.1 | F111: Ивановское с, Весенняя ул, д.1 | N111: ="Ивановское с, Весенняя ул, д.1" -> Ивановское с, Весенняя ул, д.1 | AE111: Ивановское с, Весенняя ул, д. 1 | EK111: 0 | EL111: Общий счет РО - 274,70 | EM111: 4-х квартирный | EN111: Исключен 01.04.2019
A112: Ивановское с, Весенняя ул, д.2 | B112: ="Ивановское с, Весенняя ул, д.2" -> Ивановское с, Весенняя ул, д.2 | C112: Ивановское с, Весенняя ул, д.2 | D112: ="Ивановское с, Весенняя ул, д.2" -> Ивановское с, Весенняя ул, д.2 | E112: ="Ивановское с, Весенняя ул, д.2" -> Ивановское с, Весенняя ул, д.2 | F112: Ивановское с, Весенняя ул, д.2 | N112: ="Ивановское с, Весенняя ул, д.2" -> Ивановское с, Весенняя ул, д.2 | AE112: Ивановское с, Весенняя ул, д. 2 | EK112: 0 | EL112: Общий счет РО - 305,30 | EM112: 4-х квартирный | EN112: Исключен 01.04.2019
A113: Ивановское с, Весенняя ул, д.3 | B113: ="Ивановское с, Весенняя ул, д.3" -> Ивановское с, Весенняя ул, д.3 | C113: Ивановское с, Весенняя ул, д.3 | D113: ="Ивановское с, Весенняя ул, д.3" -> Ивановское с, Весенняя ул, д.3 | E113: ="Ивановское с, Весенняя ул, д.3" -> Ивановское с, Весенняя ул, д.3 | F113: Ивановское с, Весенняя ул, д.3 | N113: ="Ивановское с, Весенняя ул, д.3" -> Ивановское с, Весенняя ул, д.3 | AE113: Ивановское с, Весенняя ул, д. 3 | EK113: 0 | EL113: Общий счет РО - 307,50 | EM113: 4-х квартирный | EN113: Исключен 01.04.2019
A114: Ивановское с, Весенняя ул, д.4 | B114: ="Ивановское с, Весенняя ул, д.4" -> Ивановское с, Весенняя ул, д.4 | C114: Ивановское с, Весенняя ул, д.4 | D114: ="Ивановское с, Весенняя ул, д.4" -> Ивановское с, Весенняя ул, д.4 | E114: ="Ивановское с, Весенняя ул, д.4" -> Ивановское с, Весенняя ул, д.4 | F114: Ивановское с, Весенняя ул, д.4 | N114: ="Ивановское с, Весенняя ул, д.4" -> Ивановское с, Весенняя ул, д.4 | AE114: Ивановское с, Весенняя ул, д. 4 | EK114: 0 | EL114: Общий счет РО - 305,70 | EM114: 4-х квартирный | EN114: Исключен 01.04.2019
A115: Ивановское с, Весенняя ул, д.5 | B115: ="Ивановское с, Весенняя ул, д.5" -> Ивановское с, Весенняя ул, д.5 | C115: Ивановское с, Весенняя ул, д.5 | D115: ="Ивановское с, Весенняя ул, д.5" -> Ивановское с, Весенняя ул, д.5 | E115: ="Ивановское с, Весенняя ул, д.5" -> Ивановское с, Весенняя ул, д.5 | F115: Ивановское с, Весенняя ул, д.5 | N115: ="Ивановское с, Весенняя ул, д.5" -> Ивановское с, Весенняя ул, д.5 | AE115: Ивановское с, Весенняя ул, д. 5 | EK115: 0 | EL115: Общий счет РО - 305,70 | EM115: 4-х квартирный | EN115: Исключен 01.04.2019
A116: Ивановское с, Весенняя ул, д.6 | B116: ="Ивановское с, Весенняя ул, д.6" -> Ивановское с, Весенняя ул, д.6 | C116: Ивановское с, Весенняя ул, д.6 | D116: ="Ивановское с, Весенняя ул, д.6" -> Ивановское с, Весенняя ул, д.6 | E116: ="Ивановское с, Весенняя ул, д.6" -> Ивановское с, Весенняя ул, д.6 | F116: Ивановское с, Весенняя ул, д.6 | N116: ="Ивановское с, Весенняя ул, д.6" -> Ивановское с, Весенняя ул, д.6 | AE116: Ивановское с, Весенняя ул, д. 6 | EK116: 0 | EL116: Общий счет РО - 304,40 | EM116: 4-х квартирный | EN116: Исключен 01.04.2019
A117: Ивановское с, Весенняя ул, д.7 | B117: ="Ивановское с, Весенняя ул, д.7" -> Ивановское с, Весенняя ул, д.7 | C117: Ивановское с, Весенняя ул, д.7 | D117: ="Ивановское с, Весенняя ул, д.7" -> Ивановское с, Весенняя ул, д.7 | E117: ="Ивановское с, Весенняя ул, д.7" -> Ивановское с, Весенняя ул, д.7 | F117: Ивановское с, Весенняя ул, д.7 | N117: ="Ивановское с, Весенняя ул, д.7" -> Ивановское с, Весенняя ул, д.7 | AE117: Ивановское с, Весенняя ул, д. 7 | EK117: 0 | EL117: Общий счет РО - 306,60 | EM117: 4-х квартирный | EN117: Исключен 01.04.2019
A118: Ивановское с, Весенняя ул, д.8 | B118: ="Ивановское с, Весенняя ул, д.8" -> Ивановское с, Весенняя ул, д.8 | C118: Ивановское с, Весенняя ул, д.8 | D118: ="Ивановское с, Весенняя ул, д.8" -> Ивановское с, Весенняя ул, д.8 | E118: ="Ивановское с, Весенняя ул, д.8" -> Ивановское с, Весенняя ул, д.8 | F118: Ивановское с, Весенняя ул, д.8 | N118: ="Ивановское с, Весенняя ул, д.8" -> Ивановское с, Весенняя ул, д.8 | AE118: Ивановское с, Весенняя ул, д. 8 | EK118: 0 | EL118: Общий счет РО - 309,70 | EM118: 4-х квартирный | EN118: Исключен 01.04.2019
A119: Ивановское с, Весенняя ул, д.9 | B119: ="Ивановское с, Весенняя ул, д.9" -> Ивановское с, Весенняя ул, д.9 | C119: Ивановское с, Весенняя ул, д.9 | D119: ="Ивановское с, Весенняя ул, д.9" -> Ивановское с, Весенняя ул, д.9 | E119: ="Ивановское с, Весенняя ул, д.9" -> Ивановское с, Весенняя ул, д.9 | F119: Ивановское с, Весенняя ул, д.9 | N119: ="Ивановское с, Весенняя ул, д.9" -> Ивановское с, Весенняя ул, д.9 | AE119: Ивановское с, Весенняя ул, д. 9 | EK119: 0 | EL119: Специальный счет РО + учет - 276,40 | EM119: 4-х квартирный | EN119: Исключен 01.04.2019
A120: Ивановское с, Весенняя ул, д.10 | B120: ="Ивановское с, Весенняя ул, д.10" -> Ивановское с, Весенняя ул, д.10 | C120: Ивановское с, Весенняя ул, д.10 | D120: ="Ивановское с, Весенняя ул, д.10" -> Ивановское с, Весенняя ул, д.10 | E120: ="Ивановское с, Весенняя ул, д.10" -> Ивановское с, Весенняя ул, д.10 | F120: Ивановское с, Весенняя ул, д.10 | N120: ="Ивановское с, Весенняя ул, д.10" -> Ивановское с, Весенняя ул, д.10 | AE120: Ивановское с, Весенняя ул, д. 10 | EK120: 0 | EL120: Общий счет РО - 314,20 | EM120: 4-х квартирный | EN120: Исключен 01.04.2019
A121: Ивановское с, Весенняя ул, д.11 | B121: ="Ивановское с, Весенняя ул, д.11" -> Ивановское с, Весенняя ул, д.11 | C121: Ивановское с, Весенняя ул, д.11 | D121: ="Ивановское с, Весенняя ул, д.11" -> Ивановское с, Весенняя ул, д.11 | E121: ="Ивановское с, Весенняя ул, д.11" -> Ивановское с, Весенняя ул, д.11 | F121: Ивановское с, Весенняя ул, д.11 | N121: ="Ивановское с, Весенняя ул, д.11" -> Ивановское с, Весенняя ул, д.11 | AE121: Ивановское с, Весенняя ул, д. 11 | EK121: 0 | EL121: Общий счет РО - 314,20 | EM121: 4-х квартирный | EN121: Исключен 01.04.2019
A122: Ивановское с, Весенняя ул, д.12 | B122: ="Ивановское с, Весенняя ул, д.12" -> Ивановское с, Весенняя ул, д.12 | C122: Ивановское с, Весенняя ул, д.12 | D122: ="Ивановское с, Весенняя ул, д.12" -> Ивановское с, Весенняя ул, д.12 | E122: ="Ивановское с, Весенняя ул, д.12" -> Ивановское с, Весенняя ул, д.12 | F122: Ивановское с, Весенняя ул, д.12 | N122: ="Ивановское с, Весенняя ул, д.12" -> Ивановское с, Весенняя ул, д.12 | AE122: Ивановское с, Весенняя ул, д. 12 | EK122: 0 | EL122: Общий счет РО - 283,80 | EM122: 4-х квартирный | EN122: Исключен 01.04.2019
A123: Ивановское с, Центральная ул, д.78 | B123: ="Ивановское с, Центральная ул, д.78" -> Ивановское с, Центральная ул, д.78 | C123: Ивановское с, Центральная ул, д.78 | D123: ="Ивановское с, Центральная ул, д.78" -> Ивановское с, Центральная ул, д.78 | E123: ="Ивановское с, Центральная ул, д.78" -> Ивановское с, Центральная ул, д.78 | F123: Ивановское с, Центральная ул, д.78 | N123: ="Ивановское с, Центральная ул, д.78" -> Ивановское с, Центральная ул, д.78 | AE123: Ивановское с, Центральная ул, д. 78 | AJ123: Ивановское с, Центральная ул, д. 78 | AU123: Ивановское с, Центральная ул, д. 78 | BB123: Ивановское с, Центральная ул, д. 78 | BH123: Ивановское с, Центральная ул, д. 78 | BQ123: Ивановское с, Центральная ул, д. 78 | BW123: Ивановское с, Центральная ул, д. 78 | CE123: Ивановское с, Центральная ул, д. 78 | CL123: Ивановское с, Центральная ул, д. 78 | CU123: Ивановское с, Центральная ул, д. 78 | CZ123: Ивановское с, Центральная ул, д. 78 | DI123: Ивановское с, Центральная ул, д. 78 | DN123: Ивановское с, Центральная ул, д. 78 | DS123: Ивановское с, Центральная ул, д. 78 | DV123: Ивановское с, Центральная ул, д. 78 | EI123: 633.8 | EJ123: 15 | EK123: 19.5 | EL123: Общий счет РО+
A124: Ильинское с (Югское МО), д.2 | B124: ="Ильинское с (Югское МО), д.2" -> Ильинское с (Югское МО), д.2 | C124: с.Ильинское, д.2 | D124: ="с.Ильинское, д.2" -> с.Ильинское, д.2 | E124: ="с.Ильинское, д.2" -> с.Ильинское, д.2 | F124: с.Ильинское, д.2 | N124: ="с.Ильинское, д.2" -> с.Ильинское, д.2 | AE124: Ильинское с, д. 2 | AJ124: Ильинское с, д. 2 | AU124: Ильинское с, д. 2 | BB124: Ильинское с, д. 2 | BH124: Ильинское с, д. 2 | BQ124: Ильинское с, д. 2 | BW124: Ильинское с, д. 2 | CE124: Ильинское с, д. 2 | CL124: Ильинское с, д. 2 | CU124: Ильинское с, д. 2 | CZ124: Ильинское с, д. 2 | DI124: Ильинское с, д. 2 | DN124: Ильинское с, д. 2 | DS124: Ильинское с, д. 2 | DV124: Ильинское с, д. 2 | EI124: 522.8 | EJ124: 12 | EK124: 15.6 | EL124: Общий счет РО+
A125: Ильинское с (Югское МО), д.3 | B125: ="Ильинское с (Югское МО), д.3" -> Ильинское с (Югское МО), д.3 | C125: с.Ильинское, д.3 | D125: ="с.Ильинское, д.3" -> с.Ильинское, д.3 | E125: ="с.Ильинское, д.3" -> с.Ильинское, д.3 | F125: с.Ильинское, д.3 | N125: ="с.Ильинское, д.3" -> с.Ильинское, д.3 | AE125: Ильинское с, д. 3 | AJ125: Ильинское с, д. 3 | AU125: Ильинское с, д. 3 | BB125: Ильинское с, д. 3 | BH125: Ильинское с, д. 3 | BQ125: Ильинское с, д. 3 | BW125: Ильинское с, д. 3 | CE125: Ильинское с, д. 3 | CL125: Ильинское с, д. 3 | CU125: Ильинское с, д. 3 | CZ125: Ильинское с, д. 3 | DI125: Ильинское с, д. 3 | DN125: Ильинское с, д. 3 | DS125: Ильинское с, д. 3 | DV125: Ильинское с, д. 3 | EI125: 454.4 | EJ125: 12 | EK125: 15.6 | EL125: Общий счет РО+
A126: Ильинское с (Югское МО), д.4 | B126: ="Ильинское с (Югское МО), д.4" -> Ильинское с (Югское МО), д.4 | C126: с.Ильинское, д.4 | D126: ="с.Ильинское, д.4" -> с.Ильинское, д.4 | E126: ="с.Ильинское, д.4" -> с.Ильинское, д.4 | F126: с.Ильинское, д.4 | N126: ="с.Ильинское, д.4" -> с.Ильинское, д.4 | AE126: Ильинское с, д. 4 | AJ126: Ильинское с, д. 4 | AU126: Ильинское с, д. 4 | BB126: Ильинское с, д. 4 | BH126: Ильинское с, д. 4 | BQ126: Ильинское с, д. 4 | BW126: Ильинское с, д. 4 | CE126: Ильинское с, д. 4 | CL126: Ильинское с, д. 4 | CU126: Ильинское с, д. 4 | CZ126: Ильинское с, д. 4 | DI126: Ильинское с, д. 4 | DN126: Ильинское с, д. 4 | DS126: Ильинское с, д. 4 | DV126: Ильинское с, д. 4 | EI126: 458.2 | EJ126: 14 | EK126: 18.2 | EL126: Общий счет РО+
A127: Ирдоматка д, д.154 | B127: ="Ирдоматка д, д.154" -> Ирдоматка д, д.154 | C127: Ирдоматка д, д.154 | D127: ="Ирдоматка д, д.154" -> Ирдоматка д, д.154 | E127: ="Ирдоматка д, д.154" -> Ирдоматка д, д.154 | F127: Ирдоматка д, д.154 | N127: ="Ирдоматка д, д.154" -> Ирдоматка д, д.154 | AE127: Ирдоматка д, д. 154 | AJ127: Ирдоматка д, д. 154 | AU127: Ирдоматка д, д. 154 | EK127: 0 | EL127: Общий счет РО - 347,60 | EM127: Признан аварийным и подлежащим реконструкции. Заключение № 84 от 02.2019 г. | EN127: Исключен 27.07.2020
A128: Ирдоматка д, Новая ул, д.1 | B128: ="Ирдоматка д, Новая ул, д.1" -> Ирдоматка д, Новая ул, д.1 | C128: Ирдоматка д, Новая ул, д.1 | D128: ="Ирдоматка д, Новая ул, д.1" -> Ирдоматка д, Новая ул, д.1 | E128: ="Ирдоматка д, Новая ул, д.1" -> Ирдоматка д, Новая ул, д.1 | F128: Ирдоматка д, Новая ул, д.1 | N128: ="Ирдоматка д, Новая ул, д.1" -> Ирдоматка д, Новая ул, д.1 | AE128: Ирдоматка д, Новая ул, д. 1 | EK128: 0 | EL128: Общий счет РО - 566,70 | EM128: Признан аварийным. Заключение № 81 от 20.12.2018 | EN128: Исключен 01.04.2019
A129: Ирдоматка д, Новая ул, д.3 | B129: ="Ирдоматка д, Новая ул, д.3" -> Ирдоматка д, Новая ул, д.3 | C129: Ирдоматка д, Новая ул, д.3 | D129: ="Ирдоматка д, Новая ул, д.3" -> Ирдоматка д, Новая ул, д.3 | E129: ="Ирдоматка д, Новая ул, д.3" -> Ирдоматка д, Новая ул, д.3 | F129: Ирдоматка д, Новая ул, д.3 | N129: ="Ирдоматка д, Новая ул, д.3" -> Ирдоматка д, Новая ул, д.3 | AE129: Ирдоматка д, Новая ул, д. 3 | AJ129: Ирдоматка д, Новая ул, д. 3 | AU129: Ирдоматка д, Новая ул, д. 3 | BB129: Ирдоматка д, Новая ул, д. 3 | BH129: Ирдоматка д, Новая ул, д. 3 | BQ129: Ирдоматка д, Новая ул, д. 3 | BW129: Ирдоматка д, Новая ул, д. 3 | CE129: Ирдоматка д, Новая ул, д. 3 | CL129: Ирдоматка д, Новая ул, д. 3 | CU129: Ирдоматка д, Новая ул, д. 3 | CZ129: Ирдоматка д, Новая ул, д. 3 | DI129: Ирдоматка д, Новая ул, д. 3 | DN129: Ирдоматка д, Новая ул, д. 3 | DS129: Ирдоматка д, Новая ул, д. 3 | DV129: Ирдоматка д, Новая ул, д. 3 | EI129: 2299 | EJ129: 40 | EK129: 52 | EL129: Специальный счет УК | EM129: ООО ГУК ЖилФонд | EN129: ОС-ССРО с 20.08.2019 ССРО-ССУК с 05.08.2022
A130: Ирдоматка д, Новая ул, д.5 | B130: ="Ирдоматка д, Новая ул, д.5" -> Ирдоматка д, Новая ул, д.5 | C130: Ирдоматка д, Новая ул, д.5 | D130: ="Ирдоматка д, Новая ул, д.5" -> Ирдоматка д, Новая ул, д.5 | E130: ="Ирдоматка д, Новая ул, д.5" -> Ирдоматка д, Новая ул, д.5 | F130: Ирдоматка д, Новая ул, д.5 | N130: ="Ирдоматка д, Новая ул, д.5" -> Ирдоматка д, Новая ул, д.5 | AE130: Ирдоматка д, Новая ул, д. 5 | AJ130: Ирдоматка д, Новая ул, д. 5 | AU130: Ирдоматка д, Новая ул, д. 5 | BB130: Ирдоматка д, Новая ул, д. 5 | BH130: Ирдоматка д, Новая ул, д. 5 | BQ130: Ирдоматка д, Новая ул, д. 5 | BW130: Ирдоматка д, Новая ул, д. 5 | CE130: Ирдоматка д, Новая ул, д. 5 | CL130: Ирдоматка д, Новая ул, д. 5 | CU130: Ирдоматка д, Новая ул, д. 5 | CZ130: Ирдоматка д, Новая ул, д. 5 | DI130: Ирдоматка д, Новая ул, д. 5 | DN130: Ирдоматка д, Новая ул, д. 5 | DS130: Ирдоматка д, Новая ул, д. 5 | DV130: Ирдоматка д, Новая ул, д. 5 | EI130: 1540.1 | EJ130: 36 | EK130: 46.8 | EL130: Общий счет РО+
A131: Ирдоматка д, Новая ул, д.6 | B131: ="Ирдоматка д, Новая ул, д.6" -> Ирдоматка д, Новая ул, д.6 | C131: Ирдоматка д, Новая ул, д.6 | D131: ="Ирдоматка д, Новая ул, д.6" -> Ирдоматка д, Новая ул, д.6 | E131: ="Ирдоматка д, Новая ул, д.6" -> Ирдоматка д, Новая ул, д.6 | F131: Ирдоматка д, Новая ул, д.6 | N131: ="Ирдоматка д, Новая ул, д.6" -> Ирдоматка д, Новая ул, д.6 | AE131: Ирдоматка д, Новая ул, д. 6 | AJ131: Ирдоматка д, Новая ул, д. 6 | AU131: Ирдоматка д, Новая ул, д. 6 | BB131: Ирдоматка д, Новая ул, д. 6 | BH131: Ирдоматка д, Новая ул, д. 6 | BQ131: Ирдоматка д, Новая ул, д. 6 | BW131: Ирдоматка д, Новая ул, д. 6 | CE131: Ирдоматка д, Новая ул, д. 6 | CL131: Ирдоматка д, Новая ул, д. 6 | CU131: Ирдоматка д, Новая ул, д. 6 | CZ131: Ирдоматка д, Новая ул, д. 6 | DI131: Ирдоматка д, Новая ул, д. 6 | DN131: Ирдоматка д, Новая ул, д. 6 | DS131: Ирдоматка д, Новая ул, д. 6 | DV131: Ирдоматка д, Новая ул, д. 6 | EI131: 2423 | EJ131: 40 | EK131: =EJ131*1.3 -> 52 | EL131: Общий счет РО+
A132: Ирдоматка д, Новая ул, д.7 | B132: ="Ирдоматка д, Новая ул, д.7" -> Ирдоматка д, Новая ул, д.7 | C132: Ирдоматка д, Новая ул, д.7 | D132: ="Ирдоматка д, Новая ул, д.7" -> Ирдоматка д, Новая ул, д.7 | E132: ="Ирдоматка д, Новая ул, д.7" -> Ирдоматка д, Новая ул, д.7 | F132: Ирдоматка д, Новая ул, д.7 | N132: ="Ирдоматка д, Новая ул, д.7" -> Ирдоматка д, Новая ул, д.7 | AE132: Ирдоматка д, Новая ул, д. 7 | AJ132: Ирдоматка д, Новая ул, д. 7 | AU132: Ирдоматка д, Новая ул, д. 7 | BB132: Ирдоматка д, Новая ул, д. 7 | BH132: Ирдоматка д, Новая ул, д. 7 | BQ132: Ирдоматка д, Новая ул, д. 7 | BW132: Ирдоматка д, Новая ул, д. 7 | CE132: Ирдоматка д, Новая ул, д. 7 | CL132: Ирдоматка д, Новая ул, д. 7 | CU132: Ирдоматка д, Новая ул, д. 7 | CZ132: Ирдоматка д, Новая ул, д. 7 | DI132: Ирдоматка д, Новая ул, д. 7 | DN132: Ирдоматка д, Новая ул, д. 7 | DS132: Ирдоматка д, Новая ул, д. 7 | DV132: Ирдоматка д, Новая ул, д. 7 | EI132: 1087.8 | EJ132: 30 | EK132: 39 | EL132: Общий счет РО+
A133: Ирдоматка д, Новая ул, д.8 | B133: ="Ирдоматка д, Новая ул, д.8" -> Ирдоматка д, Новая ул, д.8 | C133: Ирдоматка д, Новая ул, д.8 | D133: ="Ирдоматка д, Новая ул, д.8" -> Ирдоматка д, Новая ул, д.8 | E133: ="Ирдоматка д, Новая ул, д.8" -> Ирдоматка д, Новая ул, д.8 | F133: Ирдоматка д, Новая ул, д.8 | N133: ="Ирдоматка д, Новая ул, д.8" -> Ирдоматка д, Новая ул, д.8 | AE133: Ирдоматка д, Новая ул, д. 8 | AJ133: Ирдоматка д, Новая ул, д. 8 | AU133: Ирдоматка д, Новая ул, д. 8 | BB133: Ирдоматка д, Новая ул, д. 8 | BH133: Ирдоматка д, Новая ул, д. 8 | BQ133: Ирдоматка д, Новая ул, д. 8 | BW133: Ирдоматка д, Новая ул, д. 8 | CE133: Ирдоматка д, Новая ул, д. 8 | CL133: Ирдоматка д, Новая ул, д. 8 | CU133: Ирдоматка д, Новая ул, д. 8 | CZ133: Ирдоматка д, Новая ул, д. 8 | DI133: Ирдоматка д, Новая ул, д. 8 | DN133: Ирдоматка д, Новая ул, д. 8 | DS133: Ирдоматка д, Новая ул, д. 8 | DV133: Ирдоматка д, Новая ул, д. 8 | EI133: 2487.2 | EJ133: 40 | EK133: 52 | EL133: Специальный счет УК | EM133: ООО ГУК ЖилФонд | EN133: ОС-ССУК с 01.02.2024
A134: Ирдоматка д, Новая ул, д.9 | B134: ="Ирдоматка д, Новая ул, д.9" -> Ирдоматка д, Новая ул, д.9 | C134: Ирдоматка д, Новая ул, д.9 | D134: ="Ирдоматка д, Новая ул, д.9" -> Ирдоматка д, Новая ул, д.9 | E134: ="Ирдоматка д, Новая ул, д.9" -> Ирдоматка д, Новая ул, д.9 | F134: Ирдоматка д, Новая ул, д.9 | N134: ="Ирдоматка д, Новая ул, д.9" -> Ирдоматка д, Новая ул, д.9 | EK134: 0 | EL134: Общий счет РО 604,70 | EM134: Признан аварийным. Заключение № 52 от 28.05.2018 | EN134: Исключен 30.11.2018
A135: Ирдоматка д, Новая ул, д.10 | B135: ="Ирдоматка д, Новая ул, д.10" -> Ирдоматка д, Новая ул, д.10 | C135: Ирдоматка д, Новая ул, д.10 | D135: ="Ирдоматка д, Новая ул, д.10" -> Ирдоматка д, Новая ул, д.10 | E135: ="Ирдоматка д, Новая ул, д.10" -> Ирдоматка д, Новая ул, д.10 | F135: Ирдоматка д, Новая ул, д.10 | N135: ="Ирдоматка д, Новая ул, д.10" -> Ирдоматка д, Новая ул, д.10 | AE135: Ирдоматка д, Новая ул, д. 10 | AJ135: Ирдоматка д, Новая ул, д. 10 | AU135: Ирдоматка д, Новая ул, д. 10 | BB135: Ирдоматка д, Новая ул, д. 10 | BH135: Ирдоматка д, Новая ул, д. 10 | BQ135: Ирдоматка д, Новая ул, д. 10 | BW135: Ирдоматка д, Новая ул, д. 10 | CE135: Ирдоматка д, Новая ул, д. 10 | CL135: Ирдоматка д, Новая ул, д. 10 | CU135: Ирдоматка д, Новая ул, д. 10 | CZ135: Ирдоматка д, Новая ул, д. 10 | DI135: Ирдоматка д, Новая ул, д. 10 | DN135: Ирдоматка д, Новая ул, д. 10 | DS135: Ирдоматка д, Новая ул, д. 10 | DV135: Ирдоматка д, Новая ул, д. 10 | EI135: 1123.3 | EJ135: 31 | EK135: 40.3 | EL135: Общий счет РО+
A136: Ирдоматка д, Новая ул, д.11 | B136: ="Ирдоматка д, Новая ул, д.11" -> Ирдоматка д, Новая ул, д.11 | C136: Ирдоматка д, Новая ул, д.11 | D136: ="Ирдоматка д, Новая ул, д.11" -> Ирдоматка д, Новая ул, д.11 | E136: ="Ирдоматка д, Новая ул, д.11" -> Ирдоматка д, Новая ул, д.11 | F136: Ирдоматка д, Новая ул, д.11 | N136: ="Ирдоматка д, Новая ул, д.11" -> Ирдоматка д, Новая ул, д.11 | EK136: 0 | EL136: Общий счет РО 566,70 | EM136: Признан аварийным. Заключение № 51 от 28.05.2018 | EN136: Исключен 30.11.2018
A137: Ирдоматка д, Новая ул, д.12 | B137: ="Ирдоматка д, Новая ул, д.12" -> Ирдоматка д, Новая ул, д.12 | C137: Ирдоматка д, Новая ул, д.12 | D137: ="Ирдоматка д, Новая ул, д.12" -> Ирдоматка д, Новая ул, д.12 | E137: ="Ирдоматка д, Новая ул, д.12" -> Ирдоматка д, Новая ул, д.12 | F137: Ирдоматка д, Новая ул, д.12 | N137: ="Ирдоматка д, Новая ул, д.12" -> Ирдоматка д, Новая ул, д.12 | AE137: Ирдоматка д, Новая ул, д. 12 | AJ137: Ирдоматка д, Новая ул, д. 12 | AU137: Ирдоматка д, Новая ул, д. 12 | BB137: Ирдоматка д, Новая ул, д. 12 | BH137: Ирдоматка д, Новая ул, д. 12 | BQ137: Ирдоматка д, Новая ул, д. 12 | BW137: Ирдоматка д, Новая ул, д. 12 | CE137: Ирдоматка д, Новая ул, д. 12 | CL137: Ирдоматка д, Новая ул, д. 12 | CU137: Ирдоматка д, Новая ул, д. 12 | CZ137: Ирдоматка д, Новая ул, д. 12 | DI137: Ирдоматка д, Новая ул, д. 12 | DN137: Ирдоматка д, Новая ул, д. 12 | DS137: Ирдоматка д, Новая ул, д. 12 | DV137: Ирдоматка д, Новая ул, д. 12 | EI137: 1373.5 | EJ137: 34 | EK137: 44.2 | EL137: Общий счет РО+
A138: Ирдоматка д, Новая ул, д.14 | B138: ="Ирдоматка д, Новая ул, д.14" -> Ирдоматка д, Новая ул, д.14 | C138: Ирдоматка д, Новая ул, д.14 | D138: ="Ирдоматка д, Новая ул, д.14" -> Ирдоматка д, Новая ул, д.14 | E138: ="Ирдоматка д, Новая ул, д.14" -> Ирдоматка д, Новая ул, д.14 | F138: Ирдоматка д, Новая ул, д.14 | N138: ="Ирдоматка д, Новая ул, д.14" -> Ирдоматка д, Новая ул, д.14 | AE138: Ирдоматка д, Новая ул, д. 14 | EK138: 0 | EL138: Общий счет РО - 284,20 | EM138: 4-х квартирный | EN138: Исключен 01.04.2019
A139: Ирдоматка д, Новая ул, д.16 | B139: ="Ирдоматка д, Новая ул, д.16" -> Ирдоматка д, Новая ул, д.16 | C139: Ирдоматка д, Новая ул, д.16 | D139: ="Ирдоматка д, Новая ул, д.16" -> Ирдоматка д, Новая ул, д.16 | E139: ="Ирдоматка д, Новая ул, д.16" -> Ирдоматка д, Новая ул, д.16 | F139: Ирдоматка д, Новая ул, д.16 | N139: ="Ирдоматка д, Новая ул, д.16" -> Ирдоматка д, Новая ул, д.16 | AE139: Ирдоматка д, Новая ул, д. 16 | EK139: 0 | EL139: Общий счет РО - 284,40 | EM139: 4-х квартирный | EN139: Исключен 01.04.2019
A140: Ирдоматка д, Новая ул, д.18 | B140: ="Ирдоматка д, Новая ул, д.18" -> Ирдоматка д, Новая ул, д.18 | C140: Ирдоматка д, Новая ул, д.18 | D140: ="Ирдоматка д, Новая ул, д.18" -> Ирдоматка д, Новая ул, д.18 | E140: ="Ирдоматка д, Новая ул, д.18" -> Ирдоматка д, Новая ул, д.18 | F140: Ирдоматка д, Новая ул, д.18 | N140: ="Ирдоматка д, Новая ул, д.18" -> Ирдоматка д, Новая ул, д.18 | AE140: Ирдоматка д, Новая ул, д. 18 | EK140: 0 | EL140: Общий счет РО - 284,90 | EM140: 4-х квартирный | EN140: Исключен 01.04.2019
A141: Ирдоматка д, Новая ул, д.20 | B141: ="Ирдоматка д, Новая ул, д.20" -> Ирдоматка д, Новая ул, д.20 | C141: Ирдоматка д, Новая ул, д.20 | D141: ="Ирдоматка д, Новая ул, д.20" -> Ирдоматка д, Новая ул, д.20 | E141: ="Ирдоматка д, Новая ул, д.20" -> Ирдоматка д, Новая ул, д.20 | F141: Ирдоматка д, Новая ул, д.20 | N141: ="Ирдоматка д, Новая ул, д.20" -> Ирдоматка д, Новая ул, д.20 | AE141: Ирдоматка д, Новая ул, д. 20 | EK141: 0 | EL141: Общий счет РО - 314,20 | EM141: 4-х квартирный | EN141: Исключен 01.04.2019
A142: Ирдоматка д, Новая ул, д.24 | EK142: 0 | EN142: Исключен
AU143: Ирдоматка д, Новая ул, д. 58 | BB143: Ирдоматка д, Новая ул, д. 58 | BH143: Ирдоматка д, Новая ул, д. 58 | BQ143: Ирдоматка д, Новая ул, д. 58 | BW143: Ирдоматка д, Новая ул, д. 58 | CE143: Ирдоматка д, Новая ул, д. 58 | CL143: Ирдоматка д, Новая ул, д. 58 | CU143: Ирдоматка д, Новая ул, д. 58 | CZ143: Ирдоматка д, Новая ул, д. 58 | DI143: Ирдоматка д, Новая ул, д. 58 | DN143: Ирдоматка д, Новая ул, д. 58 | DS143: Ирдоматка д, Новая ул, д. 58 | DV143: Ирдоматка д, Новая ул, д. 58 | EI143: 716.1 | EJ143: 35 | EK143: 45.5 | EL143: Общий счет РО+
A144: Ирдоматка д, Новая ул, д.26 | EK144: 0 | EN144: Исключен
A145: Климовское д, д.1 | B145: ="Климовское д, д.1" -> Климовское д, д.1 | C145: Климовское д, д.1 | D145: ="Климовское д, д.1" -> Климовское д, д.1 | E145: ="Климовское д, д.1" -> Климовское д, д.1 | F145: Климовское д, д.1 | N145: ="Климовское д, д.1" -> Климовское д, д.1 | AE145: Климовское д, д. 1 | AJ145: Климовское д, д. 1 | AU145: Климовское д, д. 1 | BB145: Климовское д, д. 1 | BH145: Климовское д, д. 1 | BQ145: Климовское д, д. 1 | BW145: Климовское д, д. 1 | CE145: Климовское д, д. 1 | CL145: Климовское д, д. 1 | CU145: Климовское д, д. 1 | CZ145: Климовское д, д. 1 | DI145: Климовское д, д. 1 | DN145: Климовское д, д. 1 | DS145: Климовское д, д. 1 | DV145: Климовское д, д. 1 | EI145: 1531 | EJ145: 37 | EK145: 48.1 | EL145: Специальный счет УК | EM145: ООО УК "Городок" | EN145: ОС-ССУК с 21.07.2022
A146: Климовское д, д.2 | B146: ="Климовское д, д.2" -> Климовское д, д.2 | C146: Климовское д, д.2 | D146: ="Климовское д, д.2" -> Климовское д, д.2 | E146: ="Климовское д, д.2" -> Климовское д, д.2 | F146: Климовское д, д.2 | N146: ="Климовское д, д.2" -> Климовское д, д.2 | AE146: Климовское д, д. 2 | AJ146: Климовское д, д. 2 | AU146: Климовское д, д. 2 | BB146: Климовское д, д. 2 | BH146: Климовское д, д. 2 | BQ146: Климовское д, д. 2 | BW146: Климовское д, д. 2 | CE146: Климовское д, д. 2 | CL146: Климовское д, д. 2 | CU146: Климовское д, д. 2 | CZ146: Климовское д, д. 2 | DI146: Климовское д, д. 2 | DN146: Климовское д, д. 2 | DS146: Климовское д, д. 2 | DV146: Климовское д, д. 2 | EI146: 1508.7 | EJ146: 36 | EK146: 46.8 | EL146: Специальный счет УК | EM146: ООО УК "Городок" | EN146: ОС-ССУК с 21.07.2022
A147: Климовское д, д.3 | B147: ="Климовское д, д.3" -> Климовское д, д.3 | C147: Климовское д, д.3 | D147: ="Климовское д, д.3" -> Климовское д, д.3 | E147: ="Климовское д, д.3" -> Климовское д, д.3 | F147: Климовское д, д.3 | N147: ="Климовское д, д.3" -> Климовское д, д.3 | AE147: Климовское д, д. 3 | AJ147: Климовское д, д. 3 | AU147: Климовское д, д. 3 | BB147: Климовское д, д. 3 | BH147: Климовское д, д. 3 | BQ147: Климовское д, д. 3 | BW147: Климовское д, д. 3 | CE147: Климовское д, д. 3 | CL147: Климовское д, д. 3 | CU147: Климовское д, д. 3 | CZ147: Климовское д, д. 3 | DI147: Климовское д, д. 3 | DN147: Климовское д, д. 3 | DS147: Климовское д, д. 3 | DV147: Климовское д, д. 3 | EI147: 1354 | EJ147: 37 | EK147: 48.1 | EL147: Общий счет РО+
A148: Климовское д, д.4 | B148: ="Климовское д, д.4" -> Климовское д, д.4 | C148: Климовское д, д.4 | D148: ="Климовское д, д.4" -> Климовское д, д.4 | E148: ="Климовское д, д.4" -> Климовское д, д.4 | F148: Климовское д, д.4 | N148: ="Климовское д, д.4" -> Климовское д, д.4 | AE148: Климовское д, д. 4 | AJ148: Климовское д, д. 4 | AU148: Климовское д, д. 4 | BB148: Климовское д, д. 4 | BH148: Климовское д, д. 4 | BQ148: Климовское д, д. 4 | BW148: Климовское д, д. 4 | CE148: Климовское д, д. 4 | CL148: Климовское д, д. 4 | CU148: Климовское д, д. 4 | CZ148: Климовское д, д. 4 | DI148: Климовское д, д. 4 | DN148: Климовское д, д. 4 | DS148: Климовское д, д. 4 | DV148: Климовское д, д. 4 | EI148: 1346 | EJ148: 32 | EK148: 41.6 | EL148: Специальный счет УК | EM148: ООО УК "Городок" | EN148: ОС-ССУК с 21.07.2022
A149: Климовское д, д.5 | B149: ="Климовское д, д.5" -> Климовское д, д.5 | C149: Климовское д, д.5 | D149: ="Климовское д, д.5" -> Климовское д, д.5 | E149: ="Климовское д, д.5" -> Климовское д, д.5 | F149: Климовское д, д.5 | N149: ="Климовское д, д.5" -> Климовское д, д.5 | AE149: Климовское д, д. 5 | AJ149: Климовское д, д. 5 | AU149: Климовское д, д. 5 | BB149: Климовское д, д. 5 | BH149: Климовское д, д. 5 | BQ149: Климовское д, д. 5 | BW149: Климовское д, д. 5 | CE149: Климовское д, д. 5 | CL149: Климовское д, д. 5 | CU149: Климовское д, д. 5 | CZ149: Климовское д, д. 5 | DI149: Климовское д, д. 5 | DN149: Климовское д, д. 5 | DS149: Климовское д, д. 5 | DV149: Климовское д, д. 5 | EI149: 1378.5 | EJ149: 33 | EK149: 42.9 | EL149: Специальный счет ТСЖ | EM149: ТСЖ "МКД 5"
A150: Климовское д, д.6 | B150: ="Климовское д, д.6" -> Климовское д, д.6 | C150: Климовское д, д.6 | D150: ="Климовское д, д.6" -> Климовское д, д.6 | E150: ="Климовское д, д.6" -> Климовское д, д.6 | F150: Климовское д, д.6 | N150: ="Климовское д, д.6" -> Климовское д, д.6 | AE150: Климовское д, д. 6 | AJ150: Климовское д, д. 6 | AU150: Климовское д, д. 6 | BB150: Климовское д, д. 6 | BH150: Климовское д, д. 6 | BQ150: Климовское д, д. 6 | BW150: Климовское д, д. 6 | CE150: Климовское д, д. 6 | CL150: Климовское д, д. 6 | CU150: Климовское д, д. 6 | CZ150: Климовское д, д. 6 | DI150: Климовское д, д. 6 | DN150: Климовское д, д. 6 | DS150: Климовское д, д. 6 | DV150: Климовское д, д. 6 | EI150: 1336.4 | EJ150: 35 | EK150: 45.5 | EL150: Общий счет РО+
A151: Климовское д, д.7 | B151: ="Климовское д, д.7" -> Климовское д, д.7 | C151: Климовское д, д.7 | D151: ="Климовское д, д.7" -> Климовское д, д.7 | E151: ="Климовское д, д.7" -> Климовское д, д.7 | F151: Климовское д, д.7 | N151: ="Климовское д, д.7" -> Климовское д, д.7 | AE151: Климовское д, д. 7 | AJ151: Климовское д, д. 7 | AU151: Климовское д, д. 7 | BB151: Климовское д, д. 7 | BH151: Климовское д, д. 7 | BQ151: Климовское д, д. 7 | BW151: Климовское д, д. 7 | CE151: Климовское д, д. 7 | CL151: Климовское д, д. 7 | CU151: Климовское д, д. 7 | CZ151: Климовское д, д. 7 | DI151: Климовское д, д. 7 | DN151: Климовское д, д. 7 | DS151: Климовское д, д. 7 | DV151: Климовское д, д. 7 | EI151: 3146.2 | EJ151: 92 | EK151: 119.6 | EL151: Специальный счет ТСЖ | EM151: ТСЖ "МКД 7"
A152: Климовское д, д.8 | B152: ="Климовское д, д.8" -> Климовское д, д.8 | C152: Климовское д, д.8 | D152: ="Климовское д, д.8" -> Климовское д, д.8 | E152: ="Климовское д, д.8" -> Климовское д, д.8 | F152: Климовское д, д.8 | N152: ="Климовское д, д.8" -> Климовское д, д.8 | AE152: Климовское д, д. 8 | AJ152: Климовское д, д. 8 | AU152: Климовское д, д. 8 | BB152: Климовское д, д. 8 | BH152: Климовское д, д. 8 | BQ152: Климовское д, д. 8 | BW152: Климовское д, д. 8 | CE152: Климовское д, д. 8 | CL152: Климовское д, д. 8 | CU152: Климовское д, д. 8 | CZ152: Климовское д, д. 8 | DI152: Климовское д, д. 8 | DN152: Климовское д, д. 8 | DS152: Климовское д, д. 8 | DV152: Климовское д, д. 8 | EI152: 2520.7 | EJ152: 56 | EK152: 72.8 | EL152: Специальный счет ТСЖ | EM152: ТСЖ "МКД №8" | EN152: ОС-ССТСЖ с 21.02.2016
A153: Климовское д, д.9 | B153: ="Климовское д, д.9" -> Климовское д, д.9 | C153: Климовское д, д.9 | D153: ="Климовское д, д.9" -> Климовское д, д.9 | E153: ="Климовское д, д.9" -> Климовское д, д.9 | F153: Климовское д, д.9 | N153: ="Климовское д, д.9" -> Климовское д, д.9 | AE153: Климовское д, д. 9 | AJ153: Климовское д, д. 9 | AU153: Климовское д, д. 9 | BB153: Климовское д, д. 9 | BH153: Климовское д, д. 9 | BQ153: Климовское д, д. 9 | BW153: Климовское д, д. 9 | CE153: Климовское д, д. 9 | CL153: Климовское д, д. 9 | CU153: Климовское д, д. 9 | CZ153: Климовское д, д. 9 | DI153: Климовское д, д. 9 | DN153: Климовское д, д. 9 | DS153: Климовское д, д. 9 | DV153: Климовское д, д. 9 | EI153: 3396.6 | EJ153: 70 | EK153: 91 | EL153: Специальный счет ТСЖ | EM153: ТСЖ "Девятый дом"
A154: Климовское д, д.10 | B154: ="Климовское д, д.10" -> Климовское д, д.10 | C154: Климовское д, д.10 | D154: ="Климовское д, д.10" -> Климовское д, д.10 | E154: ="Климовское д, д.10" -> Климовское д, д.10 | F154: Климовское д, д.10 | N154: ="Климовское д, д.10" -> Климовское д, д.10 | AE154: Климовское д, д. 10 | AJ154: Климовское д, д. 10 | AU154: Климовское д, д. 10 | BB154: Климовское д, д. 10 | BH154: Климовское д, д. 10 | BQ154: Климовское д, д. 10 | BW154: Климовское д, д. 10 | CE154: Климовское д, д. 10 | CL154: Климовское д, д. 10 | CU154: Климовское д, д. 10 | CZ154: Климовское д, д. 10 | DI154: Климовское д, д. 10 | DN154: Климовское д, д. 10 | DS154: Климовское д, д. 10 | DV154: Климовское д, д. 10 | EI154: 3467.7 | EJ154: 70 | EK154: 91 | EL154: Специальный счет ТСЖ | EM154: ТСЖ "Десятый дом"
A155: Климовское д, д.11 | B155: ="Климовское д, д.11" -> Климовское д, д.11 | C155: Климовское д, д.11 | D155: ="Климовское д, д.11" -> Климовское д, д.11 | E155: ="Климовское д, д.11" -> Климовское д, д.11 | F155: Климовское д, д.11 | N155: ="Климовское д, д.11" -> Климовское д, д.11 | AE155: Климовское д, д. 11 | AJ155: Климовское д, д. 11 | AU155: Климовское д, д. 11 | BB155: Климовское д, д. 11 | BH155: Климовское д, д. 11 | BQ155: Климовское д, д. 11 | BW155: Климовское д, д. 11 | CE155: Климовское д, д. 11 | CL155: Климовское д, д. 11 | CU155: Климовское д, д. 11 | CZ155: Климовское д, д. 11 | DI155: Климовское д, д. 11 | DN155: Климовское д, д. 11 | DS155: Климовское д, д. 11 | DV155: Климовское д, д. 11 | EI155: 2850.7 | EJ155: 60 | EK155: 78 | EL155: Специальный счет ТСЖ | EM155: ТСЖ "МКД 11" | EN155: ОС-ССТСЖ с 30.09.2015
A156: Климовское д, д.12 | B156: ="Климовское д, д.12" -> Климовское д, д.12 | C156: Климовское д, д.12 | D156: ="Климовское д, д.12" -> Климовское д, д.12 | E156: ="Климовское д, д.12" -> Климовское д, д.12 | F156: Климовское д, д.12 | N156: ="Климовское д, д.12" -> Климовское д, д.12 | AE156: Климовское д, д. 12 | AJ156: Климовское д, д. 12 | AU156: Климовское д, д. 12 | BB156: Климовское д, д. 12 | BH156: Климовское д, д. 12 | BQ156: Климовское д, д. 12 | BW156: Климовское д, д. 12 | CE156: Климовское д, д. 12 | CL156: Климовское д, д. 12 | CU156: Климовское д, д. 12 | CZ156: Климовское д, д. 12 | DI156: Климовское д, д. 12 | DN156: Климовское д, д. 12 | DS156: Климовское д, д. 12 | DV156: Климовское д, д. 12 | EI156: 3834.2 | EJ156: 65 | EK156: 84.5 | EL156: Специальный счет ТСЖ | EM156: ТСЖ "Многоквартирный дом 12"
A157: Климовское д, д.13 | B157: ="Климовское д, д.13" -> Климовское д, д.13 | C157: Климовское д, д.13 | D157: ="Климовское д, д.13" -> Климовское д, д.13 | E157: ="Климовское д, д.13" -> Климовское д, д.13 | F157: Климовское д, д.13 | N157: ="Климовское д, д.13" -> Климовское д, д.13 | AE157: Климовское д, д. 13 | AJ157: Климовское д, д. 13 | AU157: Климовское д, д. 13 | BB157: Климовское д, д. 13 | BH157: Климовское д, д. 13 | BQ157: Климовское д, д. 13 | BW157: Климовское д, д. 13 | CE157: Климовское д, д. 13 | CL157: Климовское д, д. 13 | CU157: Климовское д, д. 13 | CZ157: Климовское д, д. 13 | DI157: Климовское д, д. 13 | DN157: Климовское д, д. 13 | DS157: Климовское д, д. 13 | DV157: Климовское д, д. 13 | EI157: 4546.7 | EJ157: 79 | EK157: 102.7 | EL157: Специальный счет ТСЖ | EM157: ТСЖ "МКД 13"
A158: Климовское д, д.14 | B158: ="Климовское д, д.14" -> Климовское д, д.14 | C158: Климовское д, д.14 | D158: ="Климовское д, д.14" -> Климовское д, д.14 | E158: ="Климовское д, д.14" -> Климовское д, д.14 | F158: Климовское д, д.14 | N158: ="Климовское д, д.14" -> Климовское д, д.14 | AE158: Климовское д, д. 14 | AJ158: Климовское д, д. 14 | AU158: Климовское д, д. 14 | BB158: Климовское д, д. 14 | BH158: Климовское д, д. 14 | BQ158: Климовское д, д. 14 | BW158: Климовское д, д. 14 | CE158: Климовское д, д. 14 | CL158: Климовское д, д. 14 | CU158: Климовское д, д. 14 | CZ158: Климовское д, д. 14 | DI158: Климовское д, д. 14 | DN158: Климовское д, д. 14 | DS158: Климовское д, д. 14 | DV158: Климовское д, д. 14 | EI158: 4554.6 | EJ158: 80 | EK158: 104 | EL158: Специальный счет ТСЖ | EM158: ТСЖ "Многоквартирный дом 14"
A159: Климовское д, д.15 | B159: ="Климовское д, д.15" -> Климовское д, д.15 | C159: Климовское д, д.15 | D159: ="Климовское д, д.15" -> Климовское д, д.15 | E159: ="Климовское д, д.15" -> Климовское д, д.15 | F159: Климовское д, д.15 | N159: ="Климовское д, д.15" -> Климовское д, д.15 | AE159: Климовское д, д. 15 | AJ159: Климовское д, д. 15 | AU159: Климовское д, д. 15 | BB159: Климовское д, д. 15 | BH159: Климовское д, д. 15 | BQ159: Климовское д, д. 15 | BW159: Климовское д, д. 15 | CE159: Климовское д, д. 15 | CL159: Климовское д, д. 15 | CU159: Климовское д, д. 15 | CZ159: Климовское д, д. 15 | DI159: Климовское д, д. 15 | DN159: Климовское д, д. 15 | DS159: Климовское д, д. 15 | DV159: Климовское д, д. 15 | EI159: 4631 | EJ159: 80 | EK159: 104 | EL159: Специальный счет ТСЖ | EM159: ТСН "МКД 15" | EN159: ОС-ССТСЖ с 27.06.2016
A160: Климовское д, д.16 | B160: ="Климовское д, д.16" -> Климовское д, д.16 | C160: Климовское д, д.16 | D160: ="Климовское д, д.16" -> Климовское д, д.16 | E160: ="Климовское д, д.16" -> Климовское д, д.16 | F160: Климовское д, д.16 | N160: ="Климовское д, д.16" -> Климовское д, д.16 | AE160: Климовское д, д. 16 | AJ160: Климовское д, д. 16 | AU160: Климовское д, д. 16 | BB160: Климовское д, д. 16 | BH160: Климовское д, д. 16 | BQ160: Климовское д, д. 16 | BW160: Климовское д, д. 16 | CE160: Климовское д, д. 16 | CL160: Климовское д, д. 16 | CU160: Климовское д, д. 16 | CZ160: Климовское д, д. 16 | DI160: Климовское д, д. 16 | DN160: Климовское д, д. 16 | DS160: Климовское д, д. 16 | DV160: Климовское д, д. 16 | EI160: 4295.2 | EJ160: 80 | EK160: 104 | EL160: Специальный счет ТСЖ | EM160: ТСЖ "МКД №16" | EN160: ОС-ССТСЖ с 10.12.2015
A161: Коротово д, Ленина ул, д.1 | B161: ="Коротово д, Ленина ул, д.1" -> Коротово д, Ленина ул, д.1 | C161: Коротово д, Ленина ул, д.1 | D161: ="Коротово д, Ленина ул, д.1" -> Коротово д, Ленина ул, д.1 | E161: ="Коротово д, Ленина ул, д.1" -> Коротово д, Ленина ул, д.1 | F161: Коротово д, Ленина ул, д.1 | N161: ="Коротово д, Ленина ул, д.1" -> Коротово д, Ленина ул, д.1 | AE161: Коротово д, Ленина ул, д. 1 | AJ161: Коротово д, Ленина ул, д. 1 | AU161: Коротово д, Ленина ул, д. 1 | BB161: Коротово д, Ленина ул, д. 1 | BH161: Коротово д, Ленина ул, д. 1 | BQ161: Коротово д, Ленина ул, д. 1 | BW161: Коротово д, Ленина ул, д. 1 | CE161: Коротово д, Ленина ул, д. 1 | CL161: Коротово д, Ленина ул, д. 1 | CU161: Коротово д, Ленина ул, д. 1 | CZ161: Коротово д, Ленина ул, д. 1 | DI161: Коротово д, Ленина ул, д. 1 | DN161: Коротово д, Ленина ул, д. 1 | DS161: Коротово д, Ленина ул, д. 1 | DV161: Коротово д, Ленина ул, д. 1 | EI161: 455.4 | EJ161: 13 | EK161: 16.9 | EL161: Общий счет РО+
A162: Коротово д, Ленина ул, д.2 | B162: ="Коротово д, Ленина ул, д.2" -> Коротово д, Ленина ул, д.2 | C162: Коротово д, Ленина ул, д.2 | D162: ="Коротово д, Ленина ул, д.2" -> Коротово д, Ленина ул, д.2 | E162: ="Коротово д, Ленина ул, д.2" -> Коротово д, Ленина ул, д.2 | F162: Коротово д, Ленина ул, д.2 | N162: ="Коротово д, Ленина ул, д.2" -> Коротово д, Ленина ул, д.2 | AE162: Коротово д, Ленина ул, д. 2 | AJ162: Коротово д, Ленина ул, д. 2 | AU162: Коротово д, Ленина ул, д. 2 | BB162: Коротово д, Ленина ул, д. 2 | BH162: Коротово д, Ленина ул, д. 2 | BQ162: Коротово д, Ленина ул, д. 2 | BW162: Коротово д, Ленина ул, д. 2 | CE162: Коротово д, Ленина ул, д. 2 | CL162: Коротово д, Ленина ул, д. 2 | CU162: Коротово д, Ленина ул, д. 2 | CZ162: Коротово д, Ленина ул, д. 2 | DI162: Коротово д, Ленина ул, д. 2 | DN162: Коротово д, Ленина ул, д. 2 | DS162: Коротово д, Ленина ул, д. 2 | DV162: Коротово д, Ленина ул, д. 2 | EI162: 497.6 | EJ162: 14 | EK162: 18.2 | EL162: Общий счет РО+
A163: Коротово д, Ленина ул, д.3 | B163: ="Коротово д, Ленина ул, д.3" -> Коротово д, Ленина ул, д.3 | C163: Коротово д, Ленина ул, д.3 | D163: ="Коротово д, Ленина ул, д.3" -> Коротово д, Ленина ул, д.3 | E163: ="Коротово д, Ленина ул, д.3" -> Коротово д, Ленина ул, д.3 | F163: Коротово д, Ленина ул, д.3 | N163: ="Коротово д, Ленина ул, д.3" -> Коротово д, Ленина ул, д.3 | AE163: Коротово д, Ленина ул, д. 3 | AJ163: Коротово д, Ленина ул, д. 3 | AU163: Коротово д, Ленина ул, д. 3 | BB163: Коротово д, Ленина ул, д. 3 | BH163: Коротово д, Ленина ул, д. 3 | BQ163: Коротово д, Ленина ул, д. 3 | BW163: Коротово д, Ленина ул, д. 3 | CE163: Коротово д, Ленина ул, д. 3 | CL163: Коротово д, Ленина ул, д. 3 | CU163: Коротово д, Ленина ул, д. 3 | CZ163: Коротово д, Ленина ул, д. 3 | DI163: Коротово д, Ленина ул, д. 3 | DN163: Коротово д, Ленина ул, д. 3 | DS163: Коротово д, Ленина ул, д. 3 | DV163: Коротово д, Ленина ул, д. 3 | EI163: 523.1 | EJ163: 12 | EK163: =EJ163*1.3 -> 15.6 | EL163: Общий счет РО+
A164: Коротово д, Ленина ул, д.4 | B164: ="Коротово д, Ленина ул, д.4" -> Коротово д, Ленина ул, д.4 | C164: Коротово д, Ленина ул, д.4 | D164: ="Коротово д, Ленина ул, д.4" -> Коротово д, Ленина ул, д.4 | E164: ="Коротово д, Ленина ул, д.4" -> Коротово д, Ленина ул, д.4 | F164: Коротово д, Ленина ул, д.4 | N164: ="Коротово д, Ленина ул, д.4" -> Коротово д, Ленина ул, д.4 | AE164: Коротово д, Ленина ул, д. 4 | AJ164: Коротово д, Ленина ул, д. 4 | AU164: Коротово д, Ленина ул, д. 4 | BB164: Коротово д, Ленина ул, д. 4 | BH164: Коротово д, Ленина ул, д. 4 | BQ164: Коротово д, Ленина ул, д. 4 | BW164: Коротово д, Ленина ул, д. 4 | CE164: Коротово д, Ленина ул, д. 4 | CL164: Коротово д, Ленина ул, д. 4 | CU164: Коротово д, Ленина ул, д. 4 | CZ164: Коротово д, Ленина ул, д. 4 | DI164: Коротово д, Ленина ул, д. 4 | DN164: Коротово д, Ленина ул, д. 4 | DS164: Коротово д, Ленина ул, д. 4 | DV164: Коротово д, Ленина ул, д. 4 | EI164: 718.4 | EJ164: 16 | EK164: 20.8 | EL164: Общий счет РО+
A165: Коротово д, Ленина ул, д.5 | B165: ="Коротово д, Ленина ул, д.5" -> Коротово д, Ленина ул, д.5 | C165: Коротово д, Ленина ул, д.5 | D165: ="Коротово д, Ленина ул, д.5" -> Коротово д, Ленина ул, д.5 | E165: ="Коротово д, Ленина ул, д.5" -> Коротово д, Ленина ул, д.5 | F165: Коротово д, Ленина ул, д.5 | N165: ="Коротово д, Ленина ул, д.5" -> Коротово д, Ленина ул, д.5 | AE165: Коротово д, Ленина ул, д. 5 | AJ165: Коротово д, Ленина ул, д. 5 | AU165: Коротово д, Ленина ул, д. 5 | BB165: Коротово д, Ленина ул, д. 5 | BH165: Коротово д, Ленина ул, д. 5 | BQ165: Коротово д, Ленина ул, д. 5 | BW165: Коротово д, Ленина ул, д. 5 | CE165: Коротово д, Ленина ул, д. 5 | CL165: Коротово д, Ленина ул, д. 5 | CU165: Коротово д, Ленина ул, д. 5 | CZ165: Коротово д, Ленина ул, д. 5 | DI165: Коротово д, Ленина ул, д. 5 | DN165: Коротово д, Ленина ул, д. 5 | DS165: Коротово д, Ленина ул, д. 5 | DV165: Коротово д, Ленина ул, д. 5 | EI165: 586.2 | EJ165: 12 | EK165: 15.6 | EL165: Общий счет РО+
A166: Коротово д, Ленина ул, д.6 | B166: ="Коротово д, Ленина ул, д.6" -> Коротово д, Ленина ул, д.6 | C166: Коротово д, Ленина ул, д.6 | D166: ="Коротово д, Ленина ул, д.6" -> Коротово д, Ленина ул, д.6 | E166: ="Коротово д, Ленина ул, д.6" -> Коротово д, Ленина ул, д.6 | F166: Коротово д, Ленина ул, д.6 | N166: ="Коротово д, Ленина ул, д.6" -> Коротово д, Ленина ул, д.6 | AE166: Коротово д, Ленина ул, д. 6 | AJ166: Коротово д, Ленина ул, д. 6 | AU166: Коротово д, Ленина ул, д. 6 | BB166: Коротово д, Ленина ул, д. 6 | BH166: Коротово д, Ленина ул, д. 6 | BQ166: Коротово д, Ленина ул, д. 6 | BW166: Коротово д, Ленина ул, д. 6 | CE166: Коротово д, Ленина ул, д. 6 | CL166: Коротово д, Ленина ул, д. 6 | CU166: Коротово д, Ленина ул, д. 6 | CZ166: Коротово д, Ленина ул, д. 6 | DI166: Коротово д, Ленина ул, д. 6 | DN166: Коротово д, Ленина ул, д. 6 | DS166: Коротово д, Ленина ул, д. 6 | DV166: Коротово д, Ленина ул, д. 6 | EI166: 1539.2 | EJ166: 27 | EK166: 35.1 | EL166: Общий счет РО+
A167: Коротово д, Ленина ул, д.14Б | B167: ="Коротово д, Ленина ул, д.14Б" -> Коротово д, Ленина ул, д.14Б | EK167: 0 | EN167: Исключен
A168: Коротово д, Ленина ул, д.16 | B168: ="Коротово д, Ленина ул, д.16" -> Коротово д, Ленина ул, д.16 | C168: Коротово д, Ленина ул, д.16 | D168: ="Коротово д, Ленина ул, д.16" -> Коротово д, Ленина ул, д.16 | E168: ="Коротово д, Ленина ул, д.16" -> Коротово д, Ленина ул, д.16 | F168: Коротово д, Ленина ул, д.16 | N168: ="Коротово д, Ленина ул, д.16" -> Коротово д, Ленина ул, д.16 | AE168: Коротово д, Ленина ул, д. 16 | AJ168: Коротово д, Ленина ул, д. 16 | AU168: Коротово д, Ленина ул, д. 16 | BB168: Коротово д, Ленина ул, д. 16 | BH168: Коротово д, Ленина ул, д. 16 | BQ168: Коротово д, Ленина ул, д. 16 | BW168: Коротово д, Ленина ул, д. 16 | CE168: Коротово д, Ленина ул, д. 16 | CL168: Коротово д, Ленина ул, д. 16 | CU168: Коротово д, Ленина ул, д. 16 | CZ168: Коротово д, Ленина ул, д. 16 | DI168: Коротово д, Ленина ул, д. 16 | DN168: Коротово д, Ленина ул, д. 16 | DS168: Коротово д, Ленина ул, д. 16 | DV168: Коротово д, Ленина ул, д. 16 | EI168: 1201.92 | EJ168: 31 | EK168: 40.3 | EL168: Общий счет РО+
A169: Коротово д, Ленина ул, д.17 | B169: ="Коротово д, Ленина ул, д.17" -> Коротово д, Ленина ул, д.17 | C169: Коротово д, Ленина ул, д.17 | D169: ="Коротово д, Ленина ул, д.17" -> Коротово д, Ленина ул, д.17 | E169: ="Коротово д, Ленина ул, д.17" -> Коротово д, Ленина ул, д.17 | F169: Коротово д, Ленина ул, д.17 | N169: ="Коротово д, Ленина ул, д.17" -> Коротово д, Ленина ул, д.17 | AE169: Коротово д, Ленина ул, д. 17 | AJ169: Коротово д, Ленина ул, д. 17 | AU169: Коротово д, Ленина ул, д. 17 | BB169: Коротово д, Ленина ул, д. 17 | BH169: Коротово д, Ленина ул, д. 17 | BQ169: Коротово д, Ленина ул, д. 17 | BW169: Коротово д, Ленина ул, д. 17 | CE169: Коротово д, Ленина ул, д. 17 | CL169: Коротово д, Ленина ул, д. 17 | CU169: Коротово д, Ленина ул, д. 17 | CZ169: Коротово д, Ленина ул, д. 17 | DI169: Коротово д, Ленина ул, д. 17 | DN169: Коротово д, Ленина ул, д. 17 | DS169: Коротово д, Ленина ул, д. 17 | DV169: Коротово д, Ленина ул, д. 17 | EI169: 1204.9 | EJ169: 29 | EK169: 37.7 | EL169: Специальный счет РО + учет + взыскание
A170: Коротово д, Ленина ул, д.18 | B170: ="Коротово д, Ленина ул, д.18" -> Коротово д, Ленина ул, д.18 | C170: Коротово д, Ленина ул, д.18 | D170: ="Коротово д, Ленина ул, д.18" -> Коротово д, Ленина ул, д.18 | E170: ="Коротово д, Ленина ул, д.18" -> Коротово д, Ленина ул, д.18 | F170: Коротово д, Ленина ул, д.18 | N170: ="Коротово д, Ленина ул, д.18" -> Коротово д, Ленина ул, д.18 | AE170: Коротово д, Ленина ул, д. 18 | AJ170: Коротово д, Ленина ул, д. 18 | AU170: Коротово д, Ленина ул, д. 18 | BB170: Коротово д, Ленина ул, д. 18 | BH170: Коротово д, Ленина ул, д. 18 | BQ170: Коротово д, Ленина ул, д. 18 | BW170: Коротово д, Ленина ул, д. 18 | CE170: Коротово д, Ленина ул, д. 18 | CL170: Коротово д, Ленина ул, д. 18 | CU170: Коротово д, Ленина ул, д. 18 | CZ170: Коротово д, Ленина ул, д. 18 | DI170: Коротово д, Ленина ул, д. 18 | DN170: Коротово д, Ленина ул, д. 18 | DS170: Коротово д, Ленина ул, д. 18 | DV170: Коротово д, Ленина ул, д. 18 | EI170: 1853.7 | EJ170: 38 | EK170: 49.4 | EL170: Специальный счет РО + учет + взыскание
A171: Коротово д, Ленина ул, д.19 | B171: ="Коротово д, Ленина ул, д.19" -> Коротово д, Ленина ул, д.19 | C171: Коротово д, Ленина ул, д.19 | D171: ="Коротово д, Ленина ул, д.19" -> Коротово д, Ленина ул, д.19 | E171: ="Коротово д, Ленина ул, д.19" -> Коротово д, Ленина ул, д.19 | F171: Коротово д, Ленина ул, д.19 | N171: ="Коротово д, Ленина ул, д.19" -> Коротово д, Ленина ул, д.19 | AE171: Коротово д, Ленина ул, д. 19 | AJ171: Коротово д, Ленина ул, д. 19 | AU171: Коротово д, Ленина ул, д. 19 | BB171: Коротово д, Ленина ул, д. 19 | BH171: Коротово д, Ленина ул, д. 19 | BQ171: Коротово д, Ленина ул, д. 19 | BW171: Коротово д, Ленина ул, д. 19 | CE171: Коротово д, Ленина ул, д. 19 | CL171: Коротово д, Ленина ул, д. 19 | CU171: Коротово д, Ленина ул, д. 19 | CZ171: Коротово д, Ленина ул, д. 19 | DI171: Коротово д, Ленина ул, д. 19 | DN171: Коротово д, Ленина ул, д. 19 | DS171: Коротово д, Ленина ул, д. 19 | DV171: Коротово д, Ленина ул, д. 19 | EI171: 1345.3 | EJ171: 28 | EK171: 36.4 | EL171: Общий счет РО+
A172: Коротово д, Ленина ул, д.20 | B172: ="Коротово д, Ленина ул, д.20" -> Коротово д, Ленина ул, д.20 | C172: Коротово д, Ленина ул, д.20 | D172: ="Коротово д, Ленина ул, д.20" -> Коротово д, Ленина ул, д.20 | E172: ="Коротово д, Ленина ул, д.20" -> Коротово д, Ленина ул, д.20 | F172: Коротово д, Ленина ул, д.20 | N172: ="Коротово д, Ленина ул, д.20" -> Коротово д, Ленина ул, д.20 | AE172: Коротово д, Ленина ул, д. 20 | AJ172: Коротово д, Ленина ул, д. 20 | AU172: Коротово д, Ленина ул, д. 20 | BB172: Коротово д, Ленина ул, д. 20 | BH172: Коротово д, Ленина ул, д. 20 | BQ172: Коротово д, Ленина ул, д. 20 | BW172: Коротово д, Ленина ул, д. 20 | CE172: Коротово д, Ленина ул, д. 20 | CL172: Коротово д, Ленина ул, д. 20 | CU172: Коротово д, Ленина ул, д. 20 | CZ172: Коротово д, Ленина ул, д. 20 | DI172: Коротово д, Ленина ул, д. 20 | DN172: Коротово д, Ленина ул, д. 20 | DS172: Коротово д, Ленина ул, д. 20 | DV172: Коротово д, Ленина ул, д. 20 | EI172: 1384.9 | EJ172: 28 | EK172: 36.4 | EL172: Специальный счет РО + учет + взыскание
A173: Коротово д, Ленина ул, д.21 | B173: ="Коротово д, Ленина ул, д.21" -> Коротово д, Ленина ул, д.21 | C173: Коротово д, Ленина ул, д.21 | D173: ="Коротово д, Ленина ул, д.21" -> Коротово д, Ленина ул, д.21 | E173: ="Коротово д, Ленина ул, д.21" -> Коротово д, Ленина ул, д.21 | F173: Коротово д, Ленина ул, д.21 | N173: ="Коротово д, Ленина ул, д.21" -> Коротово д, Ленина ул, д.21 | AE173: Коротово д, Ленина ул, д. 21 | AJ173: Коротово д, Ленина ул, д. 21 | AU173: Коротово д, Ленина ул, д. 21 | BB173: Коротово д, Ленина ул, д. 21 | BH173: Коротово д, Ленина ул, д. 21 | BQ173: Коротово д, Ленина ул, д. 21 | BW173: Коротово д, Ленина ул, д. 21 | CE173: Коротово д, Ленина ул, д. 21 | CL173: Коротово д, Ленина ул, д. 21 | CU173: Коротово д, Ленина ул, д. 21 | CZ173: Коротово д, Ленина ул, д. 21 | DI173: Коротово д, Ленина ул, д. 21 | DN173: Коротово д, Ленина ул, д. 21 | DS173: Коротово д, Ленина ул, д. 21 | DV173: Коротово д, Ленина ул, д. 21 | EI173: 1364.3 | EJ173: 27 | EK173: 35.1 | EL173: Общий счет РО+
A174: Кошта д, д.3 | B174: ="Кошта д, д.3" -> Кошта д, д.3 | EK174: 0 | EN174: Исключен
A175: Кривец п, Заря Коммунизма ул, д.7 | B175: ="Кривец п, Заря Коммунизма ул, д.7" -> Кривец п, Заря Коммунизма ул, д.7 | C175: Кривец п, Заря Коммунизма ул, д.7 | D175: ="Кривец п, Заря Коммунизма ул, д.7" -> Кривец п, Заря Коммунизма ул, д.7 | E175: ="Кривец п, Заря Коммунизма ул, д.7" -> Кривец п, Заря Коммунизма ул, д.7 | F175: Кривец п, Заря Коммунизма ул, д.7 | N175: ="Кривец п, Заря Коммунизма ул, д.7" -> Кривец п, Заря Коммунизма ул, д.7 | AE175: Кривец п, Заря Коммунизма ул, д. 7 | EK175: 0 | EL175: Общий счет РО - 44,10 | EM175: 4-х квартирный | EN175: Исключен 01.04.2019
A176: Кривец п, Заря Коммунизма ул, д.24 | B176: ="Кривец п, Заря Коммунизма ул, д.24" -> Кривец п, Заря Коммунизма ул, д.24 | C176: Кривец п, Заря Коммунизма ул, д.24 | D176: ="Кривец п, Заря Коммунизма ул, д.24" -> Кривец п, Заря Коммунизма ул, д.24 | E176: ="Кривец п, Заря Коммунизма ул, д.24" -> Кривец п, Заря Коммунизма ул, д.24 | F176: Кривец п, Заря Коммунизма ул, д.24 | N176: ="Кривец п, Заря Коммунизма ул, д.24" -> Кривец п, Заря Коммунизма ул, д.24 | EK176: 0 | EL176: Общий счет РО 131,20 | EN176: Исключен 30.11.2018
A177: Кривец п, Заря Коммунизма ул, д.28 | B177: ="Кривец п, Заря Коммунизма ул, д.28" -> Кривец п, Заря Коммунизма ул, д.28 | C177: Кривец п, Заря Коммунизма ул, д.28 | D177: ="Кривец п, Заря Коммунизма ул, д.28" -> Кривец п, Заря Коммунизма ул, д.28 | E177: ="Кривец п, Заря Коммунизма ул, д.28" -> Кривец п, Заря Коммунизма ул, д.28 | F177: Кривец п, Заря Коммунизма ул, д.28 | N177: ="Кривец п, Заря Коммунизма ул, д.28" -> Кривец п, Заря Коммунизма ул, д.28 | EK177: 0 | EL177: Общий счет РО 156,40 | EN177: Исключен 30.11.2018
A178: Кривец п, Заря Коммунизма ул, д.30 | B178: ="Кривец п, Заря Коммунизма ул, д.30" -> Кривец п, Заря Коммунизма ул, д.30 | C178: Кривец п, Заря Коммунизма ул, д.30 | D178: ="Кривец п, Заря Коммунизма ул, д.30" -> Кривец п, Заря Коммунизма ул, д.30 | E178: ="Кривец п, Заря Коммунизма ул, д.30" -> Кривец п, Заря Коммунизма ул, д.30 | F178: Кривец п, Заря Коммунизма ул, д.30 | EK178: 0 | EM178: Дом блокированной застройки | EN178: Исключен 10.07.2017
A179: Кривец п, Заря Коммунизма ул, д.32 | B179: ="Кривец п, Заря Коммунизма ул, д.32" -> Кривец п, Заря Коммунизма ул, д.32 | C179: Кривец п, Заря Коммунизма ул, д.32 | D179: ="Кривец п, Заря Коммунизма ул, д.32" -> Кривец п, Заря Коммунизма ул, д.32 | E179: ="Кривец п, Заря Коммунизма ул, д.32" -> Кривец п, Заря Коммунизма ул, д.32 | F179: Кривец п, Заря Коммунизма ул, д.32 | N179: ="Кривец п, Заря Коммунизма ул, д.32" -> Кривец п, Заря Коммунизма ул, д.32 | AE179: Кривец п, Заря Коммунизма ул, д. 32 | EK179: 0 | EL179: Общий счет РО - 155,00 | EM179: 4-х квартирный | EN179: Исключен 01.04.2019
A180: Кривец п, Заря Коммунизма ул, д.38 | B180: ="Кривец п, Заря Коммунизма ул, д.38" -> Кривец п, Заря Коммунизма ул, д.38 | C180: Кривец п, Заря Коммунизма ул, д.38 | D180: ="Кривец п, Заря Коммунизма ул, д.38" -> Кривец п, Заря Коммунизма ул, д.38 | E180: ="Кривец п, Заря Коммунизма ул, д.38" -> Кривец п, Заря Коммунизма ул, д.38 | F180: Кривец п, Заря Коммунизма ул, д.38 | EK180: 0 | EM180: Дом блокированной застройки | EN180: Исключен 10.07.2017
A181: Кривец п, Заря Коммунизма ул, д.42 | B181: ="Кривец п, Заря Коммунизма ул, д.42" -> Кривец п, Заря Коммунизма ул, д.42 | C181: Кривец п, Заря Коммунизма ул, д.42 | EK181: =EJ181*1.3 -> 0 | EN181: Исключен
A182: Кривец п, Заря Коммунизма ул, д.95 | B182: ="Кривец п, Заря Коммунизма ул, д.95" -> Кривец п, Заря Коммунизма ул, д.95 | C182: Кривец п, Заря Коммунизма ул, д.95 | D182: ="Кривец п, Заря Коммунизма ул, д.95" -> Кривец п, Заря Коммунизма ул, д.95 | E182: ="Кривец п, Заря Коммунизма ул, д.95" -> Кривец п, Заря Коммунизма ул, д.95 | F182: Кривец п, Заря Коммунизма ул, д.95 | N182: ="Кривец п, Заря Коммунизма ул, д.95" -> Кривец п, Заря Коммунизма ул, д.95 | EK182: =EJ182*1.3 -> 0 | EL182: Общий счет РО 125,10 | EN182: Исключен 30.11.2018
A183: Кривец п, Заря Коммунизма ул, д.99 | B183: ="Кривец п, Заря Коммунизма ул, д.99" -> Кривец п, Заря Коммунизма ул, д.99 | C183: Кривец п, Заря Коммунизма ул, д.99 | D183: ="Кривец п, Заря Коммунизма ул, д.99" -> Кривец п, Заря Коммунизма ул, д.99 | E183: ="Кривец п, Заря Коммунизма ул, д.99" -> Кривец п, Заря Коммунизма ул, д.99 | F183: Кривец п, Заря Коммунизма ул, д.99 | N183: ="Кривец п, Заря Коммунизма ул, д.99" -> Кривец п, Заря Коммунизма ул, д.99 | EK183: 0 | EL183: Общий счет РО 158,80 | EM183: Дом блокированной застройки, письмо от 10.05.2018 | EN183: Исключен 30.11.2018
A184: Кривец п, Новая ул, д.12 | B184: ="Кривец п, Новая ул, д.12" -> Кривец п, Новая ул, д.12 | C184: Кривец п, Новая ул, д.12 | EK184: 0 | EN184: Исключен
A185: Кривец п, Новая ул, д.16 | B185: ="Кривец п, Новая ул, д.16" -> Кривец п, Новая ул, д.16 | C185: Кривец п, Новая ул, д.16 | D185: ="Кривец п, Новая ул, д.16" -> Кривец п, Новая ул, д.16 | E185: ="Кривец п, Новая ул, д.16" -> Кривец п, Новая ул, д.16 | F185: Кривец п, Новая ул, д.16 | N185: ="Кривец п, Новая ул, д.16" -> Кривец п, Новая ул, д.16 | EK185: 0 | EL185: Общий счет РО 110,90 | EM185: Дом блокированной застройки. Письмо адм. От10.07.2018г. № 1-47/1474 + справка БТИ | EN185: Исключен 30.11.2018
A186: Кривец п, Новая ул, д.17 | B186: ="Кривец п, Новая ул, д.17" -> Кривец п, Новая ул, д.17 | C186: Кривец п, Новая ул, д.17 | EK186: 0 | EN186: Исключен
A187: Кривец п, Новая ул, д.19 | B187: ="Кривец п, Новая ул, д.19" -> Кривец п, Новая ул, д.19 | C187: Кривец п, Новая ул, д.19 | EK187: 0 | EN187: Исключен
A188: Кривец п, Новая ул, д.25 | EK188: 0 | EN188: Исключен
A189: Кривец п, Новая ул, д.31 | B189: ="Кривец п, Новая ул, д.31" -> Кривец п, Новая ул, д.31 | C189: Кривец п, Новая ул, д.31 | D189: ="Кривец п, Новая ул, д.31" -> Кривец п, Новая ул, д.31 | E189: ="Кривец п, Новая ул, д.31" -> Кривец п, Новая ул, д.31 | F189: Кривец п, Новая ул, д.31 | N189: ="Кривец п, Новая ул, д.31" -> Кривец п, Новая ул, д.31 | AE189: Кривец п, Новая ул, д. 31 | EK189: 0 | EL189: Общий счет РО - 134,60 | EM189: 4-х квартирный | EN189: Исключен 01.04.2019
A190: Кривец п, Новая ул, д.33 | B190: ="Кривец п, Новая ул, д.33" -> Кривец п, Новая ул, д.33 | C190: Кривец п, Новая ул, д.33 | D190: ="Кривец п, Новая ул, д.33" -> Кривец п, Новая ул, д.33 | EK190: 0 | EN190: Исключен
A191: Кривец п, Новая ул, д.34 | B191: ="Кривец п, Новая ул, д.34" -> Кривец п, Новая ул, д.34 | C191: Кривец п, Новая ул, д.34 | D191: ="Кривец п, Новая ул, д.34" -> Кривец п, Новая ул, д.34 | E191: ="Кривец п, Новая ул, д.34" -> Кривец п, Новая ул, д.34 | F191: Кривец п, Новая ул, д.34 | N191: ="Кривец п, Новая ул, д.34" -> Кривец п, Новая ул, д.34 | EK191: 0 | EL191: Общий счет РО 158,50 | EN191: Исключен 30.11.2018
A192: Кривец п, Новая ул, д.35 | B192: ="Кривец п, Новая ул, д.35" -> Кривец п, Новая ул, д.35 | C192: Кривец п, Новая ул, д.35 | D192: ="Кривец п, Новая ул, д.35" -> Кривец п, Новая ул, д.35 | EK192: 0 | EN192: Исключен
A193: Кривец п, Новая ул, д.36 | B193: ="Кривец п, Новая ул, д.36" -> Кривец п, Новая ул, д.36 | C193: Кривец п, Новая ул, д.36 | D193: ="Кривец п, Новая ул, д.36" -> Кривец п, Новая ул, д.36 | E193: ="Кривец п, Новая ул, д.36" -> Кривец п, Новая ул, д.36 | F193: Кривец п, Новая ул, д.36 | N193: ="Кривец п, Новая ул, д.36" -> Кривец п, Новая ул, д.36 | AE193: Кривец п, Новая ул, д. 36 | EK193: 0 | EL193: Общий счет РО - 157,60 | EM193: 4-х квартирный | EN193: Исключен 01.04.2019
A194: Кривец п, Новая ул, д.70 | B194: ="Кривец п, Новая ул, д.70" -> Кривец п, Новая ул, д.70 | C194: Кривец п, Новая ул, д.70 | D194: ="Кривец п, Новая ул, д.70" -> Кривец п, Новая ул, д.70 | E194: ="Кривец п, Новая ул, д.70" -> Кривец п, Новая ул, д.70 | F194: Кривец п, Новая ул, д.70 | N194: ="Кривец п, Новая ул, д.70" -> Кривец п, Новая ул, д.70 | EK194: 0 | EL194: Общий счет РО 104,80 | EN194: Исключен 30.11.2018
A195: Кривец п, Новая ул, д.72 | B195: ="Кривец п, Новая ул, д.72" -> Кривец п, Новая ул, д.72 | C195: Кривец п, Новая ул, д.72 | D195: ="Кривец п, Новая ул, д.72" -> Кривец п, Новая ул, д.72 | E195: ="Кривец п, Новая ул, д.72" -> Кривец п, Новая ул, д.72 | F195: Кривец п, Новая ул, д.72 | N195: ="Кривец п, Новая ул, д.72" -> Кривец п, Новая ул, д.72 | EK195: 0 | EL195: Общий счет РО 237,30 | EM195: Дом блокированной застройки | EN195: Исключен 30.11.2018
A196: Кривец п, Новая ул, д.74 | B196: ="Кривец п, Новая ул, д.74" -> Кривец п, Новая ул, д.74 | C196: Кривец п, Новая ул, д.74 | D196: ="Кривец п, Новая ул, д.74" -> Кривец п, Новая ул, д.74 | E196: ="Кривец п, Новая ул, д.74" -> Кривец п, Новая ул, д.74 | F196: Кривец п, Новая ул, д.74 | EK196: 0 | EM196: Дом блокированной застройки | EN196: Исключен 10.07.2017
A197: Кривец п, Центральная ул, д.24 | B197: ="Кривец п, Центральная ул, д.24" -> Кривец п, Центральная ул, д.24 | C197: Кривец п, Центральная ул, д.24 | EK197: 0 | EN197: Исключен
A198: Кривец п, Центральная ул, д.33 | B198: ="Кривец п, Центральная ул, д.33" -> Кривец п, Центральная ул, д.33 | C198: Кривец п, Центральная ул, д.33 | D198: ="Кривец п, Центральная ул, д.33" -> Кривец п, Центральная ул, д.33 | E198: ="Кривец п, Центральная ул, д.33" -> Кривец п, Центральная ул, д.33 | F198: Кривец п, Центральная ул, д.33 | N198: ="Кривец п, Центральная ул, д.33" -> Кривец п, Центральная ул, д.33 | EK198: 0 | EL198: Общий счет РО 156,30 | EM198: Дом блокированной застройки. Справка от 20.09.2018 № 76. Письмо в фонд от 10.10.2018 | EN198: Исключен 30.11.2018
A199: Кривец п, Центральная ул, д.9 | B199: ="Кривец п, Центральная ул, д.9" -> Кривец п, Центральная ул, д.9 | C199: Кривец п, Центральная ул, д.9 | D199: ="Кривец п, Центральная ул, д.9" -> Кривец п, Центральная ул, д.9 | E199: ="Кривец п, Центральная ул, д.9" -> Кривец п, Центральная ул, д.9 | F199: Кривец п, Центральная ул, д.9 | N199: ="Кривец п, Центральная ул, д.9" -> Кривец п, Центральная ул, д.9 | AE199: Кривец п, Центральная ул, д. 9 | EK199: 0 | EL199: Общий счет РО - 59,80 | EM199: 4-х квартирный | EN199: Исключен 01.04.2019
A200: Кривец п, Центральная ул, д.28 | B200: ="Кривец п, Центральная ул, д.28" -> Кривец п, Центральная ул, д.28 | C200: Кривец п, Центральная ул, д.28 | D200: ="Кривец п, Центральная ул, д.28" -> Кривец п, Центральная ул, д.28 | E200: ="Кривец п, Центральная ул, д.28" -> Кривец п, Центральная ул, д.28 | F200: Кривец п, Центральная ул, д.28 | N200: ="Кривец п, Центральная ул, д.28" -> Кривец п, Центральная ул, д.28 | AE200: Кривец п, Центральная ул, д. 28 | AJ200: Кривец п, Центральная ул, д. 28 | AU200: Кривец п, Центральная ул, д. 28 | BB200: Кривец п, Центральная ул, д. 28 | BH200: Кривец п, Центральная ул, д. 28 | BQ200: Кривец п, Центральная ул, д. 28 | BW200: Кривец п, Центральная ул, д. 28 | CE200: Кривец п, Центральная ул, д. 28 | CL200: Кривец п, Центральная ул, д. 28 | CU200: Кривец п, Центральная ул, д. 28 | CZ200: Кривец п, Центральная ул, д. 28 | DI200: Кривец п, Центральная ул, д. 28 | DN200: Кривец п, Центральная ул, д. 28 | DS200: Кривец п, Центральная ул, д. 28 | DV200: Кривец п, Центральная ул, д. 28 | EI200: 241.3 | EJ200: 8 | EK200: 10.4 | EL200: Общий счет РО+
... 379 more rows

Sheet Лист2
F1: Абаканово с, Костромцова ул, д. 11
F2: Абаканово с, Костромцова ул, д. 17
F3: Абаканово с, Костромцова ул, д. 29
F4: Абаканово с, Костромцова ул, д. 31
F5: Абаканово с, Костромцова ул, д. 33
F6: Абаканово с, Костромцова ул, д. 35
F7: Абаканово с, Костромцова ул, д. 37
F8: Андогский п, Дзержинского ул, д. 10
F9: Андогский п, Дзержинского ул, д. 11
F10: Андогский п, Дзержинского ул, д. 11А
F11: Андогский п, Дзержинского ул, д. 12
F12: Андогский п, Дзержинского ул, д. 14
F13: Андогский п, Дзержинского ул, д. 9А
F14: Андогский п, Карла Маркса ул, д. 1
F15: Андогский п, Социалистическая ул, д. 2
F16: Андогский п, Школьная ул, д. 1
F17: Батран д, д. 6
F18: Ботово д, Ленина ул, д. 10
F19: Ботово д, Ленина ул, д. 12
F20: Ботово д, Ленина ул, д. 14
F21: Ботово д, Ленина ул, д. 18
F22: Ботово д, Ленина ул, д. 19
F23: Ботово д, Ленина ул, д. 2
F24: Ботово д, Ленина ул, д. 24
F25: Ботово д, Ленина ул, д. 26
F26: Ботово д, Ленина ул, д. 28
F27: Ботово д, Ленина ул, д. 3
F28: Ботово д, Ленина ул, д. 30
F29: Ботово д, Ленина ул, д. 4
F30: Ботово д, Ленина ул, д. 5
F31: Ботово д, Ленина ул, д. 6
F32: Ботово д, Ленина ул, д. 6А
F33: Ботово д, Ленина ул, д. 7
F34: Ботово д, Ленина ул, д. 8
F35: Ботово д, Школьная ул, д. 19
F36: Ботово д, Школьная ул, д. 20
F37: Ботово д, Школьная ул, д. 21
F38: Ботово д, Школьная ул, д. 22
F39: Ботово д, Школьная ул, д. 23
F40: Ботово д, Школьная ул, д. 24
F41: Воронино с, д. 16
F42: Воскресенское с, д. 175
F43: Воскресенское сельское поселение с/мо, Большой Двор д, д. 33
F44: Воскресенское сельское поселение с/мо, Воскресенское с, Советская ул, д. 13
F45: Воскресенское сельское поселение с/мо, Воскресенское с, Советская ул, д. 15
F46: Воскресенское сельское поселение с/мо, Воскресенское с, Советская ул, д. 19
F47: Воскресенское сельское поселение с/мо, Воскресенское с, Советская ул, д. 20
F48: Воскресенское сельское поселение с/мо, Воскресенское с, Советская ул, д. 21
F49: Воскресенское сельское поселение с/мо, Воскресенское с, Советская ул, д. 22
F50: Воскресенское сельское поселение с/мо, Воскресенское с, Советская ул, д. 23
F51: Воскресенское сельское поселение с/мо, Воскресенское с, Советская ул, д. 24
F52: Воскресенское сельское поселение с/мо, Воскресенское с, Советская ул, д. 3
F53: Воскресенское сельское поселение с/мо, Воскресенское с, Советская ул, д. 7
F54: Воскресенское сельское поселение с/мо, Воскресенское с, Совхозная ул, д. 49
F55: Воскресенское сельское поселение с/мо, Романово д, Механизаторов ул, д. 1
F56: Воскресенское сельское поселение с/мо, Романово д, Механизаторов ул, д. 2
F57: Енюково д, д. 1
F58: Енюково д, д. 2
F59: Ивановское с, Центральная ул, д. 78
F60: Ильинское с, д. 2
F61: Ильинское с, д. 3
F62: Ильинское с, д. 4
F63: Ирдоматка д, Новая ул, д. 10
F64: Ирдоматка д, Новая ул, д. 12
F65: Ирдоматка д, Новая ул, д. 3
F66: Ирдоматка д, Новая ул, д. 5
F67: Ирдоматка д, Новая ул, д. 58
F68: Ирдоматка д, Новая ул, д. 6
F69: Ирдоматка д, Новая ул, д. 7
F70: Ирдоматка д, Новая ул, д. 8
F71: Климовское д, д. 1
F72: Климовское д, д. 10
F73: Климовское д, д. 11
F74: Климовское д, д. 12
F75: Климовское д, д. 13
F76: Климовское д, д. 14
F77: Климовское д, д. 15
F78: Климовское д, д. 16
F79: Климовское д, д. 2
F80: Климовское д, д. 3
F81: Климовское д, д. 4
F82: Климовское д, д. 5
F83: Климовское д, д. 6
F84: Климовское д, д. 7
F85: Климовское д, д. 8
F86: Климовское д, д. 9
F87: Коротово д, Ленина ул, д. 1
F88: Коротово д, Ленина ул, д. 16
F89: Коротово д, Ленина ул, д. 17
F90: Коротово д, Ленина ул, д. 18
F91: Коротово д, Ленина ул, д. 19
F92: Коротово д, Ленина ул, д. 2
F93: Коротово д, Ленина ул, д. 20
F94: Коротово д, Ленина ул, д. 21
F95: Коротово д, Ленина ул, д. 3
F96: Коротово д, Ленина ул, д. 4
F97: Коротово д, Ленина ул, д. 5
F98: Коротово д, Ленина ул, д. 6
F99: Кривец п, Центральная ул, д. 28
F100: Кривец п, Центральная ул, д. 32
F101: Малечкино п, Молодежная ул, д. 14
F102: Малечкино п, Молодежная ул, д. 16
F103: Малечкино п, Молодежная ул, д. 21
F104: Малечкино п, Молодежная ул, д. 46
F105: Малечкино п, Молодежная ул, д. 47
F106: Малечкино п, Молодежная ул, д. 48
F107: Малечкино п, Молодежная ул, д. 51
F108: Малечкино п, Победы ул, д. 1
F109: Малечкино п, Победы ул, д. 10
F110: Малечкино п, Победы ул, д. 12
F111: Малечкино п, Победы ул, д. 2
F112: Малечкино п, Победы ул, д. 3
F113: Малечкино п, Победы ул, д. 4
F114: Малечкино п, Победы ул, д. 5
F115: Малечкино п, Победы ул, д. 6
F116: Малечкино п, Победы ул, д. 7
F117: Малечкино п, Победы ул, д. 8
F118: Малечкино п, Птицеводов ул, д. 19
F119: Малечкино п, Птицеводов ул, д. 41
F120: Малечкино п, Птицеводов ул, д. 42
F121: Малечкино п, Птицеводов ул, д. 43
F122: Малечкино п, Птицеводов ул, д. 45
F123: Малечкино п, Птицеводов ул, д. 50
F124: Мякса с, 70 лет Октября ул, д. 1
F125: Мякса с, 70 лет Октября ул, д. 2
F126: Мякса с, 70 лет Октября ул, д. 4
F127: Мякса с, 70 лет Октября ул, д. 5
F128: Мякса с, 70 лет Октября ул, д. 6
F129: Неверов Бор п, Рейдовая ул, д. 23
F130: Нелазское с, Центральная ул, д. 26
F131: Нелазское с, Центральная ул, д. 28
F132: Нелазское с, Центральная ул, д. 30
F133: Нелазское с, Центральная ул, д. 32
F134: Нелазское с, Центральная ул, д. 36
F135: Нелазское сельское поселение с/мо, Шулма д, Центральная ул, д. 1
F136: Нелазское сельское поселение с/мо, Шулма д, Центральная ул, д. 2
F137: Нелазское сельское поселение с/мо, Шулма д, Центральная ул, д. 3
F138: Нелазское сельское поселение с/мо, Шулма д, Центральная ул, д. 4
F139: Нелазское сельское поселение с/мо, Шулма д, Центральная ул, д. 5
F140: Нелазское сельское поселение с/мо, Шулма д, Центральная ул, д. 6
F141: Нелазское сельское поселение с/мо, Шулма д, Центральная ул, д. 7
F142: Нелазское сельское поселение с/мо, Шулма д, Центральная ул, д. 8
F143: Нелазское сельское поселение с/мо, Шулма д, Центральная ул, д. 9
F144: Новое Домозерово д, д. 29
F145: Новое Домозерово д, д. 44
F146: Новое Домозерово д, д. 45
F147: Новое Домозерово д, д. 46
F148: Новое Домозерово д, д. 47
F149: Покров с, Жукова ул, д. 29
F150: Поповка д, Центральная ул, д. 6
F151: Починок д, Мира ул, д. 1
F152: Починок д, Мира ул, д. 3
F153: Починок д, Мира ул, д. 5
F154: Солманское д, д. 2
F155: Солманское д, д. 36
F156: Суда п, 41 годовщины Октября ул, д. 2
F157: Суда п, Вологодская ул, д. 11
F158: Суда п, Вологодская ул, д. 15
F159: Суда п, Вологодская ул, д. 4А
F160: Суда п, Вологодская ул, д. 5
F161: Суда п, Гагарина ул, д. 15
F162: Суда п, Гагарина ул, д. 16
F163: Суда п, Гагарина ул, д. 19
F164: Суда п, Гагарина ул, д. 19А
F165: Суда п, Гагарина ул, д. 21
F166: Суда п, Гагарина ул, д. 21А
F167: Суда п, Гагарина ул, д. 22
F168: Суда п, Гагарина ул, д. 23
F169: Суда п, Гагарина ул, д. 23А
F170: Суда п, Гагарина ул, д. 23Б
F171: Суда п, Гагарина ул, д. 24
F172: Суда п, Гагарина ул, д. 26
F173: Суда п, Гагарина ул, д. 26А
F174: Суда п, Гагарина ул, д. 27
F175: Суда п, Гагарина ул, д. 28
F176: Суда п, Гагарина ул, д. 29
F177: Суда п, Гагарина ул, д. 30
F178: Суда п, Гагарина ул, д. 31
F179: Суда п, Гагарина ул, д. 32
F180: Суда п, Гагарина ул, д. 32А
F181: Суда п, Гагарина ул, д. 33
F182: Суда п, Гагарина ул, д. 9
F183: Суда п, Детская ул, д. 22
F184: Суда п, Детская ул, д. 22А
F185: Суда п, Детская ул, д. 24
F186: Суда п, Детский пер, д. 1
F187: Суда п, Детский пер, д. 3
F188: Суда п, Детский пер, д. 5
F189: Суда п, Дружбы ул, д. 23
F190: Суда п, Дружбы ул, д. 25
F191: Суда п, Заводская ул, д. 1Г
F192: Суда п, Заводская ул, д. 2
F193: Суда п, Заводская ул, д. 22
F194: Суда п, Заводская ул, д. 2А
F195: Суда п, Заводская ул, д. 2Б
F196: Суда п, Заводская ул, д. 2В
F197: Суда п, Заводская ул, д. 9А
F198: Суда п, Заря ул, д. 1
F199: Суда п, Заря ул, д. 3
F200: Суда п, Заря ул, д. 5
... 123 more rows
